Workbook

Sheet Orçamento
O3: UNIDADE ESCOLAR | X3: CÓDIGO INEP
O4: CENTRO DE ENSINO EM PERÍODO INTEGRAL PRÉ-UNIVERSITÁRIO | X4: 52033570
A6: Nmax | O6: OBRA | S6: DATA | X6: CIDADE
A7: =MAX($C$18:$C$911) -> 4 | O7: REFORMA E AMPLIAÇÃO | S7: 2020-04-23 | X7: GOIÂNIA
O9: CRE | R9: ENDEREÇO | X9: REFERÊNCIA AGETOP
O10: GOIÂNIA | R10: RUA 240 S/N, ST UNIVERSITARIO, CEP:74440-460 | X10: DEZ/18 | Y10: ONERADA
O12: ÁREA EXISTENTE (M²) | R12: ÁREA A CONSTRUIR (M²) | S12: ÁREA TOTAL CONSTRUÍDA (M²) | X12: REFERÊNCIA SINAPI
O13: 3842.27 | R13: 800.98 | S13: 4643.25 | X13: JUL/19 | Y13: ONERADA
L15: FILTRO | O15: PLANILHA ORÇAMENTÁRIA
A16: Nível E | B16: Save Nivel | C16: Nível C | D16: Altura | E16: n1 | F16: n2 | G16: n3 | H16: n4 | I16: n5 | J16: Czero | K16: Cnível | L16: ↓ | M16: Nível | N16: Nível Corrigido | O16: ITEM | P16: TABELA | Q16: CODIGO | R16: DESCRIÇÃO DOS SERVIÇOS | S16: UNID | T16: QUANT | U16: REPET | V16: QUANT TOTAL | W16: MAT | X16: MO | Y16: VALOR UNIT | Z16: VALOR TOTAL | AA16: OBSERVAÇÕES¹
A17: =CHOOSE(1+LOG(1+2*(ORÇAMENTO.Nivel="Nível 1")+4*(ORÇAMENTO.Nivel="Nível 2")+8*(ORÇAMENTO.Nivel="Nível 3")+16*(ORÇAMENTO.Nivel="Nível 4")+32*(ORÇAMENTO.Nivel="Serviço"),2),0,1,2,3,4,"S") -> S | B17: =IF(OR(C17="s",C17=0),OFFSET(B17,-1,0),C17) -> Save Nivel | C17: =IF(OFFSET(C17,-1,0)="L",1,IF(OFFSET(C17,-1,0)=1,2,IF(OR(A17="s",A17=0),"S",IF(AND(OFFSET(C17,-1,0)=2,A17=4),3,IF(AND(OR(OFFSET(C17,-1,0)="s",OFFSET(C17,-1,0)=0),A17<>"s",A17>OFFSET(B17,-1,0)),OFFSET(B17,-1,0),A17))))) -> S | D17: =IF(OR(C17="S",C17=0),0,IF(ISERROR(K17),J17,SMALL(J17:K17,1))) -> 0 | E17: =IF($C17=1,OFFSET(E17,-1,0)+1,OFFSET(E17,-1,0)) -> n1 | F17: =IF($C17=1,0,IF($C17=2,OFFSET(F17,-1,0)+1,OFFSET(F17,-1,0))) -> n2 | G17: =IF(AND($C17<=2,$C17<>0),0,IF($C17=3,OFFSET(G17,-1,0)+1,OFFSET(G17,-1,0))) -> n3 | H17: =IF(AND($C17<=3,$C17<>0),0,IF($C17=4,OFFSET(H17,-1,0)+1,OFFSET(H17,-1,0))) -> n4 | I17: =IF(AND($C17<=4,$C17<>0),0,IF(AND($C17="S",$Y17>0),OFFSET(I17,-1,0)+1,OFFSET(I17,-1,0))) -> n5 | J17: =IF(OR($C17="S",$C17=0),0,MATCH(0,OFFSET($D17,1,$C17,ROW($C$911)-ROW($C17)),0)) -> 0 | K17: =IF(OR($C17="S",$C17=0),0,MATCH(OFFSET($D17,0,$C17)+1,OFFSET($D17,1,$C17,ROW($C$911)-ROW($C17)),0)) -> 0 | M17: Serviço | N17: Serviço | O17: - | P17: SINAPI | R17: (sem código) | S17: - | U17: REPET | V17: - | W17: 0 | X17: 0 | Y17: 0 | Z17: -
A18: 0 | C18: L | D18: =COUNTA(OFFSET(D18,1,0):D$911) -> 892 | E18: =LEFT(O19,1)-1 -> 0 | L18: F | M18: LOTE | N18: LOTE | O18: REFORMA E AMPLIAÇÃO - CENTRO DE ENSINO EM PERÍODO INTEGRAL PRÉ-UNIVERSITÁRIO | Z18: 996414.63
A19: 1 | B19: =IF(OR(C19="s",C19=0),OFFSET(B19,-1,0),C19) -> 1 | C19: =IF(OFFSET(C19,-1,0)="L",1,IF(OFFSET(C19,-1,0)=1,2,IF(OR(A19="s",A19=0),"S",IF(AND(OFFSET(C19,-1,0)=2,A19=4),3,IF(AND(OR(OFFSET(C19,-1,0)="s",OFFSET(C19,-1,0)=0),A19<>"s",A19>OFFSET(B19,-1,0)),OFFSET(B19,-1,0),A19))))) -> 1 | D19: =IF(OR(C19="S",C19=0),0,IF(ISERROR(K19),J19,SMALL(J19:K19,1))) -> 361 | E19: =IF($C19=1,OFFSET(E19,-1,0)+1,OFFSET(E19,-1,0)) -> 1 | F19: =IF($C19=1,0,IF($C19=2,OFFSET(F19,-1,0)+1,OFFSET(F19,-1,0))) -> 0 | G19: =IF(AND($C19<=2,$C19<>0),0,IF($C19=3,OFFSET(G19,-1,0)+1,OFFSET(G19,-1,0))) -> 0 | H19: =IF(AND($C19<=3,$C19<>0),0,IF($C19=4,OFFSET(H19,-1,0)+1,OFFSET(H19,-1,0))) -> 0 | I19: 0 | J19: =IF(OR($C19="S",$C19=0),0,MATCH(0,OFFSET($D19,1,$C19,ROW($C$911)-ROW($C19)),0)) -> 892 | K19: =IF(OR($C19="S",$C19=0),0,MATCH(OFFSET($D19,0,$C19)+1,OFFSET($D19,1,$C19,ROW($C$911)-ROW($C19)),0)) -> 361 | L19: F | M19: Nível 1 | N19: Nível 1 | O19: 1. | P19: AGETOP | R19: REFORMA | S19: UN | T19: 1 | U19: 1
A20: 2 | B20: =IF(OR(C20="s",C20=0),OFFSET(B20,-1,0),C20) -> 2 | C20: =IF(OFFSET(C20,-1,0)="L",1,IF(OFFSET(C20,-1,0)=1,2,IF(OR(A20="s",A20=0),"S",IF(AND(OFFSET(C20,-1,0)=2,A20=4),3,IF(AND(OR(OFFSET(C20,-1,0)="s",OFFSET(C20,-1,0)=0),A20<>"s",A20>OFFSET(B20,-1,0)),OFFSET(B20,-1,0),A20))))) -> 2 | D20: =IF(OR(C20="S",C20=0),0,IF(ISERROR(K20),J20,SMALL(J20:K20,1))) -> 21 | E20: =IF($C20=1,OFFSET(E20,-1,0)+1,OFFSET(E20,-1,0)) -> 1 | F20: =IF($C20=1,0,IF($C20=2,OFFSET(F20,-1,0)+1,OFFSET(F20,-1,0))) -> 1 | G20: =IF(AND($C20<=2,$C20<>0),0,IF($C20=3,OFFSET(G20,-1,0)+1,OFFSET(G20,-1,0))) -> 0 | H20: =IF(AND($C20<=3,$C20<>0),0,IF($C20=4,OFFSET(H20,-1,0)+1,OFFSET(H20,-1,0))) -> 0 | I20: 0 | J20: 360 | K20: 21 | L20: F | M20: Nível 2 | N20: Nível 2 | O20: 1.1. | P20: AGETOP | R20: SERVIÇOS PRELIMINARES | S20: - | U20: 1
A21: 3 | B21: 3 | C21: 3 | D21: 4 | E21: 1 | F21: 1 | G21: 1 | H21: 0 | I21: 0 | J21: 20 | K21: 4 | L21: F | M21: Nível 3 | N21: Nível 3 | O21: 1.1.1. | P21: SINAPI | R21: ACESSIBILIDADE | S21: - | U21: 1
A22: S | B22: 3 | C22: S | D22: 0 | E22: 1 | F22: 1 | G22: 1 | H22: 0 | I22: 0 | J22: 0 | K22: 0 | L22: F | M22: Serviço | N22: Serviço | O22: 1.1.1.0.1. | P22: SINAPI | Q22: 97645 | R22: REMOÇÃO DE JANELAS, DE FORMA MANUAL, SEM REAPROVEITAMENTO. AF_12/2017 | S22: M2 | T22: 79.14 | U22: 1 | AA22: Referência: AGETOP - 20106
A23: S | B23: 3 | C23: S | D23: 0 | E23: 1 | F23: 1 | G23: 1 | H23: 0 | I23: 0 | J23: 0 | K23: 0 | L23: F | M23: Serviço | N23: Serviço | O23: 1.1.1.0.2. | P23: SINAPI | Q23: 97622 | R23: DEMOLIÇÃO DE ALVENARIA DE BLOCO FURADO, DE FORMA MANUAL, SEM REAPROVEITAMENTO. AF_12/2017 | S23: M3 | T23: 1.8 | U23: 1 | AA23: Referência: AGETOP - 20118
A24: S | B24: 3 | C24: S | D24: 0 | E24: 1 | F24: 1 | G24: 1 | H24: 0 | I24: 0 | J24: 0 | K24: 0 | L24: F | M24: Serviço | N24: Serviço | O24: 1.1.1.0.3. | P24: AGETOP | Q24: 20128 | R24: DEM.PILAR CONC.ARM.MANUAL C/TR.ATE CB.E CARGA(OC) | S24: m3 | T24: 1.08 | U24: 1
A25: 3 | B25: 3 | C25: 3 | D25: 6 | E25: 1 | F25: 1 | G25: 2 | H25: 0 | I25: 0 | J25: 16 | K25: 6 | L25: F | M25: Nível 3 | N25: Nível 3 | O25: 1.1.2. | P25: SINAPI | R25: ANTIGA COZINHA | S25: - | U25: 1
A26: S | B26: 3 | C26: S | D26: 0 | E26: 1 | F26: 1 | G26: 2 | H26: 0 | I26: 0 | J26: 0 | K26: 0 | L26: F | M26: Serviço | N26: Serviço | O26: 1.1.2.0.1. | P26: SINAPI | Q26: 97622 | R26: DEMOLIÇÃO DE ALVENARIA DE BLOCO FURADO, DE FORMA MANUAL, SEM REAPROVEITAMENTO. AF_12/2017 | S26: M3 | T26: 2.9655 | U26: 1 | AA26: Referência: AGETOP - 20118
A27: S | B27: 3 | C27: S | D27: 0 | E27: 1 | F27: 1 | G27: 2 | H27: 0 | I27: 0 | J27: 0 | K27: 0 | L27: F | M27: Serviço | N27: Serviço | O27: 1.1.2.0.2. | P27: SINAPI | Q27: 97644 | R27: REMOÇÃO DE PORTAS, DE FORMA MANUAL, SEM REAPROVEITAMENTO. AF_12/2017 | S27: M2 | T27: 8.5 | U27: 1 | AA27: Referência: AGETOP - 20106
A28: S | B28: 3 | C28: S | D28: 0 | E28: 1 | F28: 1 | G28: 2 | H28: 0 | I28: 0 | J28: 0 | K28: 0 | L28: F | M28: Serviço | N28: Serviço | O28: 1.1.2.0.3. | P28: AGETOP | Q28: 20139 | R28: DEMOLIÇAO DE BANCADAS C/ TRANSP. ATÉ CB. E CARGA | S28: m2 | T28: 9.71 | U28: 1
A29: S | B29: 3 | C29: S | D29: 0 | E29: 1 | F29: 1 | G29: 2 | H29: 0 | I29: 0 | J29: 0 | K29: 0 | L29: F | M29: Serviço | N29: Serviço | O29: 1.1.2.0.4. | P29: AGETOP | Q29: 20163 | R29: DEMOLIÇÃO DAS INSTALAÇÕES HIDROSANITÁRIAS E AFINS C/ TRANSP. ATÉ CB. E CARGA | S29: H | T29: 3 | U29: 1
A30: S | B30: 3 | C30: S | D30: 0 | E30: 1 | F30: 1 | G30: 2 | H30: 0 | I30: 0 | J30: 0 | K30: 0 | L30: F | M30: Serviço | N30: Serviço | O30: 1.1.2.0.5. | P30: SINAPI | Q30: 97633 | R30: DEMOLIÇÃO DE REVESTIMENTO CERÂMICO, DE FORMA MANUAL, SEM REAPROVEITAMENTO. AF_12/2017 | S30: M2 | T30: 132.48 | U30: 1 | AA30: Referência: AGETOP - 20115
A31: 3 | B31: 3 | C31: 3 | D31: 5 | E31: 1 | F31: 1 | G31: 3 | H31: 0 | I31: 0 | J31: 10 | K31: 5 | L31: F | M31: Nível 3 | N31: Nível 3 | O31: 1.1.3. | P31: SINAPI | R31: SANITÁRIOS | S31: - | U31: 1
A32: S | B32: 3 | C32: S | D32: 0 | E32: 1 | F32: 1 | G32: 3 | H32: 0 | I32: 0 | J32: 0 | K32: 0 | L32: F | M32: Serviço | N32: Serviço | O32: 1.1.3.0.1. | P32: SINAPI | Q32: 97633 | R32: DEMOLIÇÃO DE REVESTIMENTO CERÂMICO, DE FORMA MANUAL, SEM REAPROVEITAMENTO. AF_12/2017 | S32: M2 | T32: 332.55 | U32: 1 | AA32: Referência: AGETOP - 20115
A33: S | B33: 3 | C33: S | D33: 0 | E33: 1 | F33: 1 | G33: 3 | H33: 0 | I33: 0 | J33: 0 | K33: 0 | L33: F | M33: Serviço | N33: Serviço | O33: 1.1.3.0.2. | P33: AGETOP | Q33: 20163 | R33: DEMOLIÇÃO DAS INSTALAÇÕES HIDROSANITÁRIAS E AFINS C/ TRANSP. ATÉ CB. E CARGA | S33: H | T33: 4 | U33: 1
A34: S | B34: 3 | C34: S | D34: 0 | E34: 1 | F34: 1 | G34: 3 | H34: 0 | I34: 0 | J34: 0 | K34: 0 | L34: F | M34: Serviço | N34: Serviço | O34: 1.1.3.0.3. | P34: AGETOP | Q34: 20140 | R34: DEMOLIÇAO DE VÁLVULA DE DESCARGA C/ TRANSP. ATÉ CB. E CARGA | S34: Un | T34: 4 | U34: 1
A35: S | B35: =IF(OR(C35="s",C35=0),OFFSET(B35,-1,0),C35) -> 3 | C35: =IF(OFFSET(C35,-1,0)="L",1,IF(OFFSET(C35,-1,0)=1,2,IF(OR(A35="s",A35=0),"S",IF(AND(OFFSET(C35,-1,0)=2,A35=4),3,IF(AND(OR(OFFSET(C35,-1,0)="s",OFFSET(C35,-1,0)=0),A35<>"s",A35>OFFSET(B35,-1,0)),OFFSET(B35,-1,0),A35))))) -> S | D35: =IF(OR(C35="S",C35=0),0,IF(ISERROR(K35),J35,SMALL(J35:K35,1))) -> 0 | E35: =IF($C35=1,OFFSET(E35,-1,0)+1,OFFSET(E35,-1,0)) -> 1 | F35: =IF($C35=1,0,IF($C35=2,OFFSET(F35,-1,0)+1,OFFSET(F35,-1,0))) -> 1 | G35: =IF(AND($C35<=2,$C35<>0),0,IF($C35=3,OFFSET(G35,-1,0)+1,OFFSET(G35,-1,0))) -> 3 | H35: =IF(AND($C35<=3,$C35<>0),0,IF($C35=4,OFFSET(H35,-1,0)+1,OFFSET(H35,-1,0))) -> 0 | I35: 0 | J35: 0 | K35: 0 | L35: F | M35: Serviço | N35: Serviço | O35: 1.1.3.0.4. | P35: SINAPI | Q35: 97644 | R35: REMOÇÃO DE PORTAS, DE FORMA MANUAL, SEM REAPROVEITAMENTO. AF_12/2017 | S35: M2 | T35: 2.64 | U35: 1 | AA35: Referência: AGETOP - 20106
A36: 3 | B36: =IF(OR(C36="s",C36=0),OFFSET(B36,-1,0),C36) -> 3 | C36: =IF(OFFSET(C36,-1,0)="L",1,IF(OFFSET(C36,-1,0)=1,2,IF(OR(A36="s",A36=0),"S",IF(AND(OFFSET(C36,-1,0)=2,A36=4),3,IF(AND(OR(OFFSET(C36,-1,0)="s",OFFSET(C36,-1,0)=0),A36<>"s",A36>OFFSET(B36,-1,0)),OFFSET(B36,-1,0),A36))))) -> 3 | D36: =IF(OR(C36="S",C36=0),0,IF(ISERROR(K36),J36,SMALL(J36:K36,1))) -> 2 | E36: 1 | F36: 1 | G36: 4 | H36: 0 | I36: 0 | J36: 5 | K36: 2 | L36: F | M36: Nível 3 | N36: Nível 3 | O36: 1.1.4. | P36: SINAPI | R36: REFORMA GERAL | S36: - | U36: 1
A37: S | B37: 3 | C37: S | D37: 0 | E37: 1 | F37: 1 | G37: 4 | H37: 0 | I37: 0 | J37: 0 | K37: 0 | L37: F | M37: Serviço | N37: Serviço | O37: 1.1.4.0.1. | P37: SINAPI | Q37: 74209/1 | R37: PLACA DE OBRA EM CHAPA DE ACO GALVANIZADO | S37: M2 | T37: 7.5 | U37: 1 | AA37: Referência: AGETOP - 21301
A38: 3 | B38: 3 | C38: 3 | D38: 3 | E38: 1 | F38: 1 | G38: 5 | H38: 0 | I38: 0 | J38: =IF(OR($C38="S",$C38=0),0,MATCH(0,OFFSET($D38,1,$C38,ROW($C$911)-ROW($C38)),0)) -> 3 | K38: =IF(OR($C38="S",$C38=0),0,MATCH(OFFSET($D38,0,$C38)+1,OFFSET($D38,1,$C38,ROW($C$911)-ROW($C38)),0)) ->  | L38: F | M38: Nível 3 | N38: Nível 3 | O38: 1.1.5. | P38: SINAPI | R38: SALA DE DIRETORIA | S38: - | U38: 1
A39: S | B39: 3 | C39: S | D39: 0 | E39: 1 | F39: 1 | G39: 5 | H39: 0 | I39: 0 | J39: 0 | K39: 0 | L39: F | M39: Serviço | N39: Serviço | O39: 1.1.5.0.1. | P39: SINAPI | Q39: 97644 | R39: REMOÇÃO DE PORTAS, DE FORMA MANUAL, SEM REAPROVEITAMENTO. AF_12/2017 | S39: M2 | T39: 1.68 | U39: 1 | AA39: Referência: AGETOP - 20106
A40: S | B40: 3 | C40: S | D40: 0 | E40: 1 | F40: 1 | G40: 5 | H40: 0 | I40: 0 | J40: 0 | K40: 0 | L40: F | M40: Serviço | N40: Serviço | O40: 1.1.5.0.2. | P40: SINAPI | Q40: 97622 | R40: DEMOLIÇÃO DE ALVENARIA DE BLOCO FURADO, DE FORMA MANUAL, SEM REAPROVEITAMENTO. AF_12/2017 | S40: M3 | T40: 0.2895 | U40: 1 | AA40: Referência: AGETOP - 20118
A41: 2 | B41: 2 | C41: 2 | D41: 3 | E41: 1 | F41: 2 | G41: 0 | H41: 0 | I41: 0 | J41: =IF(OR($C41="S",$C41=0),0,MATCH(0,OFFSET($D41,1,$C41,ROW($C$911)-ROW($C41)),0)) -> 339 | K41: =IF(OR($C41="S",$C41=0),0,MATCH(OFFSET($D41,0,$C41)+1,OFFSET($D41,1,$C41,ROW($C$911)-ROW($C41)),0)) -> 3 | L41: F | M41: Nível 2 | N41: Nível 2 | O41: 1.2. | P41: AGETOP | R41: TRANSPORTES | S41: - | U41: 1
A42: S | B42: 2 | C42: S | D42: 0 | E42: 1 | F42: 2 | G42: 0 | H42: 0 | I42: 0 | J42: 0 | K42: 0 | L42: F | M42: Serviço | N42: Serviço | O42: 1.2.0.0.1. | P42: SINAPI | Q42: 72900 | R42: TRANSPORTE DE ENTULHO COM CAMINHAO BASCULANTE 6 M3, RODOVIA PAVIMENTADA, DMT 0,5 A 1,0 KM | S42: M3 | T42: 38.3976 | U42: 1
A43: S | B43: =IF(OR(C43="s",C43=0),OFFSET(B43,-1,0),C43) -> 2 | C43: =IF(OFFSET(C43,-1,0)="L",1,IF(OFFSET(C43,-1,0)=1,2,IF(OR(A43="s",A43=0),"S",IF(AND(OFFSET(C43,-1,0)=2,A43=4),3,IF(AND(OR(OFFSET(C43,-1,0)="s",OFFSET(C43,-1,0)=0),A43<>"s",A43>OFFSET(B43,-1,0)),OFFSET(B43,-1,0),A43))))) -> S | D43: =IF(OR(C43="S",C43=0),0,IF(ISERROR(K43),J43,SMALL(J43:K43,1))) -> 0 | E43: =IF($C43=1,OFFSET(E43,-1,0)+1,OFFSET(E43,-1,0)) -> 1 | F43: =IF($C43=1,0,IF($C43=2,OFFSET(F43,-1,0)+1,OFFSET(F43,-1,0))) -> 2 | G43: =IF(AND($C43<=2,$C43<>0),0,IF($C43=3,OFFSET(G43,-1,0)+1,OFFSET(G43,-1,0))) -> 0 | H43: =IF(AND($C43<=3,$C43<>0),0,IF($C43=4,OFFSET(H43,-1,0)+1,OFFSET(H43,-1,0))) -> 0 | I43: 0 | J43: 0 | K43: 0 | L43: F | M43: Serviço | N43: Serviço | O43: 1.2.0.0.2. | P43: SINAPI | Q43: 72897 | R43: CARGA MANUAL DE ENTULHO EM CAMINHAO BASCULANTE 6 M3 | S43: M3 | T43: 38.3976 | U43: 1
A44: 2 | B44: 2 | C44: 2 | D44: 14 | E44: 1 | F44: 3 | G44: 0 | H44: 0 | I44: 0 | J44: 336 | K44: 14 | L44: F | M44: Nível 2 | N44: Nível 2 | O44: 1.3. | P44: AGETOP | R44: SERVIÇO EM TERRA | S44: - | U44: 1
A45: 3 | B45: 3 | C45: 3 | D45: 13 | E45: 1 | F45: 3 | G45: 1 | H45: 0 | I45: 0 | J45: 13 | K45: 22 | L45: F | M45: Nível 3 | N45: Nível 3 | O45: 1.3.1. | R45: AQUISIÇÃO DE TERRA (SOMENTE ATERRO) | S45: - | U45: 1
A46: 4 | B46: =IF(OR(C46="s",C46=0),OFFSET(B46,-1,0),C46) -> 4 | C46: =IF(OFFSET(C46,-1,0)="L",1,IF(OFFSET(C46,-1,0)=1,2,IF(OR(A46="s",A46=0),"S",IF(AND(OFFSET(C46,-1,0)=2,A46=4),3,IF(AND(OR(OFFSET(C46,-1,0)="s",OFFSET(C46,-1,0)=0),A46<>"s",A46>OFFSET(B46,-1,0)),OFFSET(B46,-1,0),A46))))) -> 4 | D46: =IF(OR(C46="S",C46=0),0,IF(ISERROR(K46),J46,SMALL(J46:K46,1))) -> 6 | E46: =IF($C46=1,OFFSET(E46,-1,0)+1,OFFSET(E46,-1,0)) -> 1 | F46: =IF($C46=1,0,IF($C46=2,OFFSET(F46,-1,0)+1,OFFSET(F46,-1,0))) -> 3 | G46: =IF(AND($C46<=2,$C46<>0),0,IF($C46=3,OFFSET(G46,-1,0)+1,OFFSET(G46,-1,0))) -> 1 | H46: =IF(AND($C46<=3,$C46<>0),0,IF($C46=4,OFFSET(H46,-1,0)+1,OFFSET(H46,-1,0))) -> 1 | I46: 0 | J46: 12 | K46: 6 | L46: F | M46: Nível 4 | N46: Nível 4 | O46: 1.3.1.1. | P46: SINAPI | R46: ACESSIBILIDADE | S46: - | U46: 1
A47: S | B47: 4 | C47: S | D47: 0 | E47: 1 | F47: 3 | G47: 1 | H47: 1 | I47: 0 | J47: 0 | K47: 0 | L47: F | M47: Serviço | N47: Serviço | O47: 1.3.1.1.1. | P47: SINAPI | Q47: 79480 | R47: ESCAVACAO MECANICA CAMPO ABERTO EM SOLO EXCETO ROCHA ATE 2,00M PROFUNDIDADE | S47: M3 | T47: 3.194 | U47: 1 | AA47: Referência: AGETOP - 41004
A48: S | B48: 4 | C48: S | D48: 0 | E48: 1 | F48: 3 | G48: 1 | H48: 1 | I48: 0 | J48: 0 | K48: 0 | L48: F | M48: Serviço | N48: Serviço | O48: 1.3.1.1.2. | P48: SINAPI | Q48: 72898 | R48: CARGA E DESCARGA MECANIZADAS DE ENTULHO EM CAMINHAO BASCULANTE 6 M3 | S48: M3 | T48: 3.9875 | U48: 1 | AA48: Referência: AGETOP - 41005
A49: S | B49: 4 | C49: S | D49: 0 | E49: 1 | F49: 3 | G49: 1 | H49: 1 | I49: 0 | J49: 0 | K49: 0 | L49: F | M49: Serviço | N49: Serviço | O49: 1.3.1.1.3. | P49: AGETOP | Q49: 41012 | R49: INDENIZAÇÃO DE JAZIDA | S49: m3 | T49: 3.9875 | U49: 1
A50: S | B50: 4 | C50: S | D50: 0 | E50: 1 | F50: 3 | G50: 1 | H50: 1 | I50: 0 | J50: 0 | K50: 0 | L50: F | M50: Serviço | N50: Serviço | O50: 1.3.1.1.4. | P50: AGETOP | Q50: 41006 | R50: TRANSPORTE DE MATERIAL ESCAVADO M3.KM | S50: m3km | T50: 31.9 | U50: 1
A51: S | B51: 4 | C51: S | D51: 0 | E51: 1 | F51: 3 | G51: 1 | H51: 1 | I51: 0 | J51: 0 | K51: 0 | L51: F | M51: Serviço | N51: Serviço | O51: 1.3.1.1.5. | P51: SINAPI | Q51: 74005/2 | R51: COMPACTACAO MECANICA C/ CONTROLE DO GC>=95% DO PN (AREAS) (C/MONIVELADORA 140 HP E ROLO COMPRESSOR VIBRATORIO 80 HP) | S51: M3 | T51: 3.9875 | U51: 1 | AA51: Referência: AGETOP - 41008
A52: 4 | B52: 4 | C52: 4 | D52: 6 | E52: 1 | F52: 3 | G52: 1 | H52: 2 | I52: 0 | J52: 6 | K52: 123 | L52: F | M52: Nível 4 | N52: Nível 4 | O52: 1.3.1.2. | R52: ACESSIBILIDADE - RAMPA | S52: - | U52: 1
A53: S | B53: 4 | C53: S | D53: 0 | E53: 1 | F53: 3 | G53: 1 | H53: 2 | I53: 0 | J53: 0 | K53: 0 | L53: F | M53: Serviço | N53: Serviço | O53: 1.3.1.2.1. | P53: SINAPI | Q53: 79480 | R53: ESCAVACAO MECANICA CAMPO ABERTO EM SOLO EXCETO ROCHA ATE 2,00M PROFUNDIDADE | S53: M3 | T53: 0.34 | U53: 1 | AA53: Referência: AGETOP - 41004
A54: S | B54: 4 | C54: S | D54: 0 | E54: 1 | F54: 3 | G54: 1 | H54: 2 | I54: 0 | J54: 0 | K54: 0 | L54: F | M54: Serviço | N54: Serviço | O54: 1.3.1.2.2. | P54: SINAPI | Q54: 72898 | R54: CARGA E DESCARGA MECANIZADAS DE ENTULHO EM CAMINHAO BASCULANTE 6 M3 | S54: M3 | T54: 0.425 | U54: 1 | AA54: Referência: AGETOP - 41005
A55: S | B55: 4 | C55: S | D55: 0 | E55: 1 | F55: 3 | G55: 1 | H55: 2 | I55: 0 | J55: 0 | K55: 0 | L55: F | M55: Serviço | N55: Serviço | O55: 1.3.1.2.3. | P55: AGETOP | Q55: 41012 | R55: INDENIZAÇÃO DE JAZIDA | S55: m3 | T55: 0.43 | U55: 1
A56: S | B56: 4 | C56: S | D56: 0 | E56: 1 | F56: 3 | G56: 1 | H56: 2 | I56: 0 | J56: 0 | K56: 0 | L56: F | M56: Serviço | N56: Serviço | O56: 1.3.1.2.4. | P56: AGETOP | Q56: 41006 | R56: TRANSPORTE DE MATERIAL ESCAVADO M3.KM | S56: m3km | T56: 3.4 | U56: 1
A57: S | B57: 4 | C57: S | D57: 0 | E57: 1 | F57: 3 | G57: 1 | H57: 2 | I57: 0 | J57: 0 | K57: 0 | L57: F | M57: Serviço | N57: Serviço | O57: 1.3.1.2.5. | P57: SINAPI | Q57: 74005/2 | R57: COMPACTACAO MECANICA C/ CONTROLE DO GC>=95% DO PN (AREAS) (C/MONIVELADORA 140 HP E ROLO COMPRESSOR VIBRATORIO 80 HP) | S57: M3 | T57: 0.425 | U57: 1 | AA57: Referência: AGETOP - 41008
A58: =CHOOSE(1+LOG(1+2*(ORÇAMENTO.Nivel="Nível 1")+4*(ORÇAMENTO.Nivel="Nível 2")+8*(ORÇAMENTO.Nivel="Nível 3")+16*(ORÇAMENTO.Nivel="Nível 4")+32*(ORÇAMENTO.Nivel="Serviço"),2),0,1,2,3,4,"S") -> 2 | B58: =IF(OR(C58="s",C58=0),OFFSET(B58,-1,0),C58) -> 2 | C58: =IF(OFFSET(C58,-1,0)="L",1,IF(OFFSET(C58,-1,0)=1,2,IF(OR(A58="s",A58=0),"S",IF(AND(OFFSET(C58,-1,0)=2,A58=4),3,IF(AND(OR(OFFSET(C58,-1,0)="s",OFFSET(C58,-1,0)=0),A58<>"s",A58>OFFSET(B58,-1,0)),OFFSET(B58,-1,0),A58))))) -> 2 | D58: =IF(OR(C58="S",C58=0),0,IF(ISERROR(K58),J58,SMALL(J58:K58,1))) -> 17 | E58: =IF($C58=1,OFFSET(E58,-1,0)+1,OFFSET(E58,-1,0)) -> 1 | F58: =IF($C58=1,0,IF($C58=2,OFFSET(F58,-1,0)+1,OFFSET(F58,-1,0))) -> 4 | G58: =IF(AND($C58<=2,$C58<>0),0,IF($C58=3,OFFSET(G58,-1,0)+1,OFFSET(G58,-1,0))) -> 0 | H58: =IF(AND($C58<=3,$C58<>0),0,IF($C58=4,OFFSET(H58,-1,0)+1,OFFSET(H58,-1,0))) -> 0 | I58: =IF(AND($C58<=4,$C58<>0),0,IF(AND($C58="S",$Y58>0),OFFSET(I58,-1,0)+1,OFFSET(I58,-1,0))) -> 0 | J58: 322 | K58: 17 | L58: F | M58: Nível 2 | N58: Nível 2 | O58: 1.4. | P58: AGETOP | R58: FUNDAÇÕES E SONDAGENS | S58: - | U58: 1
A59: 3 | B59: 3 | C59: 3 | D59: 8 | E59: 1 | F59: 4 | G59: 1 | H59: 0 | I59: 0 | J59: 16 | K59: 8 | L59: F | M59: Nível 3 | N59: Nível 3 | O59: 1.4.1. | P59: SINAPI | R59: ESTACAS E BLOCOS | S59: - | U59: 1
A60: S | B60: 3 | C60: S | D60: 0 | E60: 1 | F60: 4 | G60: 1 | H60: 0 | I60: 0 | J60: 0 | K60: 0 | L60: F | M60: Serviço | N60: Serviço | O60: 1.4.1.0.1. | P60: COMPOSIÇÃO | Q60: COMP 199_SEE | R60: ESTACA A TRADO DIAM.40 CM S/FERRO | S60: M | T60: 17.5 | U60: 1
A61: S | B61: 3 | C61: S | D61: 0 | E61: 1 | F61: 4 | G61: 1 | H61: 0 | I61: 0 | J61: 0 | K61: 0 | L61: F | M61: Serviço | N61: Serviço | O61: 1.4.1.0.2. | P61: SINAPI | Q61: 96522 | R61: ESCAVAÇÃO MANUAL PARA BLOCO DE COROAMENTO OU SAPATA, SEM PREVISÃO DE FÔRMA. AF_06/2017 | S61: M3 | T61: 7.46 | U61: 1 | AA61: Referência: AGETOP - 50901
A62: S | B62: 3 | C62: S | D62: 0 | E62: 1 | F62: 4 | G62: 1 | H62: 0 | I62: 0 | J62: 0 | K62: 0 | L62: F | M62: Serviço | N62: Serviço | O62: 1.4.1.0.3. | P62: SINAPI | Q62: 94963 | R62: CONCRETO FCK = 15MPA, TRAÇO 1:3,4:3,5 (CIMENTO/ AREIA MÉDIA/ BRITA 1) - PREPARO MECÂNICO COM BETONEIRA 400 L. AF_07/2016 | S62: M3 | T62: 7.46 | U62: 1
A63: S | B63: 3 | C63: S | D63: 0 | E63: 1 | F63: 4 | G63: 1 | H63: 0 | I63: 0 | J63: 0 | K63: 0 | L63: F | M63: Serviço | N63: Serviço | O63: 1.4.1.0.4. | P63: SINAPI | Q63: 74157/4 | R63: LANCAMENTO/APLICACAO MANUAL DE CONCRETO EM FUNDACOES | S63: M3 | T63: 7.46 | U63: 1 | AA63: Referência: AGETOP - 51026
A64: S | B64: 3 | C64: S | D64: 0 | E64: 1 | F64: 4 | G64: 1 | H64: 0 | I64: 0 | J64: 0 | K64: 0 | L64: F | M64: Serviço | N64: Serviço | O64: 1.4.1.0.5. | P64: SINAPI | Q64: 96545 | R64: ARMAÇÃO DE BLOCO, VIGA BALDRAME OU SAPATA UTILIZANDO AÇO CA-50 DE 8 MM - MONTAGEM. AF_06/2017 | S64: KG | T64: 30 | U64: 1 | AA64: Referência: AGETOP - 52004
A65: S | B65: 3 | C65: S | D65: 0 | E65: 1 | F65: 4 | G65: 1 | H65: 0 | I65: 0 | J65: 0 | K65: 0 | L65: F | M65: Serviço | N65: Serviço | O65: 1.4.1.0.6. | P65: SINAPI | Q65: 96546 | R65: ARMAÇÃO DE BLOCO, VIGA BALDRAME OU SAPATA UTILIZANDO AÇO CA-50 DE 10 MM - MONTAGEM. AF_06/2017 | S65: KG | T65: 57 | U65: 1 | AA65: Referência: AGETOP - 52005
A66: S | B66: 3 | C66: S | D66: 0 | E66: 1 | F66: 4 | G66: 1 | H66: 0 | I66: 0 | J66: 0 | K66: 0 | L66: F | M66: Serviço | N66: Serviço | O66: 1.4.1.0.7. | P66: SINAPI | Q66: 96543 | R66: ARMAÇÃO DE BLOCO, VIGA BALDRAME E SAPATA UTILIZANDO AÇO CA-60 DE 5 MM - MONTAGEM. AF_06/2017 | S66: KG | T66: 22 | U66: 1 | AA66: Referência: AGETOP - 52014
A67: 3 | B67: 3 | C67: 3 | D67: 8 | E67: 1 | F67: 4 | G67: 2 | H67: 0 | I67: 0 | J67: 8 | K67: 37 | L67: F | M67: Nível 3 | N67: Nível 3 | O67: 1.4.2. | P67: SINAPI | R67: VIGAS BALDRAMES | S67: - | U67: 1
A68: S | B68: 3 | C68: S | D68: 0 | E68: 1 | F68: 4 | G68: 2 | H68: 0 | I68: 0 | J68: 0 | K68: 0 | L68: F | M68: Serviço | N68: Serviço | O68: 1.4.2.0.1. | P68: SINAPI | Q68: 96527 | R68: ESCAVAÇÃO MANUAL DE VALA PARA VIGA BALDRAME, COM PREVISÃO DE FÔRMA. AF_06/2017 | S68: M3 | T68: 0.96 | U68: 1 | AA68: Referência: AGETOP - 40101
A69: S | B69: 3 | C69: S | D69: 0 | E69: 1 | F69: 4 | G69: 2 | H69: 0 | I69: 0 | J69: 0 | K69: 0 | L69: F | M69: Serviço | N69: Serviço | O69: 1.4.2.0.2. | P69: AGETOP | Q69: 60191 | R69: FORMA DE TABUA CINTA BALDRAME U=8 VEZES | S69: m2 | T69: 36.61 | U69: 1
A70: S | B70: 3 | C70: S | D70: 0 | E70: 1 | F70: 4 | G70: 2 | H70: 0 | I70: 0 | J70: 0 | K70: 0 | L70: F | M70: Serviço | N70: Serviço | O70: 1.4.2.0.3. | P70: SINAPI | Q70: 94963 | R70: CONCRETO FCK = 15MPA, TRAÇO 1:3,4:3,5 (CIMENTO/ AREIA MÉDIA/ BRITA 1) - PREPARO MECÂNICO COM BETONEIRA 400 L. AF_07/2016 | S70: M3 | T70: 2.09 | U70: 1
A71: S | B71: 3 | C71: S | D71: 0 | E71: 1 | F71: 4 | G71: 2 | H71: 0 | I71: 0 | J71: 0 | K71: 0 | L71: F | M71: Serviço | N71: Serviço | O71: 1.4.2.0.4. | P71: SINAPI | Q71: 74157/4 | R71: LANCAMENTO/APLICACAO MANUAL DE CONCRETO EM FUNDACOES | S71: M3 | T71: 2.09 | U71: 1 | AA71: Referência: AGETOP - 51026
A72: S | B72: 3 | C72: S | D72: 0 | E72: 1 | F72: 4 | G72: 2 | H72: 0 | I72: 0 | J72: 0 | K72: 0 | L72: F | M72: Serviço | N72: Serviço | O72: 1.4.2.0.5. | P72: SINAPI | Q72: 96545 | R72: ARMAÇÃO DE BLOCO, VIGA BALDRAME OU SAPATA UTILIZANDO AÇO CA-50 DE 8 MM - MONTAGEM. AF_06/2017 | S72: KG | T72: 88 | U72: 1 | AA72: Referência: AGETOP - 52004
A73: S | B73: 3 | C73: S | D73: 0 | E73: 1 | F73: 4 | G73: 2 | H73: 0 | I73: 0 | J73: 0 | K73: 0 | L73: F | M73: Serviço | N73: Serviço | O73: 1.4.2.0.6. | P73: SINAPI | Q73: 96546 | R73: ARMAÇÃO DE BLOCO, VIGA BALDRAME OU SAPATA UTILIZANDO AÇO CA-50 DE 10 MM - MONTAGEM. AF_06/2017 | S73: KG | T73: 25 | U73: 1 | AA73: Referência: AGETOP - 52005
A74: S | B74: 3 | C74: S | D74: 0 | E74: 1 | F74: 4 | G74: 2 | H74: 0 | I74: 0 | J74: 0 | K74: 0 | L74: F | M74: Serviço | N74: Serviço | O74: 1.4.2.0.7. | P74: SINAPI | Q74: 96543 | R74: ARMAÇÃO DE BLOCO, VIGA BALDRAME E SAPATA UTILIZANDO AÇO CA-60 DE 5 MM - MONTAGEM. AF_06/2017 | S74: KG | T74: 50 | U74: 1 | AA74: Referência: AGETOP - 52014
A75: 2 | B75: 2 | C75: 2 | D75: 14 | E75: 1 | F75: 5 | G75: 0 | H75: 0 | I75: 0 | J75: 305 | K75: 14 | L75: F | M75: Nível 2 | N75: Nível 2 | O75: 1.5. | P75: AGETOP | R75: ESTRUTURA | S75: - | U75: 1
A76: 3 | B76: 3 | C76: 3 | D76: 7 | E76: 1 | F76: 5 | G76: 1 | H76: 0 | I76: 0 | J76: 13 | K76: 7 | L76: F | M76: Nível 3 | N76: Nível 3 | O76: 1.5.1. | P76: AGETOP | R76: PILAR | S76: - | U76: 1
A77: S | B77: 3 | C77: S | D77: 0 | E77: 1 | F77: 5 | G77: 1 | H77: 0 | I77: 0 | J77: 0 | K77: 0 | L77: F | M77: Serviço | N77: Serviço | O77: 1.5.1.0.1. | P77: SINAPI | Q77: 92426 | R77: MONTAGEM E DESMONTAGEM DE FÔRMA DE PILARES RETANGULARES E ESTRUTURAS SIMILARES COM ÁREA MÉDIA DAS SEÇÕES MENOR OU IGUAL A 0,25 M², PÉ-DIREITO SIMPLES, EM CHAPA DE MADEIRA COMPENSADA RESINADA, 8 UTILIZAÇÕES. AF_12/2015 | S77: M2 | T77: 21.63 | U77: 1
A78: S | B78: 3 | C78: S | D78: 0 | E78: 1 | F78: 5 | G78: 1 | H78: 0 | I78: 0 | J78: 0 | K78: 0 | L78: F | M78: Serviço | N78: Serviço | O78: 1.5.1.0.2. | P78: SINAPI | Q78: 94964 | R78: CONCRETO FCK = 20MPA, TRAÇO 1:2,7:3 (CIMENTO/ AREIA MÉDIA/ BRITA 1) - PREPARO MECÂNICO COM BETONEIRA 400 L. AF_07/2016 | S78: M3 | T78: 2.27 | U78: 1
A79: S | B79: 3 | C79: S | D79: 0 | E79: 1 | F79: 5 | G79: 1 | H79: 0 | I79: 0 | J79: 0 | K79: 0 | L79: F | M79: Serviço | N79: Serviço | O79: 1.5.1.0.3. | P79: SINAPI | Q79: 92873 | R79: LANÇAMENTO COM USO DE BALDES, ADENSAMENTO E ACABAMENTO DE CONCRETO EM ESTRUTURAS. AF_12/2015 | S79: M3 | T79: 2.27 | U79: 1 | AA79: Referência: AGETOP - 60801
A80: S | B80: =IF(OR(C80="s",C80=0),OFFSET(B80,-1,0),C80) -> 3 | C80: =IF(OFFSET(C80,-1,0)="L",1,IF(OFFSET(C80,-1,0)=1,2,IF(OR(A80="s",A80=0),"S",IF(AND(OFFSET(C80,-1,0)=2,A80=4),3,IF(AND(OR(OFFSET(C80,-1,0)="s",OFFSET(C80,-1,0)=0),A80<>"s",A80>OFFSET(B80,-1,0)),OFFSET(B80,-1,0),A80))))) -> S | D80: =IF(OR(C80="S",C80=0),0,IF(ISERROR(K80),J80,SMALL(J80:K80,1))) -> 0 | E80: =IF($C80=1,OFFSET(E80,-1,0)+1,OFFSET(E80,-1,0)) -> 1 | F80: =IF($C80=1,0,IF($C80=2,OFFSET(F80,-1,0)+1,OFFSET(F80,-1,0))) -> 5 | G80: =IF(AND($C80<=2,$C80<>0),0,IF($C80=3,OFFSET(G80,-1,0)+1,OFFSET(G80,-1,0))) -> 1 | H80: =IF(AND($C80<=3,$C80<>0),0,IF($C80=4,OFFSET(H80,-1,0)+1,OFFSET(H80,-1,0))) -> 0 | I80: 0 | J80: 0 | K80: 0 | L80: F | M80: Serviço | N80: Serviço | O80: 1.5.1.0.4. | P80: SINAPI | Q80: 92777 | R80: ARMAÇÃO DE PILAR OU VIGA DE UMA ESTRUTURA CONVENCIONAL DE CONCRETO ARMADO EM UMA EDIFICAÇÃO TÉRREA OU SOBRADO UTILIZANDO AÇO CA-50 DE 8,0 MM - MONTAGEM. AF_12/2015 | S80: KG | T80: 104 | U80: 1 | AA80: Referência: AGETOP - 60304
A81: S | B81: 3 | C81: S | D81: 0 | E81: 1 | F81: 5 | G81: 1 | H81: 0 | I81: 0 | J81: 0 | K81: 0 | L81: F | M81: Serviço | N81: Serviço | O81: 1.5.1.0.5. | P81: SINAPI | Q81: 92778 | R81: ARMAÇÃO DE PILAR OU VIGA DE UMA ESTRUTURA CONVENCIONAL DE CONCRETO ARMADO EM UMA EDIFICAÇÃO TÉRREA OU SOBRADO UTILIZANDO AÇO CA-50 DE 10,0 MM - MONTAGEM. AF_12/2015 | S81: KG | T81: 206 | U81: 1 | AA81: Referência: AGETOP - 60305
A82: S | B82: 3 | C82: S | D82: 0 | E82: 1 | F82: 5 | G82: 1 | H82: 0 | I82: 0 | J82: 0 | K82: 0 | L82: F | M82: Serviço | N82: Serviço | O82: 1.5.1.0.6. | P82: SINAPI | Q82: 92775 | R82: ARMAÇÃO DE PILAR OU VIGA DE UMA ESTRUTURA CONVENCIONAL DE CONCRETO ARMADO EM UMA EDIFICAÇÃO TÉRREA OU SOBRADO UTILIZANDO AÇO CA-60 DE 5,0 MM - MONTAGEM. AF_12/2015 | S82: KG | T82: 133 | U82: 1 | AA82: Referência: AGETOP - 60314
A83: 3 | B83: 3 | C83: 3 | D83: 6 | E83: 1 | F83: 5 | G83: 2 | H83: 0 | I83: 0 | J83: 6 | K83: 21 | L83: F | M83: Nível 3 | N83: Nível 3 | O83: 1.5.2. | R83: VIGA DE COBERTURA | S83: - | U83: 1
A84: S | B84: 3 | C84: S | D84: 0 | E84: 1 | F84: 5 | G84: 2 | H84: 0 | I84: 0 | J84: 0 | K84: 0 | L84: F | M84: Serviço | N84: Serviço | O84: 1.5.2.0.1. | P84: SINAPI | Q84: 92464 | R84: MONTAGEM E DESMONTAGEM DE FÔRMA DE VIGA, ESCORAMENTO METÁLICO, PÉ-DIREITO SIMPLES, EM CHAPA DE MADEIRA RESINADA, 8 UTILIZAÇÕES. AF_12/2015 | S84: M2 | T84: 11.12 | U84: 1 | AA84: Referência: AGETOP - 60209
A85: S | B85: 3 | C85: S | D85: 0 | E85: 1 | F85: 5 | G85: 2 | H85: 0 | I85: 0 | J85: 0 | K85: 0 | L85: F | M85: Serviço | N85: Serviço | O85: 1.5.2.0.2. | P85: SINAPI | Q85: 94964 | R85: CONCRETO FCK = 20MPA, TRAÇO 1:2,7:3 (CIMENTO/ AREIA MÉDIA/ BRITA 1) - PREPARO MECÂNICO COM BETONEIRA 400 L. AF_07/2016 | S85: M3 | T85: 0.64 | U85: 1
A86: S | B86: 3 | C86: S | D86: 0 | E86: 1 | F86: 5 | G86: 2 | H86: 0 | I86: 0 | J86: 0 | K86: 0 | L86: F | M86: Serviço | N86: Serviço | O86: 1.5.2.0.3. | P86: SINAPI | Q86: 92873 | R86: LANÇAMENTO COM USO DE BALDES, ADENSAMENTO E ACABAMENTO DE CONCRETO EM ESTRUTURAS. AF_12/2015 | S86: M3 | T86: 0.64 | U86: 1 | AA86: Referência: AGETOP - 60801
A87: =CHOOSE(1+LOG(1+2*(ORÇAMENTO.Nivel="Nível 1")+4*(ORÇAMENTO.Nivel="Nível 2")+8*(ORÇAMENTO.Nivel="Nível 3")+16*(ORÇAMENTO.Nivel="Nível 4")+32*(ORÇAMENTO.Nivel="Serviço"),2),0,1,2,3,4,"S") -> S | B87: 3 | C87: S | D87: 0 | E87: 1 | F87: 5 | G87: 2 | H87: 0 | I87: =IF(AND($C87<=4,$C87<>0),0,IF(AND($C87="S",$Y87>0),OFFSET(I87,-1,0)+1,OFFSET(I87,-1,0))) -> 0 | J87: 0 | K87: 0 | L87: F | M87: Serviço | N87: Serviço | O87: 1.5.2.0.4. | P87: SINAPI | Q87: 92777 | R87: ARMAÇÃO DE PILAR OU VIGA DE UMA ESTRUTURA CONVENCIONAL DE CONCRETO ARMADO EM UMA EDIFICAÇÃO TÉRREA OU SOBRADO UTILIZANDO AÇO CA-50 DE 8,0 MM - MONTAGEM. AF_12/2015 | S87: KG | T87: 28 | U87: 1 | AA87: Referência: AGETOP - 60304
A88: S | B88: 3 | C88: S | D88: 0 | E88: =IF($C88=1,OFFSET(E88,-1,0)+1,OFFSET(E88,-1,0)) -> 1 | F88: =IF($C88=1,0,IF($C88=2,OFFSET(F88,-1,0)+1,OFFSET(F88,-1,0))) -> 5 | G88: =IF(AND($C88<=2,$C88<>0),0,IF($C88=3,OFFSET(G88,-1,0)+1,OFFSET(G88,-1,0))) -> 2 | H88: =IF(AND($C88<=3,$C88<>0),0,IF($C88=4,OFFSET(H88,-1,0)+1,OFFSET(H88,-1,0))) -> 0 | I88: 0 | J88: 0 | K88: 0 | L88: F | M88: Serviço | N88: Serviço | O88: 1.5.2.0.5. | P88: SINAPI | Q88: 92775 | R88: ARMAÇÃO DE PILAR OU VIGA DE UMA ESTRUTURA CONVENCIONAL DE CONCRETO ARMADO EM UMA EDIFICAÇÃO TÉRREA OU SOBRADO UTILIZANDO AÇO CA-60 DE 5,0 MM - MONTAGEM. AF_12/2015 | S88: KG | T88: 14 | U88: 1 | AA88: Referência: AGETOP - 60314
A89: 2 | B89: =IF(OR(C89="s",C89=0),OFFSET(B89,-1,0),C89) -> 2 | C89: =IF(OFFSET(C89,-1,0)="L",1,IF(OFFSET(C89,-1,0)=1,2,IF(OR(A89="s",A89=0),"S",IF(AND(OFFSET(C89,-1,0)=2,A89=4),3,IF(AND(OR(OFFSET(C89,-1,0)="s",OFFSET(C89,-1,0)=0),A89<>"s",A89>OFFSET(B89,-1,0)),OFFSET(B89,-1,0),A89))))) -> 2 | D89: =IF(OR(C89="S",C89=0),0,IF(ISERROR(K89),J89,SMALL(J89:K89,1))) -> 73 | E89: 1 | F89: 6 | G89: 0 | H89: 0 | I89: 0 | J89: 291 | K89: 73 | L89: F | M89: Nível 2 | N89: Nível 2 | O89: 1.6. | R89: INSTALAÇÕES ELÉTRICAS | S89: - | U89: 1
A90: 3 | B90: =IF(OR(C90="s",C90=0),OFFSET(B90,-1,0),C90) -> 3 | C90: =IF(OFFSET(C90,-1,0)="L",1,IF(OFFSET(C90,-1,0)=1,2,IF(OR(A90="s",A90=0),"S",IF(AND(OFFSET(C90,-1,0)=2,A90=4),3,IF(AND(OR(OFFSET(C90,-1,0)="s",OFFSET(C90,-1,0)=0),A90<>"s",A90>OFFSET(B90,-1,0)),OFFSET(B90,-1,0),A90))))) -> 3 | D90: =IF(OR(C90="S",C90=0),0,IF(ISERROR(K90),J90,SMALL(J90:K90,1))) -> 4 | E90: =IF($C90=1,OFFSET(E90,-1,0)+1,OFFSET(E90,-1,0)) -> 1 | F90: =IF($C90=1,0,IF($C90=2,OFFSET(F90,-1,0)+1,OFFSET(F90,-1,0))) -> 6 | G90: =IF(AND($C90<=2,$C90<>0),0,IF($C90=3,OFFSET(G90,-1,0)+1,OFFSET(G90,-1,0))) -> 1 | H90: =IF(AND($C90<=3,$C90<>0),0,IF($C90=4,OFFSET(H90,-1,0)+1,OFFSET(H90,-1,0))) -> 0 | I90: 0 | J90: 72 | K90: 4 | L90: F | M90: Nível 3 | N90: Nível 3 | O90: 1.6.1. | P90: SINAPI | R90: SUBESTAÇÃO | S90: - | U90: 1
A91: S | B91: 3 | C91: S | D91: 0 | E91: 1 | F91: 6 | G91: 1 | H91: 0 | I91: 0 | J91: 0 | K91: 0 | L91: F | M91: Serviço | N91: Serviço | O91: 1.6.1.0.1. | P91: AGETOP | Q91: 70268 | R91: BARRA DE COBRE 2" X 3/16" (2,0865 KG/M) | S91: m | T91: 1.5 | U91: 1
A92: S | B92: 3 | C92: S | D92: 0 | E92: 1 | F92: 6 | G92: 1 | H92: 0 | I92: 0 | J92: 0 | K92: 0 | L92: F | M92: Serviço | N92: Serviço | O92: 1.6.1.0.2. | P92: AGETOP | Q92: 71186 | R92: DISPOSITIVO DE PROTEÇÃO CONTRA SURTOS (D.P.S.) 275V DE 90KA | S92: Un | T92: 3 | U92: 1
A93: S | B93: 3 | C93: S | D93: 0 | E93: 1 | F93: 6 | G93: 1 | H93: 0 | I93: 0 | J93: 0 | K93: 0 | L93: F | M93: Serviço | N93: Serviço | O93: 1.6.1.0.3. | P93: AGETOP | Q93: 71380 | R93: HASTE REV.COBRE(COPPERWELD) 3/4" X 2,40 M C/CONECTOR | S93: Un | T93: 4 | U93: 1
A94: 3 | B94: 3 | C94: 3 | D94: 10 | E94: 1 | F94: 6 | G94: 2 | H94: 0 | I94: 0 | J94: 68 | K94: 10 | L94: F | M94: Nível 3 | N94: Nível 3 | O94: 1.6.2. | P94: SINAPI | R94: QUADRO DE DISTRIBUIÇÃO | S94: - | U94: 1
A95: S | B95: 3 | C95: S | D95: 0 | E95: 1 | F95: 6 | G95: 2 | H95: 0 | I95: 0 | J95: 0 | K95: 0 | L95: F | M95: Serviço | N95: Serviço | O95: 1.6.2.0.1. | P95: SINAPI | Q95: 74131/4 | R95: QUADRO DE DISTRIBUICAO DE ENERGIA DE EMBUTIR, EM CHAPA METALICA, PARA 18 DISJUNTORES TERMOMAGNETICOS MONOPOLARES, COM BARRAMENTO TRIFASICO E NEUTRO, FORNECIMENTO E INSTALACAO | S95: UN | T95: 6 | U95: 1
A96: S | B96: 3 | C96: S | D96: 0 | E96: 1 | F96: 6 | G96: 2 | H96: 0 | I96: 0 | J96: 0 | K96: 0 | L96: F | M96: Serviço | N96: Serviço | O96: 1.6.2.0.2. | P96: SINAPI | Q96: 74131/5 | R96: QUADRO DE DISTRIBUICAO DE ENERGIA DE EMBUTIR, EM CHAPA METALICA, PARA 24 DISJUNTORES TERMOMAGNETICOS MONOPOLARES, COM BARRAMENTO TRIFASICO E NEUTRO, FORNECIMENTO E INSTALACAO | S96: UN | T96: 3 | U96: 1
A97: S | B97: 3 | C97: S | D97: 0 | E97: 1 | F97: 6 | G97: 2 | H97: 0 | I97: 0 | J97: 0 | K97: 0 | L97: F | M97: Serviço | N97: Serviço | O97: 1.6.2.0.3. | P97: SINAPI | Q97: 93671 | R97: DISJUNTOR TRIPOLAR TIPO DIN, CORRENTE NOMINAL DE 32A - FORNECIMENTO E INSTALAÇÃO. AF_04/2016 | S97: UN | T97: 4 | U97: 1 | AA97: Referência: AGETOP - 71173
A98: S | B98: 3 | C98: S | D98: 0 | E98: 1 | F98: 6 | G98: 2 | H98: 0 | I98: 0 | J98: 0 | K98: 0 | L98: F | M98: Serviço | N98: Serviço | O98: 1.6.2.0.4. | P98: SINAPI | Q98: 93672 | R98: DISJUNTOR TRIPOLAR TIPO DIN, CORRENTE NOMINAL DE 40A - FORNECIMENTO E INSTALAÇÃO. AF_04/2016 | S98: UN | T98: 1 | U98: 1 | AA98: Referência: AGETOP - 71174
A99: S | B99: 3 | C99: S | D99: 0 | E99: 1 | F99: 6 | G99: 2 | H99: 0 | I99: 0 | J99: 0 | K99: 0 | L99: F | M99: Serviço | N99: Serviço | O99: 1.6.2.0.5. | P99: SINAPI | Q99: 93673 | R99: DISJUNTOR TRIPOLAR TIPO DIN, CORRENTE NOMINAL DE 50A - FORNECIMENTO E INSTALAÇÃO. AF_04/2016 | S99: UN | T99: 4 | U99: 1 | AA99: Referência: AGETOP - 71174
A100: S | B100: 3 | C100: S | D100: 0 | E100: 1 | F100: 6 | G100: 2 | H100: 0 | I100: 0 | J100: 0 | K100: 0 | L100: F | M100: Serviço | N100: Serviço | O100: 1.6.2.0.6. | P100: AGETOP | Q100: 71175 | R100: DISJUNTOR TRIPOLAR DE 60 A 100-A | S100: Un | T100: 3 | U100: 1
A101: S | B101: 3 | C101: S | D101: 0 | E101: 1 | F101: 6 | G101: 2 | H101: 0 | I101: 0 | J101: 0 | K101: 0 | L101: F | M101: Serviço | N101: Serviço | O101: 1.6.2.0.7. | P101: SINAPI | Q101: 93656 | R101: DISJUNTOR MONOPOLAR TIPO DIN, CORRENTE NOMINAL DE 25A - FORNECIMENTO E INSTALAÇÃO. AF_04/2016 | S101: UN | T101: 37 | U101: 1
A102: S | B102: 3 | C102: S | D102: 0 | E102: 1 | F102: 6 | G102: 2 | H102: 0 | I102: 0 | J102: 0 | K102: 0 | L102: F | M102: Serviço | N102: Serviço | O102: 1.6.2.0.8. | P102: SINAPI | Q102: 93654 | R102: DISJUNTOR MONOPOLAR TIPO DIN, CORRENTE NOMINAL DE 16A - FORNECIMENTO E INSTALAÇÃO. AF_04/2016 | S102: UN | T102: 35 | U102: 1
A103: S | B103: 3 | C103: S | D103: 0 | E103: 1 | F103: 6 | G103: 2 | H103: 0 | I103: 0 | J103: 0 | K103: 0 | L103: F | M103: Serviço | N103: Serviço | O103: 1.6.2.0.9. | P103: SINAPI | Q103: 93653 | R103: DISJUNTOR MONOPOLAR TIPO DIN, CORRENTE NOMINAL DE 10A - FORNECIMENTO E INSTALAÇÃO. AF_04/2016 | S103: UN | T103: 33 | U103: 1
A104: 3 | B104: 3 | C104: 3 | D104: 8 | E104: 1 | F104: 6 | G104: 3 | H104: 0 | I104: 0 | J104: 58 | K104: 8 | L104: F | M104: Nível 3 | N104: Nível 3 | O104: 1.6.3. | R104: CABOS E FIOS | S104: - | U104: 1
A105: =CHOOSE(1+LOG(1+2*(ORÇAMENTO.Nivel="Nível 1")+4*(ORÇAMENTO.Nivel="Nível 2")+8*(ORÇAMENTO.Nivel="Nível 3")+16*(ORÇAMENTO.Nivel="Nível 4")+32*(ORÇAMENTO.Nivel="Serviço"),2),0,1,2,3,4,"S") -> S | B105: 3 | C105: S | D105: 0 | E105: 1 | F105: 6 | G105: 3 | H105: 0 | I105: =IF(AND($C105<=4,$C105<>0),0,IF(AND($C105="S",$Y105>0),OFFSET(I105,-1,0)+1,OFFSET(I105,-1,0))) -> 0 | J105: =IF(OR($C105="S",$C105=0),0,MATCH(0,OFFSET($D105,1,$C105,ROW($C$911)-ROW($C105)),0)) -> 0 | K105: =IF(OR($C105="S",$C105=0),0,MATCH(OFFSET($D105,0,$C105)+1,OFFSET($D105,1,$C105,ROW($C$911)-ROW($C105)),0)) -> 0 | L105: F | M105: Serviço | N105: Serviço | O105: 1.6.3.0.1. | P105: SINAPI | Q105: 91926 | R105: CABO DE COBRE FLEXÍVEL ISOLADO, 2,5 MM², ANTI-CHAMA 450/750 V, PARA CIRCUITOS TERMINAIS - FORNECIMENTO E INSTALAÇÃO. AF_12/2015 | S105: M | T105: 4850 | U105: 1 | AA105: Referência: AGETOP - 70563
A106: S | B106: 3 | C106: S | D106: 0 | E106: 1 | F106: 6 | G106: 3 | H106: 0 | I106: 0 | J106: 0 | K106: 0 | L106: F | M106: Serviço | N106: Serviço | O106: 1.6.3.0.2. | P106: SINAPI | Q106: 91928 | R106: CABO DE COBRE FLEXÍVEL ISOLADO, 4 MM², ANTI-CHAMA 450/750 V, PARA CIRCUITOS TERMINAIS - FORNECIMENTO E INSTALAÇÃO. AF_12/2015 | S106: M | T106: 3980 | U106: 1 | AA106: Referência: AGETOP - 70564
A107: S | B107: 3 | C107: S | D107: 0 | E107: 1 | F107: 6 | G107: 3 | H107: 0 | I107: 0 | J107: 0 | K107: 0 | L107: F | M107: Serviço | N107: Serviço | O107: 1.6.3.0.3. | P107: SINAPI | Q107: 91930 | R107: CABO DE COBRE FLEXÍVEL ISOLADO, 6 MM², ANTI-CHAMA 450/750 V, PARA CIRCUITOS TERMINAIS - FORNECIMENTO E INSTALAÇÃO. AF_12/2015 | S107: M | T107: 1563 | U107: 1 | AA107: Referência: AGETOP - 70565
A108: S | B108: 3 | C108: S | D108: 0 | E108: =IF($C108=1,OFFSET(E108,-1,0)+1,OFFSET(E108,-1,0)) -> 1 | F108: =IF($C108=1,0,IF($C108=2,OFFSET(F108,-1,0)+1,OFFSET(F108,-1,0))) -> 6 | G108: =IF(AND($C108<=2,$C108<>0),0,IF($C108=3,OFFSET(G108,-1,0)+1,OFFSET(G108,-1,0))) -> 3 | H108: =IF(AND($C108<=3,$C108<>0),0,IF($C108=4,OFFSET(H108,-1,0)+1,OFFSET(H108,-1,0))) -> 0 | I108: 0 | J108: 0 | K108: 0 | L108: F | M108: Serviço | N108: Serviço | O108: 1.6.3.0.4. | P108: SINAPI | Q108: 92979 | R108: CABO DE COBRE FLEXÍVEL ISOLADO, 10 MM², ANTI-CHAMA 450/750 V, PARA DISTRIBUIÇÃO - FORNECIMENTO E INSTALAÇÃO. AF_12/2015 | S108: M | T108: 1554.11 | U108: 1
A109: S | B109: 3 | C109: S | D109: 0 | E109: 1 | F109: 6 | G109: 3 | H109: 0 | I109: 0 | J109: 0 | K109: 0 | L109: F | M109: Serviço | N109: Serviço | O109: 1.6.3.0.5. | P109: SINAPI | Q109: 92981 | R109: CABO DE COBRE FLEXÍVEL ISOLADO, 16 MM², ANTI-CHAMA 450/750 V, PARA DISTRIBUIÇÃO - FORNECIMENTO E INSTALAÇÃO. AF_12/2015 | S109: M | T109: 943.56 | U109: 1
A110: S | B110: 3 | C110: S | D110: 0 | E110: 1 | F110: 6 | G110: 3 | H110: 0 | I110: 0 | J110: 0 | K110: 0 | L110: F | M110: Serviço | N110: Serviço | O110: 1.6.3.0.6. | P110: SINAPI | Q110: 92983 | R110: CABO DE COBRE FLEXÍVEL ISOLADO, 25 MM², ANTI-CHAMA 450/750 V, PARA DISTRIBUIÇÃO - FORNECIMENTO E INSTALAÇÃO. AF_12/2015 | S110: M | T110: 1789 | U110: 1
A111: S | B111: 3 | C111: S | D111: 0 | E111: 1 | F111: 6 | G111: 3 | H111: 0 | I111: 0 | J111: 0 | K111: 0 | L111: F | M111: Serviço | N111: Serviço | O111: 1.6.3.0.7. | P111: SINAPI | Q111: 92985 | R111: CABO DE COBRE FLEXÍVEL ISOLADO, 35 MM², ANTI-CHAMA 450/750 V, PARA DISTRIBUIÇÃO - FORNECIMENTO E INSTALAÇÃO. AF_12/2015 | S111: M | T111: 331.04 | U111: 1
A112: 3 | B112: 3 | C112: 3 | D112: 36 | E112: 1 | F112: 6 | G112: 4 | H112: 0 | I112: 0 | J112: 50 | K112: 36 | L112: F | M112: Nível 3 | N112: Nível 3 | O112: 1.6.4. | R112: ELETRODUTOS E ACESSÓRIOS | S112: - | U112: 1
A113: S | B113: 3 | C113: S | D113: 0 | E113: 1 | F113: 6 | G113: 4 | H113: 0 | I113: 0 | J113: 0 | K113: 0 | L113: F | M113: Serviço | N113: Serviço | O113: 1.6.4.0.1. | P113: SINAPI | Q113: 91867 | R113: ELETRODUTO RÍGIDO ROSCÁVEL, PVC, DN 25 MM (3/4"), PARA CIRCUITOS TERMINAIS, INSTALADO EM LAJE - FORNECIMENTO E INSTALAÇÃO. AF_12/2015 | S113: M | T113: 2462 | U113: 1 | AA113: Referência: AGETOP - 71201
A114: S | B114: =IF(OR(C114="s",C114=0),OFFSET(B114,-1,0),C114) -> 3 | C114: =IF(OFFSET(C114,-1,0)="L",1,IF(OFFSET(C114,-1,0)=1,2,IF(OR(A114="s",A114=0),"S",IF(AND(OFFSET(C114,-1,0)=2,A114=4),3,IF(AND(OR(OFFSET(C114,-1,0)="s",OFFSET(C114,-1,0)=0),A114<>"s",A114>OFFSET(B114,-1,0)),OFFSET(B114,-1,0),A114))))) -> S | D114: =IF(OR(C114="S",C114=0),0,IF(ISERROR(K114),J114,SMALL(J114:K114,1))) -> 0 | E114: 1 | F114: 6 | G114: 4 | H114: 0 | I114: 0 | J114: 0 | K114: 0 | L114: F | M114: Serviço | N114: Serviço | O114: 1.6.4.0.2. | P114: SINAPI | Q114: 91868 | R114: ELETRODUTO RÍGIDO ROSCÁVEL, PVC, DN 32 MM (1"), PARA CIRCUITOS TERMINAIS, INSTALADO EM LAJE - FORNECIMENTO E INSTALAÇÃO. AF_12/2015 | S114: M | T114: 1987 | U114: 1 | AA114: Referência: AGETOP - 71202
A115: S | B115: 3 | C115: S | D115: 0 | E115: 1 | F115: 6 | G115: 4 | H115: 0 | I115: 0 | J115: 0 | K115: 0 | L115: F | M115: Serviço | N115: Serviço | O115: 1.6.4.0.3. | P115: SINAPI | Q115: 93008 | R115: ELETRODUTO RÍGIDO ROSCÁVEL, PVC, DN 50 MM (1 1/2") - FORNECIMENTO E INSTALAÇÃO. AF_12/2015 | S115: M | T115: 989 | U115: 1
A116: S | B116: 3 | C116: S | D116: 0 | E116: 1 | F116: 6 | G116: 4 | H116: 0 | I116: 0 | J116: 0 | K116: 0 | L116: F | M116: Serviço | N116: Serviço | O116: 1.6.4.0.4. | P116: SINAPI | Q116: 93009 | R116: ELETRODUTO RÍGIDO ROSCÁVEL, PVC, DN 60 MM (2") - FORNECIMENTO E INSTALAÇÃO. AF_12/2015 | S116: M | T116: 769 | U116: 1
A117: S | B117: 3 | C117: S | D117: 0 | E117: 1 | F117: 6 | G117: 4 | H117: 0 | I117: 0 | J117: 0 | K117: 0 | L117: F | M117: Serviço | N117: Serviço | O117: 1.6.4.0.5. | P117: SINAPI | Q117: 93012 | R117: ELETRODUTO RÍGIDO ROSCÁVEL, PVC, DN 110 MM (4") - FORNECIMENTO E INSTALAÇÃO. AF_12/2015 | S117: M | T117: 25 | U117: 1
A118: S | B118: 3 | C118: S | D118: 0 | E118: 1 | F118: 6 | G118: 4 | H118: 0 | I118: 0 | J118: 0 | K118: 0 | L118: F | M118: Serviço | N118: Serviço | O118: 1.6.4.0.6. | P118: AGETOP | Q118: 70351 | R118: BRACADEIRA METALICA TIPO "U" DIAM. 3/4" | S118: Un | T118: 500 | U118: 1
A119: S | B119: 3 | C119: S | D119: 0 | E119: 1 | F119: 6 | G119: 4 | H119: 0 | I119: 0 | J119: 0 | K119: 0 | L119: F | M119: Serviço | N119: Serviço | O119: 1.6.4.0.7. | P119: AGETOP | Q119: 70352 | R119: BRACADEIRA METALICA TIPO "U" DIAM. 1" | S119: Un | T119: 362 | U119: 1
A120: S | B120: 3 | C120: S | D120: 0 | E120: 1 | F120: 6 | G120: 4 | H120: 0 | I120: 0 | J120: 0 | K120: 0 | L120: F | M120: Serviço | N120: Serviço | O120: 1.6.4.0.8. | P120: AGETOP | Q120: 70354 | R120: BRACADEIRA METALICA TIPO "U" DIAM. 1.1/2" | S120: Un | T120: 199 | U120: 1
A121: S | B121: 3 | C121: S | D121: 0 | E121: 1 | F121: 6 | G121: 4 | H121: 0 | I121: 0 | J121: 0 | K121: 0 | L121: F | M121: Serviço | N121: Serviço | O121: 1.6.4.0.9. | P121: AGETOP | Q121: 70355 | R121: BRACADEIRA METALICA TIPO "U" DIAM. 2" | S121: Un | T121: 197 | U121: 1
A122: S | B122: 3 | C122: S | D122: 0 | E122: 1 | F122: 6 | G122: 4 | H122: 0 | I122: 0 | J122: 0 | K122: 0 | L122: F | M122: Serviço | N122: Serviço | O122: 1.6.4.0.10. | P122: AGETOP | Q122: 70358 | R122: BRACADEIRA METALICA TIPO "U" DIAM. 4" | S122: Un | T122: 9 | U122: 1
A123: S | B123: 3 | C123: S | D123: 0 | E123: 1 | F123: 6 | G123: 4 | H123: 0 | I123: 0 | J123: 0 | K123: 0 | L123: F | M123: Serviço | N123: Serviço | O123: 1.6.4.0.11. | P123: SINAPI | Q123: 91879 | R123: LUVA PARA ELETRODUTO, PVC, ROSCÁVEL, DN 25 MM (3/4"), PARA CIRCUITOS TERMINAIS, INSTALADA EM LAJE - FORNECIMENTO E INSTALAÇÃO. AF_12/2015 | S123: UN | T123: 500 | U123: 1 | AA123: Referência: AGETOP - 71741
A124: S | B124: 3 | C124: S | D124: 0 | E124: 1 | F124: 6 | G124: 4 | H124: 0 | I124: 0 | J124: 0 | K124: 0 | L124: F | M124: Serviço | N124: Serviço | O124: 1.6.4.0.12. | P124: SINAPI | Q124: 91880 | R124: LUVA PARA ELETRODUTO, PVC, ROSCÁVEL, DN 32 MM (1"), PARA CIRCUITOS TERMINAIS, INSTALADA EM LAJE - FORNECIMENTO E INSTALAÇÃO. AF_12/2015 | S124: UN | T124: 362 | U124: 1 | AA124: Referência: AGETOP - 71742
A125: S | B125: 3 | C125: S | D125: 0 | E125: 1 | F125: 6 | G125: 4 | H125: 0 | I125: 0 | J125: 0 | K125: 0 | L125: F | M125: Serviço | N125: Serviço | O125: 1.6.4.0.13. | P125: SINAPI | Q125: 93013 | R125: LUVA PARA ELETRODUTO, PVC, ROSCÁVEL, DN 50 MM (1 1/2") - FORNECIMENTO E INSTALAÇÃO. AF_12/2015 | S125: UN | T125: 199 | U125: 1 | AA125: Referência: AGETOP - 71744
A126: S | B126: 3 | C126: S | D126: 0 | E126: 1 | F126: 6 | G126: 4 | H126: 0 | I126: 0 | J126: 0 | K126: 0 | L126: F | M126: Serviço | N126: Serviço | O126: 1.6.4.0.14. | P126: SINAPI | Q126: 93014 | R126: LUVA PARA ELETRODUTO, PVC, ROSCÁVEL, DN 60 MM (2") - FORNECIMENTO E INSTALAÇÃO. AF_12/2015 | S126: UN | T126: 197 | U126: 1 | AA126: Referência: AGETOP - 71745
A127: S | B127: 3 | C127: S | D127: 0 | E127: 1 | F127: 6 | G127: 4 | H127: 0 | I127: 0 | J127: 0 | K127: 0 | L127: F | M127: Serviço | N127: Serviço | O127: 1.6.4.0.15. | P127: SINAPI | Q127: 93017 | R127: LUVA PARA ELETRODUTO, PVC, ROSCÁVEL, DN 110 MM (4") - FORNECIMENTO E INSTALAÇÃO. AF_12/2015 | S127: UN | T127: 9 | U127: 1 | AA127: Referência: AGETOP - 71748
A128: S | B128: 3 | C128: S | D128: 0 | E128: 1 | F128: 6 | G128: 4 | H128: 0 | I128: 0 | J128: 0 | K128: 0 | L128: F | M128: Serviço | N128: Serviço | O128: 1.6.4.0.16. | P128: SINAPI | Q128: 92867 | R128: CAIXA RETANGULAR 4" X 2" ALTA (2,00 M DO PISO), METÁLICA, INSTALADA EM PAREDE - FORNECIMENTO E INSTALAÇÃO. AF_12/2015 | S128: UN | T128: 110 | U128: 1
A129: S | B129: 3 | C129: S | D129: 0 | E129: 1 | F129: 6 | G129: 4 | H129: 0 | I129: 0 | J129: 0 | K129: 0 | L129: F | M129: Serviço | N129: Serviço | O129: 1.6.4.0.17. | P129: SINAPI | Q129: 92869 | R129: CAIXA RETANGULAR 4" X 2" BAIXA (0,30 M DO PISO), METÁLICA, INSTALADA EM PAREDE - FORNECIMENTO E INSTALAÇÃO. AF_12/2015 | S129: UN | T129: 135 | U129: 1
A130: S | B130: 3 | C130: S | D130: 0 | E130: 1 | F130: 6 | G130: 4 | H130: 0 | I130: 0 | J130: 0 | K130: 0 | L130: F | M130: Serviço | N130: Serviço | O130: 1.6.4.0.18. | P130: SINAPI | Q130: 92868 | R130: CAIXA RETANGULAR 4" X 2" MÉDIA (1,30 M DO PISO), METÁLICA, INSTALADA EM PAREDE - FORNECIMENTO E INSTALAÇÃO. AF_12/2015 | S130: UN | T130: 15 | U130: 1 | AA130: Referência: AGETOP - 70691
A131: S | B131: 3 | C131: S | D131: 0 | E131: 1 | F131: 6 | G131: 4 | H131: 0 | I131: 0 | J131: 0 | K131: 0 | L131: F | M131: Serviço | N131: Serviço | O131: 1.6.4.0.19. | P131: SINAPI | Q131: 95801 | R131: CONDULETE DE ALUMÍNIO, TIPO X, PARA ELETRODUTO DE AÇO GALVANIZADO DN 20 MM (3/4''), APARENTE - FORNECIMENTO E INSTALAÇÃO. AF_11/2016_P | S131: UN | T131: 500 | U131: 1 | AA131: Referência: AGETOP - 70929
A132: S | B132: 3 | C132: S | D132: 0 | E132: 1 | F132: 6 | G132: 4 | H132: 0 | I132: 0 | J132: 0 | K132: 0 | L132: F | M132: Serviço | N132: Serviço | O132: 1.6.4.0.20. | P132: AGETOP | Q132: 72395 | R132: TAMPA CEGA PARA CONDULETE METÁLICO | S132: Un | T132: 500 | U132: 1
A133: S | B133: 3 | C133: S | D133: 0 | E133: 1 | F133: 6 | G133: 4 | H133: 0 | I133: 0 | J133: 0 | K133: 0 | L133: F | M133: Serviço | N133: Serviço | O133: 1.6.4.0.21. | P133: SINAPI | Q133: 97887 | R133: CAIXA ENTERRADA ELÉTRICA RETANGULAR, EM ALVENARIA COM TIJOLOS CERÂMICOS MACIÇOS, FUNDO COM BRITA, DIMENSÕES INTERNAS: 0,4X0,4X0,4 M. AF_05/2018 | S133: UN | T133: 9 | U133: 1
A134: S | B134: 3 | C134: S | D134: 0 | E134: 1 | F134: 6 | G134: 4 | H134: 0 | I134: 0 | J134: 0 | K134: 0 | L134: F | M134: Serviço | N134: Serviço | O134: 1.6.4.0.22. | P134: SINAPI | Q134: 6171 | R134: TAMPA DE CONCRETO ARMADO 60X60X5CM PARA CAIXA | S134: UN | T134: 1 | U134: 1
A135: S | B135: 3 | C135: S | D135: 0 | E135: 1 | F135: 6 | G135: 4 | H135: 0 | I135: 0 | J135: 0 | K135: 0 | L135: F | M135: Serviço | N135: Serviço | O135: 1.6.4.0.23. | P135: AGETOP | Q135: 71861 | R135: PARAFUSO P/BUCHA S-6 | S135: Un | T135: 700 | U135: 1
A136: S | B136: 3 | C136: S | D136: 0 | E136: 1 | F136: 6 | G136: 4 | H136: 0 | I136: 0 | J136: 0 | K136: 0 | L136: F | M136: Serviço | N136: Serviço | O136: 1.6.4.0.24. | P136: AGETOP | Q136: 70391 | R136: BUCHA DE NYLON S-6 | S136: Un | T136: 700 | U136: 1
A137: S | B137: 3 | C137: S | D137: 0 | E137: 1 | F137: 6 | G137: 4 | H137: 0 | I137: 0 | J137: 0 | K137: 0 | L137: F | M137: Serviço | N137: Serviço | O137: 1.6.4.0.25. | P137: SINAPI | Q137: 91992 | R137: TOMADA ALTA DE EMBUTIR (1 MÓDULO), 2P+T 10 A, INCLUINDO SUPORTE E PLACA - FORNECIMENTO E INSTALAÇÃO. AF_12/2015 | S137: UN | T137: 52 | U137: 1
A138: S | B138: 3 | C138: S | D138: 0 | E138: 1 | F138: 6 | G138: 4 | H138: 0 | I138: 0 | J138: 0 | K138: 0 | L138: F | M138: Serviço | N138: Serviço | O138: 1.6.4.0.26. | P138: SINAPI | Q138: 91993 | R138: TOMADA ALTA DE EMBUTIR (1 MÓDULO), 2P+T 20 A, INCLUINDO SUPORTE E PLACA - FORNECIMENTO E INSTALAÇÃO. AF_12/2015 | S138: UN | T138: 58 | U138: 1 | AA138: Referência: AGETOP - 72585
A139: S | B139: 3 | C139: S | D139: 0 | E139: 1 | F139: 6 | G139: 4 | H139: 0 | I139: 0 | J139: 0 | K139: 0 | L139: F | M139: Serviço | N139: Serviço | O139: 1.6.4.0.27. | P139: SINAPI | Q139: 92000 | R139: TOMADA BAIXA DE EMBUTIR (1 MÓDULO), 2P+T 10 A, INCLUINDO SUPORTE E PLACA - FORNECIMENTO E INSTALAÇÃO. AF_12/2015 | S139: UN | T139: 135 | U139: 1 | AA139: Referência: AGETOP - 72578
A140: S | B140: 3 | C140: S | D140: 0 | E140: 1 | F140: 6 | G140: 4 | H140: 0 | I140: 0 | J140: 0 | K140: 0 | L140: F | M140: Serviço | N140: Serviço | O140: 1.6.4.0.28. | P140: SINAPI | Q140: 91996 | R140: TOMADA MÉDIA DE EMBUTIR (1 MÓDULO), 2P+T 10 A, INCLUINDO SUPORTE E PLACA - FORNECIMENTO E INSTALAÇÃO. AF_12/2015 | S140: UN | T140: 15 | U140: 1 | AA140: Referência: AGETOP - 72578
A141: S | B141: 3 | C141: S | D141: 0 | E141: 1 | F141: 6 | G141: 4 | H141: 0 | I141: 0 | J141: 0 | K141: 0 | L141: F | M141: Serviço | N141: Serviço | O141: 1.6.4.0.29. | P141: SINAPI | Q141: 97585 | R141: LUMINÁRIA TIPO CALHA, DE SOBREPOR, COM 2 LÂMPADAS TUBULARES DE 18 W - FORNECIMENTO E INSTALAÇÃO. AF_11/2017 | S141: UN | T141: 388 | U141: 1
A142: S | B142: 3 | C142: S | D142: 0 | E142: 1 | F142: 6 | G142: 4 | H142: 0 | I142: 0 | J142: 0 | K142: 0 | L142: F | M142: Serviço | N142: Serviço | O142: 1.6.4.0.30. | P142: SINAPI | Q142: 97593 | R142: LUMINÁRIA TIPO SPOT, DE SOBREPOR, COM 1 LÂMPADA DE 15 W - FORNECIMENTO E INSTALAÇÃO. AF_11/2017 | S142: UN | T142: 43 | U142: 1 | AA142: Referência: AGETOP - 71688
A143: S | B143: 3 | C143: S | D143: 0 | E143: 1 | F143: 6 | G143: 4 | H143: 0 | I143: 0 | J143: 0 | K143: 0 | L143: F | M143: Serviço | N143: Serviço | O143: 1.6.4.0.31. | P143: SINAPI | Q143: 97606 | R143: LUMINÁRIA ARANDELA TIPO MEIA-LUA, PARA 1 LÂMPADA DE 15 W - FORNECIMENTO E INSTALAÇÃO. AF_11/2017 | S143: UN | T143: 4 | U143: 1
A144: S | B144: 3 | C144: S | D144: 0 | E144: 1 | F144: 6 | G144: 4 | H144: 0 | I144: 0 | J144: 0 | K144: 0 | L144: F | M144: Serviço | N144: Serviço | O144: 1.6.4.0.32. | P144: SINAPI | Q144: 93043 | R144: LÂMPADA LED 10 W BIVOLT BRANCA, FORMATO TRADICIONAL (BASE E27) - FORNECIMENTO E INSTALAÇÃO | S144: UN | T144: 4 | U144: 1
A145: S | B145: 3 | C145: S | D145: 0 | E145: 1 | F145: 6 | G145: 4 | H145: 0 | I145: 0 | J145: 0 | K145: 0 | L145: F | M145: Serviço | N145: Serviço | O145: 1.6.4.0.33. | P145: SINAPI | Q145: 97601 | R145: REFLETOR EM ALUMÍNIO COM SUPORTE E ALÇA, LÂMPADA 250 W - FORNECIMENTO E INSTALAÇÃO. AF_11/2017 | S145: UN | T145: 48 | U145: 1
A146: S | B146: 3 | C146: S | D146: 0 | E146: 1 | F146: 6 | G146: 4 | H146: 0 | I146: 0 | J146: 0 | K146: 0 | L146: F | M146: Serviço | N146: Serviço | O146: 1.6.4.0.34. | P146: SINAPI | Q146: 73831/8 | R146: LAMPADA DE VAPOR DE SODIO DE 250WX220V - FORNECIMENTO E INSTALACAO | S146: UN | T146: 48 | U146: 1
A147: S | B147: 3 | C147: S | D147: 0 | E147: 1 | F147: 6 | G147: 4 | H147: 0 | I147: 0 | J147: 0 | K147: 0 | L147: F | M147: Serviço | N147: Serviço | O147: 1.6.4.0.35. | P147: AGETOP | Q147: 20162 | R147: DEMOLIÇÃO DAS INSTALAÇÕES ELÉTRICAS E AFINS C/ TRANSP. ATÉ CB. E CARGA | S147: H | T147: 40 | U147: 1
A148: 3 | B148: 3 | C148: 3 | D148: 14 | E148: 1 | F148: 6 | G148: 5 | H148: 0 | I148: 0 | J148: 14 | L148: F | M148: Nível 3 | N148: Nível 3 | O148: 1.6.5. | R148: IMPLANTAÇÃO | S148: - | U148: 1
A149: S | B149: 3 | C149: S | D149: 0 | E149: 1 | F149: 6 | G149: 5 | H149: 0 | I149: 0 | J149: 0 | K149: 0 | L149: F | M149: Serviço | N149: Serviço | O149: 1.6.5.0.1. | P149: SINAPI | Q149: 74131/4 | R149: QUADRO DE DISTRIBUICAO DE ENERGIA DE EMBUTIR, EM CHAPA METALICA, PARA 18 DISJUNTORES TERMOMAGNETICOS MONOPOLARES, COM BARRAMENTO TRIFASICO E NEUTRO, FORNECIMENTO E INSTALACAO | S149: UN | T149: 4 | U149: 1
A150: S | B150: 3 | C150: S | D150: 0 | E150: 1 | F150: 6 | G150: 5 | H150: 0 | I150: 0 | J150: 0 | K150: 0 | L150: F | M150: Serviço | N150: Serviço | O150: 1.6.5.0.2. | P150: SINAPI | Q150: 92979 | R150: CABO DE COBRE FLEXÍVEL ISOLADO, 10 MM², ANTI-CHAMA 450/750 V, PARA DISTRIBUIÇÃO - FORNECIMENTO E INSTALAÇÃO. AF_12/2015 | S150: M | T150: 586.27 | U150: 1
A151: S | B151: 3 | C151: S | D151: 0 | E151: 1 | F151: 6 | G151: 5 | H151: 0 | I151: 0 | J151: 0 | K151: 0 | L151: F | M151: Serviço | N151: Serviço | O151: 1.6.5.0.3. | P151: SINAPI | Q151: 91930 | R151: CABO DE COBRE FLEXÍVEL ISOLADO, 6 MM², ANTI-CHAMA 450/750 V, PARA CIRCUITOS TERMINAIS - FORNECIMENTO E INSTALAÇÃO. AF_12/2015 | S151: M | T151: 1248.9 | U151: 1 | AA151: Referência: AGETOP - 70565
A152: S | B152: 3 | C152: S | D152: 0 | E152: 1 | F152: 6 | G152: 5 | H152: 0 | I152: 0 | J152: 0 | K152: 0 | L152: F | M152: Serviço | N152: Serviço | O152: 1.6.5.0.4. | P152: SINAPI | Q152: 91864 | R152: ELETRODUTO RÍGIDO ROSCÁVEL, PVC, DN 32 MM (1"), PARA CIRCUITOS TERMINAIS, INSTALADO EM FORRO - FORNECIMENTO E INSTALAÇÃO. AF_12/2015 | S152: M | T152: 149.63 | U152: 1
A153: S | B153: 3 | C153: S | D153: 0 | E153: 1 | F153: 6 | G153: 5 | H153: 0 | I153: 0 | J153: 0 | K153: 0 | L153: F | M153: Serviço | N153: Serviço | O153: 1.6.5.0.5. | P153: SINAPI | Q153: 93008 | R153: ELETRODUTO RÍGIDO ROSCÁVEL, PVC, DN 50 MM (1 1/2") - FORNECIMENTO E INSTALAÇÃO. AF_12/2015 | S153: M | T153: 117.25 | U153: 1
A154: S | B154: 3 | C154: S | D154: 0 | E154: 1 | F154: 6 | G154: 5 | H154: 0 | I154: 0 | J154: 0 | K154: 0 | L154: F | M154: Serviço | N154: Serviço | O154: 1.6.5.0.6. | P154: SINAPI | Q154: 91885 | R154: LUVA PARA ELETRODUTO, PVC, ROSCÁVEL, DN 32 MM (1"), PARA CIRCUITOS TERMINAIS, INSTALADA EM PAREDE - FORNECIMENTO E INSTALAÇÃO. AF_12/2015 | S154: UN | T154: 50 | U154: 1 | AA154: Referência: AGETOP - 71742
A155: S | B155: 3 | C155: S | D155: 0 | E155: 1 | F155: 6 | G155: 5 | H155: 0 | I155: 0 | J155: 0 | K155: 0 | L155: F | M155: Serviço | N155: Serviço | O155: 1.6.5.0.7. | P155: SINAPI | Q155: 93013 | R155: LUVA PARA ELETRODUTO, PVC, ROSCÁVEL, DN 50 MM (1 1/2") - FORNECIMENTO E INSTALAÇÃO. AF_12/2015 | S155: UN | T155: 40 | U155: 1 | AA155: Referência: AGETOP - 71744
A156: S | B156: 3 | C156: S | D156: 0 | E156: 1 | F156: 6 | G156: 5 | H156: 0 | I156: 0 | J156: 0 | K156: 0 | L156: F | M156: Serviço | N156: Serviço | O156: 1.6.5.0.8. | P156: AGETOP | Q156: 70352 | R156: BRACADEIRA METALICA TIPO "U" DIAM. 1" | S156: Un | T156: 50 | U156: 1
A157: S | B157: 3 | C157: S | D157: 0 | E157: 1 | F157: 6 | G157: 5 | H157: 0 | I157: 0 | J157: 0 | K157: 0 | L157: F | M157: Serviço | N157: Serviço | O157: 1.6.5.0.9. | P157: AGETOP | Q157: 70354 | R157: BRACADEIRA METALICA TIPO "U" DIAM. 1.1/2" | S157: Un | T157: 40 | U157: 1
A158: S | B158: 3 | C158: S | D158: 0 | E158: 1 | F158: 6 | G158: 5 | H158: 0 | I158: 0 | J158: 0 | K158: 0 | L158: F | M158: Serviço | N158: Serviço | O158: 1.6.5.0.10. | P158: SINAPI | Q158: 97889 | R158: CAIXA ENTERRADA ELÉTRICA RETANGULAR, EM ALVENARIA COM TIJOLOS CERÂMICOS MACIÇOS, FUNDO COM BRITA, DIMENSÕES INTERNAS: 0,8X0,8X0,6 M. AF_05/2018 | S158: UN | T158: 5 | U158: 1
A159: S | B159: 3 | C159: S | D159: 0 | E159: 1 | F159: 6 | G159: 5 | H159: 0 | I159: 0 | J159: 0 | K159: 0 | L159: F | M159: Serviço | N159: Serviço | O159: 1.6.5.0.11. | P159: SINAPI | Q159: 6171 | R159: TAMPA DE CONCRETO ARMADO 60X60X5CM PARA CAIXA | S159: UN | T159: 5 | U159: 1
A160: S | B160: 3 | C160: S | D160: 0 | E160: 1 | F160: 6 | G160: 5 | H160: 0 | I160: 0 | J160: 0 | K160: 0 | L160: F | M160: Serviço | N160: Serviço | O160: 1.6.5.0.12. | P160: AGETOP | Q160: 71861 | R160: PARAFUSO P/BUCHA S-6 | S160: Un | T160: 300 | U160: 1
A161: S | B161: 3 | C161: S | D161: 0 | E161: 1 | F161: 6 | G161: 5 | H161: 0 | I161: 0 | J161: 0 | K161: 0 | L161: F | M161: Serviço | N161: Serviço | O161: 1.6.5.0.13. | P161: AGETOP | Q161: 70391 | R161: BUCHA DE NYLON S-6 | S161: Un | T161: 300 | U161: 1
A162: =CHOOSE(1+LOG(1+2*(ORÇAMENTO.Nivel="Nível 1")+4*(ORÇAMENTO.Nivel="Nível 2")+8*(ORÇAMENTO.Nivel="Nível 3")+16*(ORÇAMENTO.Nivel="Nível 4")+32*(ORÇAMENTO.Nivel="Serviço"),2),0,1,2,3,4,"S") -> 2 | B162: =IF(OR(C162="s",C162=0),OFFSET(B162,-1,0),C162) -> 2 | C162: =IF(OFFSET(C162,-1,0)="L",1,IF(OFFSET(C162,-1,0)=1,2,IF(OR(A162="s",A162=0),"S",IF(AND(OFFSET(C162,-1,0)=2,A162=4),3,IF(AND(OR(OFFSET(C162,-1,0)="s",OFFSET(C162,-1,0)=0),A162<>"s",A162>OFFSET(B162,-1,0)),OFFSET(B162,-1,0),A162))))) -> 2 | D162: =IF(OR(C162="S",C162=0),0,IF(ISERROR(K162),J162,SMALL(J162:K162,1))) -> 128 | E162: =IF($C162=1,OFFSET(E162,-1,0)+1,OFFSET(E162,-1,0)) -> 1 | F162: =IF($C162=1,0,IF($C162=2,OFFSET(F162,-1,0)+1,OFFSET(F162,-1,0))) -> 7 | G162: =IF(AND($C162<=2,$C162<>0),0,IF($C162=3,OFFSET(G162,-1,0)+1,OFFSET(G162,-1,0))) -> 0 | H162: =IF(AND($C162<=3,$C162<>0),0,IF($C162=4,OFFSET(H162,-1,0)+1,OFFSET(H162,-1,0))) -> 0 | I162: =IF(AND($C162<=4,$C162<>0),0,IF(AND($C162="S",$Y162>0),OFFSET(I162,-1,0)+1,OFFSET(I162,-1,0))) -> 0 | J162: 218 | K162: 128 | L162: F | M162: Nível 2 | N162: Nível 2 | O162: 1.7. | P162: AGETOP | R162: INSTALAÇÕES HIDROSSANITÁRIAS | S162: - | U162: 1
A163: 3 | B163: 3 | C163: 3 | D163: 25 | E163: 1 | F163: 7 | G163: 1 | H163: 0 | I163: 0 | J163: 127 | K163: 25 | L163: F | M163: Nível 3 | N163: Nível 3 | O163: 1.7.1. | P163: SINAPI | R163: PEÇAS E ACESSÓRIOS | S163: - | U163: 1
A164: 4 | B164: 4 | C164: 4 | D164: 3 | E164: 1 | F164: 7 | G164: 1 | H164: 1 | I164: 0 | J164: 24 | K164: 3 | L164: F | M164: Nível 4 | N164: Nível 4 | O164: 1.7.1.1. | P164: SINAPI | R164: CAIXAS E CURVAS | S164: - | U164: 1
A165: S | B165: 4 | C165: S | D165: 0 | E165: 1 | F165: 7 | G165: 1 | H165: 1 | I165: 0 | J165: 0 | K165: 0 | L165: F | M165: Serviço | N165: Serviço | O165: 1.7.1.1.1. | P165: AGETOP | Q165: 71140 | R165: CURVA DE 90 GRAUS DE PVC RIGIDO DIAM.1/2" | S165: Un | T165: 2 | U165: 1
A166: S | B166: 4 | C166: S | D166: 0 | E166: 1 | F166: 7 | G166: 1 | H166: 1 | I166: 0 | J166: 0 | K166: 0 | L166: F | M166: Serviço | N166: Serviço | O166: 1.7.1.1.2. | P166: AGETOP | Q166: 71141 | R166: CURVA DE 90 GRAUS DE PVC RIGIDO DIAM. 3/4" | S166: Un | T166: 2 | U166: 1
A167: 4 | B167: 4 | C167: 4 | D167: 8 | E167: 1 | F167: 7 | G167: 1 | H167: 2 | I167: 0 | J167: 21 | K167: 8 | L167: F | M167: Nível 4 | N167: Nível 4 | O167: 1.7.1.2. | P167: SINAPI | R167: VASO SANITÁRIO / ACESSÓRIOS | S167: - | U167: 1
A168: S | B168: 4 | C168: S | D168: 0 | E168: 1 | F168: 7 | G168: 1 | H168: 2 | I168: 0 | J168: 0 | K168: 0 | L168: F | M168: Serviço | N168: Serviço | O168: 1.7.1.2.1. | P168: SINAPI | Q168: 95470 | R168: VASO SANITARIO SIFONADO CONVENCIONAL COM LOUÇA BRANCA, INCLUSO CONJUNTO DE LIGAÇÃO PARA BACIA SANITÁRIA AJUSTÁVEL - FORNECIMENTO E INSTALAÇÃO. AF_10/2016 | S168: UN | T168: 2 | U168: 1
A169: S | B169: 4 | C169: S | D169: 0 | E169: 1 | F169: 7 | G169: 1 | H169: 2 | I169: 0 | J169: =IF(OR($C169="S",$C169=0),0,MATCH(0,OFFSET($D169,1,$C169,ROW($C$911)-ROW($C169)),0)) -> 0 | K169: =IF(OR($C169="S",$C169=0),0,MATCH(OFFSET($D169,0,$C169)+1,OFFSET($D169,1,$C169,ROW($C$911)-ROW($C169)),0)) -> 0 | L169: F | M169: Serviço | N169: Serviço | O169: 1.7.1.2.2. | P169: SINAPI | Q169: 99635 | R169: VÁLVULA DE DESCARGA METÁLICA, BASE 1 1/2 ", ACABAMENTO METALICO CROMADO - FORNECIMENTO E INSTALAÇÃO. AF_01/2019 | S169: UN | T169: 2 | U169: 1 | AA169: Referência: AGETOP - 80515
A170: S | B170: 4 | C170: S | D170: 0 | E170: 1 | F170: 7 | G170: 1 | H170: 2 | I170: 0 | J170: 0 | K170: 0 | L170: F | M170: Serviço | N170: Serviço | O170: 1.7.1.2.3. | P170: AGETOP | Q170: 80520 | R170: CONJUNTO DE FIXACAO P/VASO SANITARIO (PAR) | S170: CJ | T170: 2 | U170: 1
A171: S | B171: 4 | C171: S | D171: 0 | E171: 1 | F171: 7 | G171: 1 | H171: 2 | I171: 0 | J171: 0 | K171: 0 | L171: F | M171: Serviço | N171: Serviço | O171: 1.7.1.2.4. | P171: AGETOP | Q171: 80513 | R171: TUBO PARA VÁLVULA DE DESCARGA ( CURTO 1.1/4" ) | S171: Un | T171: 2 | U171: 1
A172: S | B172: 4 | C172: S | D172: 0 | E172: 1 | F172: 7 | G172: 1 | H172: 2 | I172: 0 | J172: 0 | K172: 0 | L172: F | M172: Serviço | N172: Serviço | O172: 1.7.1.2.5. | P172: AGETOP | Q172: 80526 | R172: ASSENTO EM POLIPROPILENO COM SISTEMA DE FECHAMENTO SUAVE PARA VASO SANITÁRIO | S172: Un | T172: 2 | U172: 1
A173: S | B173: 4 | C173: S | D173: 0 | E173: 1 | F173: 7 | G173: 1 | H173: 2 | I173: 0 | J173: 0 | K173: 0 | L173: F | M173: Serviço | N173: Serviço | O173: 1.7.1.2.6. | P173: AGETOP | Q173: 80510 | R173: ANEL DE VEDAÇÃO PARA VASO SANITÁRIO | S173: Un | T173: 2 | U173: 1
A174: S | B174: 4 | C174: S | D174: 0 | E174: 1 | F174: 7 | G174: 1 | H174: 2 | I174: 0 | J174: 0 | K174: 0 | L174: F | M174: Serviço | N174: Serviço | O174: 1.7.1.2.7. | P174: SINAPI | Q174: 95544 | R174: PAPELEIRA DE PAREDE EM METAL CROMADO SEM TAMPA, INCLUSO FIXAÇÃO. AF_10/2016 | S174: UN | T174: 2 | U174: 1
A175: 4 | B175: 4 | C175: 4 | D175: 7 | E175: 1 | F175: 7 | G175: 1 | H175: 3 | I175: 0 | J175: 13 | K175: 7 | L175: F | M175: Nível 4 | N175: Nível 4 | O175: 1.7.1.3. | P175: SINAPI | R175: LAVATÓRIO / ACESSÓRIOS | S175: - | U175: 1
A176: S | B176: 4 | C176: S | D176: 0 | E176: 1 | F176: 7 | G176: 1 | H176: 3 | I176: 0 | J176: 0 | K176: 0 | L176: F | M176: Serviço | N176: Serviço | O176: 1.7.1.3.1. | P176: AGETOP | Q176: 80542 | R176: LAVATÓRIO MÉDIO SEM COLUNA | S176: Un | T176: 2 | U176: 1
A177: S | B177: 4 | C177: S | D177: 0 | E177: 1 | F177: 7 | G177: 1 | H177: 3 | I177: 0 | J177: 0 | K177: 0 | L177: F | M177: Serviço | N177: Serviço | O177: 1.7.1.3.2. | P177: AGETOP | Q177: 80550 | R177: FIXACAO P/LAVATORIO (PAR) | S177: PAR | T177: 2 | U177: 1
A178: S | B178: 4 | C178: S | D178: 0 | E178: 1 | F178: 7 | G178: 1 | H178: 3 | I178: 0 | J178: 0 | K178: 0 | L178: F | M178: Serviço | N178: Serviço | O178: 1.7.1.3.3. | P178: AGETOP | Q178: 80556 | R178: LIGAÇÃO FLEXÍVEL PVC DIAM.1/2" (ENGATE) | S178: Un | T178: 2 | U178: 1
A179: S | B179: 4 | C179: S | D179: 0 | E179: 1 | F179: 7 | G179: 1 | H179: 3 | I179: 0 | J179: 0 | K179: 0 | L179: F | M179: Serviço | N179: Serviço | O179: 1.7.1.3.4. | P179: SINAPI | Q179: 86883 | R179: SIFÃO DO TIPO FLEXÍVEL EM PVC 1 X 1.1/2 - FORNECIMENTO E INSTALAÇÃO. AF_12/2013 | S179: UN | T179: 2 | U179: 1
A180: S | B180: 4 | C180: S | D180: 0 | E180: 1 | F180: 7 | G180: 1 | H180: 3 | I180: 0 | J180: 0 | K180: 0 | L180: F | M180: Serviço | N180: Serviço | O180: 1.7.1.3.5. | P180: SINAPI | Q180: 86915 | R180: TORNEIRA CROMADA DE MESA, 1/2" OU 3/4", PARA LAVATÓRIO, PADRÃO MÉDIO - FORNECIMENTO E INSTALAÇÃO. AF_12/2013 | S180: UN | T180: 2 | U180: 1 | AA180: Referência: AGETOP - 80570
A181: S | B181: 4 | C181: S | D181: 0 | E181: 1 | F181: 7 | G181: 1 | H181: 3 | I181: 0 | J181: 0 | K181: 0 | L181: F | M181: Serviço | N181: Serviço | O181: 1.7.1.3.6. | P181: SINAPI | Q181: 86877 | R181: VÁLVULA EM METAL CROMADO 1.1/2" X 1.1/2" PARA TANQUE OU LAVATÓRIO, COM OU SEM LADRÃO - FORNECIMENTO E INSTALAÇÃO. AF_12/2013 | S181: UN | T181: 2 | U181: 1
A182: 4 | B182: 4 | C182: 4 | D182: 4 | E182: 1 | F182: 7 | G182: 1 | H182: 4 | I182: 0 | J182: 6 | K182: 4 | L182: F | M182: Nível 4 | N182: Nível 4 | O182: 1.7.1.4. | P182: SINAPI | R182: PIA / ACESSÓRIOS | S182: - | U182: 1
A183: S | B183: 4 | C183: S | D183: 0 | E183: 1 | F183: 7 | G183: 1 | H183: 4 | I183: 0 | J183: 0 | K183: 0 | L183: F | M183: Serviço | N183: Serviço | O183: 1.7.1.4.1. | P183: SINAPI | Q183: 86912 | R183: TORNEIRA CROMADA LONGA, DE PAREDE, 1/2" OU 3/4", PARA PIA DE COZINHA, PADRÃO MÉDIO - FORNECIMENTO E INSTALAÇÃO. AF_12/2013 | S183: UN | T183: 2 | U183: 1
A184: S | B184: 4 | C184: S | D184: 0 | E184: 1 | F184: 7 | G184: 1 | H184: 4 | I184: 0 | J184: 0 | K184: 0 | L184: F | M184: Serviço | N184: Serviço | O184: 1.7.1.4.2. | P184: SINAPI | Q184: 86881 | R184: SIFÃO DO TIPO GARRAFA EM METAL CROMADO 1 X 1.1/2" - FORNECIMENTO E INSTALAÇÃO. AF_12/2013 | S184: UN | T184: 2 | U184: 1 | AA184: Referência: AGETOP - 80670
A185: S | B185: 4 | C185: S | D185: 0 | E185: 1 | F185: 7 | G185: 1 | H185: 4 | I185: 0 | J185: 0 | K185: 0 | L185: F | M185: Serviço | N185: Serviço | O185: 1.7.1.4.3. | P185: SINAPI | Q185: 86878 | R185: VÁLVULA EM METAL CROMADO TIPO AMERICANA 3.1/2" X 1.1/2" PARA PIA - FORNECIMENTO E INSTALAÇÃO. AF_12/2013 | S185: UN | T185: 2 | U185: 1
A186: =CHOOSE(1+LOG(1+2*(ORÇAMENTO.Nivel="Nível 1")+4*(ORÇAMENTO.Nivel="Nível 2")+8*(ORÇAMENTO.Nivel="Nível 3")+16*(ORÇAMENTO.Nivel="Nível 4")+32*(ORÇAMENTO.Nivel="Serviço"),2),0,1,2,3,4,"S") -> 4 | B186: 4 | C186: 4 | D186: 2 | E186: 1 | F186: 7 | G186: 1 | H186: 5 | I186: =IF(AND($C186<=4,$C186<>0),0,IF(AND($C186="S",$Y186>0),OFFSET(I186,-1,0)+1,OFFSET(I186,-1,0))) -> 0 | J186: 2 | K186: 29 | L186: F | M186: Nível 4 | N186: Nível 4 | O186: 1.7.1.5. | P186: SINAPI | R186: REGISTROS | S186: - | U186: 1
A187: S | B187: 4 | C187: S | D187: 0 | E187: =IF($C187=1,OFFSET(E187,-1,0)+1,OFFSET(E187,-1,0)) -> 1 | F187: =IF($C187=1,0,IF($C187=2,OFFSET(F187,-1,0)+1,OFFSET(F187,-1,0))) -> 7 | G187: =IF(AND($C187<=2,$C187<>0),0,IF($C187=3,OFFSET(G187,-1,0)+1,OFFSET(G187,-1,0))) -> 1 | H187: =IF(AND($C187<=3,$C187<>0),0,IF($C187=4,OFFSET(H187,-1,0)+1,OFFSET(H187,-1,0))) -> 5 | I187: 0 | J187: 0 | K187: 0 | L187: F | M187: Serviço | N187: Serviço | O187: 1.7.1.5.1. | P187: SINAPI | Q187: 94794 | R187: REGISTRO DE GAVETA BRUTO, LATÃO, ROSCÁVEL, 1 1/2, COM ACABAMENTO E CANOPLA CROMADOS, INSTALADO EM RESERVAÇÃO DE ÁGUA DE EDIFICAÇÃO QUE POSSUA RESERVATÓRIO DE FIBRA/FIBROCIMENTO  FORNECIMENTO E INSTALAÇÃO. AF_06/2016 | S187: UN | T187: 2 | U187: 1 | AA187: Referência: AGETOP - 80929
A188: 3 | B188: =IF(OR(C188="s",C188=0),OFFSET(B188,-1,0),C188) -> 3 | C188: =IF(OFFSET(C188,-1,0)="L",1,IF(OFFSET(C188,-1,0)=1,2,IF(OR(A188="s",A188=0),"S",IF(AND(OFFSET(C188,-1,0)=2,A188=4),3,IF(AND(OR(OFFSET(C188,-1,0)="s",OFFSET(C188,-1,0)=0),A188<>"s",A188>OFFSET(B188,-1,0)),OFFSET(B188,-1,0),A188))))) -> 3 | D188: =IF(OR(C188="S",C188=0),0,IF(ISERROR(K188),J188,SMALL(J188:K188,1))) -> 38 | E188: 1 | F188: 7 | G188: 2 | H188: 0 | I188: 0 | J188: 102 | K188: 38 | L188: F | M188: Nível 3 | N188: Nível 3 | O188: 1.7.2. | P188: SINAPI | R188: ÁGUA FRIA | S188: - | U188: 1
A189: 4 | B189: 4 | C189: 4 | D189: 4 | E189: 1 | F189: 7 | G189: 2 | H189: 1 | I189: 0 | J189: 37 | K189: 4 | L189: F | M189: Nível 4 | N189: Nível 4 | O189: 1.7.2.1. | P189: SINAPI | R189: TUBOS DE PVC SOLDÁVEL | S189: - | U189: 1
A190: S | B190: 4 | C190: S | D190: 0 | E190: 1 | F190: 7 | G190: 2 | H190: 1 | I190: 0 | J190: 0 | K190: 0 | L190: F | M190: Serviço | N190: Serviço | O190: 1.7.2.1.1. | P190: SINAPI | Q190: 89402 | R190: TUBO, PVC, SOLDÁVEL, DN 25MM, INSTALADO EM RAMAL DE DISTRIBUIÇÃO DE ÁGUA - FORNECIMENTO E INSTALAÇÃO. AF_12/2014 | S190: M | T190: 72 | U190: 1 | AA190: Referência: AGETOP - 81003
A191: S | B191: 4 | C191: S | D191: 0 | E191: 1 | F191: 7 | G191: 2 | H191: 1 | I191: 0 | J191: 0 | K191: 0 | L191: F | M191: Serviço | N191: Serviço | O191: 1.7.2.1.2. | P191: SINAPI | Q191: 89449 | R191: TUBO, PVC, SOLDÁVEL, DN 50MM, INSTALADO EM PRUMADA DE ÁGUA - FORNECIMENTO E INSTALAÇÃO. AF_12/2014 | S191: M | T191: 30 | U191: 1
A192: S | B192: 4 | C192: S | D192: 0 | E192: 1 | F192: 7 | G192: 2 | H192: 1 | I192: 0 | J192: 0 | K192: 0 | L192: F | M192: Serviço | N192: Serviço | O192: 1.7.2.1.3. | P192: SINAPI | Q192: 89451 | R192: TUBO, PVC, SOLDÁVEL, DN 75MM, INSTALADO EM PRUMADA DE ÁGUA - FORNECIMENTO E INSTALAÇÃO. AF_12/2014 | S192: M | T192: 102 | U192: 1
A193: 4 | B193: 4 | C193: 4 | D193: 3 | E193: 1 | F193: 7 | G193: 2 | H193: 2 | I193: 0 | J193: 33 | K193: 3 | L193: F | M193: Nível 4 | N193: Nível 4 | O193: 1.7.2.2. | P193: SINAPI | R193: ADAPTADORES DE PVC SOLDÁVEL | S193: - | U193: 1
A194: S | B194: 4 | C194: S | D194: 0 | E194: 1 | F194: 7 | G194: 2 | H194: 2 | I194: 0 | J194: 0 | K194: 0 | L194: F | M194: Serviço | N194: Serviço | O194: 1.7.2.2.1. | P194: SINAPI | Q194: 94711 | R194: ADAPTADOR COM FLANGES LIVRES, PVC, SOLDÁVEL, DN 50 MM X 1 1/2 , INSTALADO EM RESERVAÇÃO DE ÁGUA DE EDIFICAÇÃO QUE POSSUA RESERVATÓRIO DE FIBRA/FIBROCIMENTO FORNECIMENTO E INSTALAÇÃO. AF_06/2016 | S194: UN | T194: 10 | U194: 1 | AA194: Referência: AGETOP - 81043
A195: S | B195: 4 | C195: S | D195: 0 | E195: 1 | F195: 7 | G195: 2 | H195: 2 | I195: 0 | J195: 0 | K195: 0 | L195: F | M195: Serviço | N195: Serviço | O195: 1.7.2.2.2. | P195: SINAPI | Q195: 95141 | R195: ADAPTADOR COM FLANGES LIVRES, PVC, SOLDÁVEL LONGO, DN 25 MM X 3/4 , INSTALADO EM RESERVAÇÃO DE ÁGUA DE EDIFICAÇÃO QUE POSSUA RESERVATÓRIO DE FIBRA/FIBROCIMENTO FORNECIMENTO E INSTALAÇÃO. AF_06/2016 | S195: UN | T195: 4 | U195: 1
A196: 4 | B196: 4 | C196: 4 | D196: 6 | E196: 1 | F196: 7 | G196: 2 | H196: 3 | I196: 0 | J196: 30 | K196: 6 | L196: F | M196: Nível 4 | N196: Nível 4 | O196: 1.7.2.3. | P196: SINAPI | R196: LUVAS DE PVC | S196: - | U196: 1
A197: S | B197: 4 | C197: S | D197: 0 | E197: 1 | F197: 7 | G197: 2 | H197: 3 | I197: 0 | J197: 0 | K197: 0 | L197: F | M197: Serviço | N197: Serviço | O197: 1.7.2.3.1. | P197: SINAPI | Q197: 89528 | R197: LUVA, PVC, SOLDÁVEL, DN 25MM, INSTALADO EM PRUMADA DE ÁGUA - FORNECIMENTO E INSTALAÇÃO. AF_12/2014 | S197: UN | T197: 5 | U197: 1
A198: S | B198: 4 | C198: S | D198: 0 | E198: 1 | F198: 7 | G198: 2 | H198: 3 | I198: 0 | J198: 0 | K198: 0 | L198: F | M198: Serviço | N198: Serviço | O198: 1.7.2.3.2. | P198: SINAPI | Q198: 89558 | R198: LUVA, PVC, SOLDÁVEL, DN 40MM, INSTALADO EM PRUMADA DE ÁGUA - FORNECIMENTO E INSTALAÇÃO. AF_12/2014 | S198: UN | T198: 5 | U198: 1
A199: S | B199: 4 | C199: S | D199: 0 | E199: 1 | F199: 7 | G199: 2 | H199: 3 | I199: 0 | J199: 0 | K199: 0 | L199: F | M199: Serviço | N199: Serviço | O199: 1.7.2.3.3. | P199: SINAPI | Q199: 89575 | R199: LUVA, PVC, SOLDÁVEL, DN 50MM, INSTALADO EM PRUMADA DE ÁGUA - FORNECIMENTO E INSTALAÇÃO. AF_12/2014 | S199: UN | T199: 5 | U199: 1 | AA199: Referência: AGETOP - 81105
A200: S | B200: 4 | C200: S | D200: 0 | E200: 1 | F200: 7 | G200: 2 | H200: 3 | I200: 0 | J200: 0 | K200: 0 | L200: F | M200: Serviço | N200: Serviço | O200: 1.7.2.3.4. | P200: SINAPI | Q200: 89611 | R200: LUVA, PVC, SOLDÁVEL, DN 75MM, INSTALADO EM PRUMADA DE ÁGUA - FORNECIMENTO E INSTALAÇÃO. AF_12/2014 | S200: UN | T200: 5 | U200: 1
A201: S | B201: 4 | C201: S | D201: 0 | E201: 1 | F201: 7 | G201: 2 | H201: 3 | I201: 0 | J201: 0 | K201: 0 | L201: F | M201: Serviço | N201: Serviço | O201: 1.7.2.3.5. | P201: SINAPI | Q201: 89534 | R201: LUVA SOLDÁVEL E COM ROSCA, PVC, SOLDÁVEL, DN 25MM X 3/4, INSTALADO EM PRUMADA DE ÁGUA - FORNECIMENTO E INSTALAÇÃO. AF_12/2014 | S201: UN | T201: 5 | U201: 1
A202: 4 | B202: 4 | C202: 4 | D202: 6 | E202: 1 | F202: 7 | G202: 2 | H202: 4 | I202: 0 | J202: 24 | K202: 6 | L202: F | M202: Nível 4 | N202: Nível 4 | O202: 1.7.2.4. | P202: SINAPI | R202: BUCHAS | S202: - | U202: 1
A203: S | B203: 4 | C203: S | D203: 0 | E203: 1 | F203: 7 | G203: 2 | H203: 4 | I203: 0 | J203: 0 | K203: 0 | L203: F | M203: Serviço | N203: Serviço | O203: 1.7.2.4.1. | P203: SINAPI | Q203: 96662 | R203: BUCHA DE REDUÇÃO, PPR, 32 X 25, CLASSE PN 25, INSTALADO EM RAMAL DE DISTRIBUIÇÃO DE ÁGUA  FORNECIMENTO E INSTALAÇÃO . AF_06/2015 | S203: UN | T203: 5 | U203: 1
A204: S | B204: 4 | C204: S | D204: 0 | E204: 1 | F204: 7 | G204: 2 | H204: 4 | I204: 0 | J204: 0 | K204: 0 | L204: F | M204: Serviço | N204: Serviço | O204: 1.7.2.4.2. | P204: SINAPI | Q204: 89605 | R204: LUVA DE REDUÇÃO, PVC, SOLDÁVEL, DN 60MM X 50MM, INSTALADO EM PRUMADA DE ÁGUA - FORNECIMENTO E INSTALAÇÃO. AF_12/2014 | S204: UN | T204: 5 | U204: 1
A205: S | B205: 4 | C205: S | D205: 0 | E205: 1 | F205: 7 | G205: 2 | H205: 4 | I205: 0 | J205: 0 | K205: 0 | L205: F | M205: Serviço | N205: Serviço | O205: 1.7.2.4.3. | P205: SINAPI | Q205: 89579 | R205: LUVA DE REDUÇÃO, PVC, SOLDÁVEL, DN 50MM X 25MM, INSTALADO EM PRUMADA DE ÁGUA FORNECIMENTO E INSTALAÇÃO. AF_12/2014 | S205: UN | T205: 5 | U205: 1
A206: S | B206: 4 | C206: S | D206: 0 | E206: 1 | F206: 7 | G206: 2 | H206: 4 | I206: 0 | J206: 0 | K206: 0 | L206: F | M206: Serviço | N206: Serviço | O206: 1.7.2.4.4. | P206: AGETOP | Q206: 81180 | R206: BUCHA DE REDUCAO SOLDAVEL LONGA 50 X 32 mm | S206: Un | T206: 5 | U206: 1
... 778 more rows

Sheet Resumo
B3: UNIDADE ESCOLAR | G3: CÓDIGO INEP
B4: =Orçamento!$O$4 -> CENTRO DE ENSINO EM PERÍODO INTEGRAL PRÉ-UNIVERSITÁRIO | G4: =Orçamento!X4 -> 52033570
B6: OBRA | G6: CIDADE
B7: =Orçamento!$O$7 -> REFORMA E AMPLIAÇÃO | G7: =Orçamento!$X$7 -> GOIÂNIA
B9: ENDEREÇO | G9: CRE
B10: =Orçamento!$R$10 -> RUA 240 S/N, ST UNIVERSITARIO, CEP:74440-460 | G10: =Orçamento!$O$10 -> GOIÂNIA
B12: REFERÊNCIA | D12: DATA | G12: ÁREA TOTAL CONSTRUÍDA (M²)
B13: =CONCATENATE("AGETOP E SINAPI - ",Orçamento!$Y$10) -> AGETOP E SINAPI - ONERADA | D13: =Orçamento!$S$7 -> 2020-04-23 | G13: =Orçamento!$S$13 -> 4643.25
A14: FILTRO
B15: RESUMO GERAL DO ORÇAMENTO
A16: ↓ | B16: ITEM | C16: DESCRIÇÃO DOS SERVIÇOS | G16: PREÇO SEM BDI | H16: PREÇO COM BDI | I16: PARTICIP. (%)
A17: =IF(G17>0,"F","") ->  | B17: 1. | C17: =Orçamento!$P964 -> REFORMA | G17: =IFERROR(Orçamento!S964,"-") -> 0 | H17: =IFERROR(Orçamento!X964,"") -> 0 | I17: =Orçamento!AA964 -> 0
A18: =IF(G18>0,"F","") ->  | B18: 2. | C18: =Orçamento!$P965 -> IMPLANTAÇÃO | G18: =IFERROR(Orçamento!S965,"-") -> 0 | H18: =IFERROR(Orçamento!X965,"") -> 0 | I18: =Orçamento!AA965 -> 0
B19: 3. | C19: =Orçamento!$P966 -> PASSARELA COBERTA MODELO 2 | G19: =IFERROR(Orçamento!S966,"-") -> 0 | H19: =IFERROR(Orçamento!X966,"") -> 0 | I19: =Orçamento!AA966 -> 0
B20: 4. | C20: =Orçamento!$P967 -> COZINHA COM REFEITÓRIO | G20: =IFERROR(Orçamento!S967,"-") -> 0 | H20: =IFERROR(Orçamento!X967,"") -> 0 | I20: =Orçamento!AA967 -> 0
B21: 5. | C21: =Orçamento!$P968 -> PÁTIO MULTIUSO 3 | G21: =IFERROR(Orçamento!S968,"-") -> 0 | H21: =IFERROR(Orçamento!X968,"") -> 0 | I21: =Orçamento!AA968 -> 0
A22: F | B22: 6. | C22: =Orçamento!$P969 -> SANITÁRIOS | G22: =IFERROR(Orçamento!S969,"-") -> 996414.63 | H22: =IFERROR(Orçamento!X969,"") -> 1199099.49 | I22: =Orçamento!AA969 -> 100
B23: 7. | C23: =Orçamento!$P970 ->  | G23: =IFERROR(Orçamento!S970,"-") -> 0 | H23: =IFERROR(Orçamento!X970,"") -> 0 | I23: =Orçamento!AA970 -> 0
B24: 8. | C24: =Orçamento!$P971 ->  | G24: =IFERROR(Orçamento!S971,"-") -> 0 | H24: =IFERROR(Orçamento!X971,"") -> 0 | I24: =Orçamento!AA971 -> 0
B25: 9. | C25: =Orçamento!$P972 ->  | G25: =IFERROR(Orçamento!S972,"-") -> 0 | H25: =IFERROR(Orçamento!X972,"") -> 0 | I25: =Orçamento!AA972 -> 0
B26: 10. | C26: =Orçamento!$P973 ->  | G26: =IFERROR(Orçamento!S973,"-") -> 0 | H26: =IFERROR(Orçamento!X973,"") -> 0 | I26: =Orçamento!AA973 -> 0
B27: 11. | C27: =Orçamento!$P974 ->  | G27: =IFERROR(Orçamento!S974,"-") -> 0 | H27: =IFERROR(Orçamento!X974,"") -> 0 | I27: =Orçamento!AA974 -> 0
B28: 12. | C28: =Orçamento!$P975 ->  | G28: =IFERROR(Orçamento!S975,"-") -> 0 | H28: =IFERROR(Orçamento!X975,"") -> 0 | I28: =Orçamento!AA975 -> 0
B29: 13. | C29: =Orçamento!$P976 ->  | G29: =IFERROR(Orçamento!S976,"-") -> 0 | H29: =IFERROR(Orçamento!X976,"") -> 0 | I29: =Orçamento!AA976 -> 0
B30: 14. | C30: =Orçamento!$P977 ->  | G30: =IFERROR(Orçamento!S977,"-") -> 0 | H30: =IFERROR(Orçamento!X977,"") -> 0 | I30: =Orçamento!AA977 -> 0
B31: 15. | C31: =Orçamento!$P978 ->  | G31: =IFERROR(Orçamento!S978,"-") -> 0 | H31: =IFERROR(Orçamento!X978,"") -> 0 | I31: =Orçamento!AA978 -> 0
B32: 16. | C32: =Orçamento!$P979 ->  | G32: =IFERROR(Orçamento!S979,"-") -> 0 | H32: =IFERROR(Orçamento!X979,"") -> 0 | I32: =Orçamento!AA979 -> 0
B33: 17. | C33: =Orçamento!$P980 ->  | G33: =IFERROR(Orçamento!S980,"-") -> 0 | H33: =IFERROR(Orçamento!X980,"") -> 0 | I33: =Orçamento!AA980 -> 0
B34: 18. | C34: =Orçamento!$P981 ->  | G34: =IFERROR(Orçamento!S981,"-") -> 0 | H34: =IFERROR(Orçamento!X981,"") -> 0 | I34: =Orçamento!AA981 -> 0
B35: 19. | C35: =Orçamento!$P982 ->  | G35: =IFERROR(Orçamento!S982,"-") -> 0 | H35: =IFERROR(Orçamento!X982,"") -> 0 | I35: =Orçamento!AA982 -> 0
B36: 20. | C36: =Orçamento!$P983 ->  | G36: =IFERROR(Orçamento!S983,"-") -> 0 | H36: =IFERROR(Orçamento!X983,"") -> 0 | I36: =Orçamento!AA983 -> 0
A37: F | B37: TOTAL GERAL DO ORÇAMENTO (R$) | G37: =SUM(G17:G36) -> 996414.63 | H37: =SUM(H17:H36) -> 1199099.49 | I37: =SUM(I17:I36) -> 100
A38: F
A39: F

Sheet Somatório
B3: UNIDADE ESCOLAR | E3: CÓDIGO INEP
B4: =Orçamento!$O$4 -> CENTRO DE ENSINO EM PERÍODO INTEGRAL PRÉ-UNIVERSITÁRIO | E4: =Orçamento!X4 -> 52033570
B6: OBRA | E6: CIDADE
B7: =Orçamento!$O$7 -> REFORMA E AMPLIAÇÃO | E7: =Orçamento!$X$7 -> GOIÂNIA
B9: ENDEREÇO | E9: CRE
B10: =Orçamento!$R$10 -> RUA 240 S/N, ST UNIVERSITARIO, CEP:74440-460 | E10: =Orçamento!$O$10 -> GOIÂNIA
B12: REFERÊNCIA | D12: DATA | E12: ÁREA TOTAL CONSTRUÍDA (M²)
B13: =CONCATENATE("AGETOP E SINAPI - ",Orçamento!$Y$10) -> AGETOP E SINAPI - ONERADA | D13: =Orçamento!$S$7 -> 2020-04-23 | E13: =Orçamento!$S$13 -> 4643.25
A14: FILTRO
B15: SOMATÓRIO DE SERVIÇOS
A16: ↓ | B16: ITEM | C16: DESCRIÇÃO DOS SERVIÇOS | D16: PREÇO SEM BDI (R$) | E16: PREÇO COM BDI (R$) | F16: PARTIC. ( % )
A17: =IF(D17>0,"F","") ->  | B17: a. | C17: =Orçamento!P930 -> SERVIÇOS PRELIMINARES | D17: =Orçamento!S930 -> 0 | E17: =Orçamento!X930 -> 0 | F17: =Orçamento!AA930 -> 0
A18: =IF(D18>0,"F","") ->  | B18: b. | C18: =Orçamento!P931 -> TRANSPORTES | D18: =Orçamento!S931 -> 0 | E18: =Orçamento!X931 -> 0 | F18: =Orçamento!AA931 -> 0
B19: c. | C19: =Orçamento!P932 -> SERVIÇO EM TERRA | D19: =Orçamento!S932 -> 0 | E19: =Orçamento!X932 -> 0 | F19: =Orçamento!AA932 -> 0
B20: d. | C20: =Orçamento!P933 -> FUNDAÇÕES E SONDAGENS | D20: =Orçamento!S933 -> 0 | E20: =Orçamento!X933 -> 0 | F20: =Orçamento!AA933 -> 0
B21: e. | C21: =Orçamento!P934 -> ESTRUTURA | D21: =Orçamento!S934 -> 0 | E21: =Orçamento!X934 -> 0 | F21: =Orçamento!AA934 -> 0
B22: f. | C22: =Orçamento!P935 -> INSTALAÇÕES ELÉTRICAS | D22: =Orçamento!S935 -> 0 | E22: =Orçamento!X935 -> 0 | F22: =Orçamento!AA935 -> 0
B23: g. | C23: =Orçamento!P936 -> INSTALAÇÕES HIDROSSANITÁRIAS | D23: =Orçamento!S936 -> 0 | E23: =Orçamento!X936 -> 0 | F23: =Orçamento!AA936 -> 0
B24: h | C24: =Orçamento!P937 -> INSTALAÇÕES ESPECIAIS | D24: =Orçamento!S937 -> 0 | E24: =Orçamento!X937 -> 0 | F24: =Orçamento!AA937 -> 0
B25: i. | C25: =Orçamento!P938 -> ALVENARIAS E DIVISÓRIAS | D25: =Orçamento!S938 -> 0 | E25: =Orçamento!X938 -> 0 | F25: =Orçamento!AA938 -> 0
B26: j. | C26: =Orçamento!P939 -> ALVENARIA AUTO-PORTANTE | D26: =Orçamento!S939 -> 0 | E26: =Orçamento!X939 -> 0 | F26: =Orçamento!AA939 -> 0
B27: k. | C27: =Orçamento!P940 -> IMPERMEABILIZAÇÃO | D27: =Orçamento!S940 -> 0 | E27: =Orçamento!X940 -> 0 | F27: =Orçamento!AA940 -> 0
B28: l. | C28: =Orçamento!P941 -> ISOLAMENTO TÉRMICO E ACÚSTICO | D28: =Orçamento!S941 -> 0 | E28: =Orçamento!X941 -> 0 | F28: =Orçamento!AA941 -> 0
B29: m. | C29: =Orçamento!P942 -> ESTRUTURA DE MADEIRA | D29: =Orçamento!S942 -> 0 | E29: =Orçamento!X942 -> 0 | F29: =Orçamento!AA942 -> 0
B30: n. | C30: =Orçamento!P943 -> ESTRUTURAS METÁLICAS | D30: =Orçamento!S943 -> 0 | E30: =Orçamento!X943 -> 0 | F30: =Orçamento!AA943 -> 0
B31: o. | C31: =Orçamento!P944 -> COBERTURAS | D31: =Orçamento!S944 -> 0 | E31: =Orçamento!X944 -> 0 | F31: =Orçamento!AA944 -> 0
B32: p. | C32: =Orçamento!P945 -> ESQUADRIAS DE MADEIRA | D32: =Orçamento!S945 -> 0 | E32: =Orçamento!X945 -> 0 | F32: =Orçamento!AA945 -> 0
B33: q. | C33: =Orçamento!P946 -> ESQUADRIAS METÁLICAS | D33: =Orçamento!S946 -> 0 | E33: =Orçamento!X946 -> 0 | F33: =Orçamento!AA946 -> 0
B34: r. | C34: =Orçamento!P947 -> VIDROS | D34: =Orçamento!S947 -> 0 | E34: =Orçamento!X947 -> 0 | F34: =Orçamento!AA947 -> 0
B35: s. | C35: =Orçamento!P948 -> REVESTIMENTO DE PAREDE | D35: =Orçamento!S948 -> 0 | E35: =Orçamento!X948 -> 0 | F35: =Orçamento!AA948 -> 0
B36: t. | C36: =Orçamento!P949 -> FORROS | D36: =Orçamento!S949 -> 0 | E36: =Orçamento!X949 -> 0 | F36: =Orçamento!AA949 -> 0
B37: u. | C37: =Orçamento!P950 -> REVESTIMENTO DE PISO | D37: =Orçamento!S950 -> 0 | E37: =Orçamento!X950 -> 0 | F37: =Orçamento!AA950 -> 0
B38: v. | C38: =Orçamento!P951 -> FERRAGENS | D38: =Orçamento!S951 -> 0 | E38: =Orçamento!X951 -> 0 | F38: =Orçamento!AA951 -> 0
B39: w. | C39: =Orçamento!P952 -> MARCENARIA | D39: =Orçamento!S952 -> 0 | E39: =Orçamento!X952 -> 0 | F39: =Orçamento!AA952 -> 0
B40: x. | C40: =Orçamento!P953 -> ADMINISTRAÇÃO | D40: =Orçamento!S953 -> 0 | E40: =Orçamento!X953 -> 0 | F40: =Orçamento!AA953 -> 0
B41: y. | C41: =Orçamento!P954 -> PINTURA | D41: =Orçamento!S954 -> 0 | E41: =Orçamento!X954 -> 0 | F41: =Orçamento!AA954 -> 0
B42: z. | C42: =Orçamento!P955 -> DIVERSOS | D42: =Orçamento!S955 -> 0 | E42: =Orçamento!X955 -> 0 | F42: =Orçamento!AA955 -> 0
A43: F | B43: TOTAL GERAL DO ORÇAMENTO | D43: =SUM(D17:D42) -> 0 | E43: =SUM(E17:E42) -> 0 | F43: =SUM(F17:F42) -> 0
B45: (*) Para itens da AGETOP, os vidros não estão inclusos nas esquadrias e já foram considerados os custos de contramarco para as esquadrias de alumínio;

Sheet Cronog_120_Dias
B3: UNIDADE ESCOLAR | I3: PRAZO
B4: =Orçamento!$O$4 -> CENTRO DE ENSINO EM PERÍODO INTEGRAL PRÉ-UNIVERSITÁRIO | I4: 120 DIAS CORRIDOS
B6: OBRA | I6: DATA
B7: =Orçamento!$O$7 -> REFORMA E AMPLIAÇÃO | I7: =Orçamento!$S$7 -> 2020-04-23
B9: LOCAL | I9: ÁREA TOTAL CONSTRUÍDA (M²)
A10: FILTRO | B10: =Orçamento!$X$7 -> GOIÂNIA | I10: =Orçamento!$S$13 -> 4643.25
B12: CRONOGRAMA - FÍSICO FINANCEIRO
A13: ↓ | B13: CUSTO TOTAL: | C13: =D93 -> 0 | D13: VALOR | E13: Dias: | F13: 30 | J13: 60 | N13: 90 | R13: 120 | V13: TOTAL
B14: DESCRIÇÃO DOS SERVIÇOS | E14: % | F14: 1ª PARCELA | J14: 2ª PARCELA | N14: 2ª PARCELA | R14: 2ª PARCELA
A15: =IF(D15>0,"F","") ->  | B15: SERVIÇOS PRELIMINARES | D15: =Orçamento!X930 -> 0 | E15: =Orçamento!AA930 -> 0 | F15: =ROUND(F17*$D$15,2)+0.01 -> 0.01 | J15: =ROUND(J17*$D$15,2) -> 0 | N15: =ROUND(N17*$D$15,2) -> 0 | R15: =ROUND(R17*$D$15,2) -> 0 | V15: =SUM(F15:U15) -> 0.01
A16: =IF(A15="F",A15,"") -> 
A17: =IF(A16="F",A16,"") ->  | F17: 0.27 | J17: 0.23 | N17: 0.26 | R17: 0.24 | V17: =IFERROR(E15/100,"") -> 0
A18: =IF(D18>0,"F","") ->  | B18: TRANSPORTES | D18: =Orçamento!X931 -> 0 | E18: =Orçamento!AA931 -> 0 | F18: =ROUND(F20*$D$18,2)-0.01 -> -0.01 | J18: =ROUND(J20*$D$18,2) -> 0 | N18: =ROUND(N20*$D$18,2) -> 0 | R18: =ROUND(R20*$D$18,2) -> 0 | V18: =SUM(F18:U18) -> -0.01
A19: =IF(A18="F",A18,"") -> 
A20: =IF(A19="F",A19,"") ->  | F20: 0.5 | J20: 0.2 | N20: 0.19 | R20: 0.11 | V20: =IFERROR(E18/100,"") -> 0
A21: =IF(D21>0,"F","") ->  | B21: SERVIÇO EM TERRA | D21: =Orçamento!X932 -> 0 | E21: =Orçamento!AA932 -> 0 | F21: =ROUND(F23*$D$21,2) -> 0 | J21: =ROUND(J23*$D$21,2) -> 0 | N21: =ROUND(N23*$D$21,2) -> 0 | R21: =ROUND(R23*$D$21,2) -> 0 | V21: =SUM(F21:U21) -> 0
A22: =IF(A21="F",A21,"") -> 
A23: =IF(A22="F",A22,"") ->  | F23: 0.8 | J23: 0.2 | V23: =IFERROR(E21/100,"") -> 0
A24: =IF(D24>0,"F","") ->  | B24: FUNDAÇÕES E SONDAGENS | D24: =Orçamento!X933 -> 0 | E24: =Orçamento!AA933 -> 0 | F24: =ROUND(F26*$D$24,2) -> 0 | J24: =ROUND(J26*$D$24,2) -> 0 | N24: =ROUND(N26*$D$24,2) -> 0 | R24: =ROUND(R26*$D$24,2) -> 0 | V24: =SUM(F24:U24) -> 0
A25: =IF(A24="F",A24,"") -> 
A26: =IF(A25="F",A25,"") ->  | F26: 0.8 | J26: 0.2 | V26: =IFERROR(E24/100,"") -> 0
A27: =IF(D27>0,"F","") ->  | B27: ESTRUTURA | D27: =Orçamento!X934 -> 0 | E27: =Orçamento!AA934 -> 0 | F27: =ROUND(F29*$D$27,2) -> 0 | J27: =ROUND(J29*$D$27,2) -> 0 | N27: =ROUND(N29*$D$27,2) -> 0 | R27: =ROUND(R29*$D$27,2) -> 0 | V27: =SUM(F27:U27) -> 0
A28: =IF(A27="F",A27,"") -> 
A29: =IF(A28="F",A28,"") ->  | F29: 0.2 | J29: 0.8 | V29: =IFERROR(E27/100,"") -> 0
A30: =IF(D30>0,"F","") ->  | B30: INST.ELET/TELEFÔNICA/CABEAMENTO ESTRUTURADO | D30: =Orçamento!X935 -> 0 | E30: =Orçamento!AA935 -> 0 | F30: =ROUND(F32*$D$30,2) -> 0 | J30: =ROUND(J32*$D$30,2) -> 0 | N30: =ROUND(N32*$D$30,2)+0.01 -> 0.01 | R30: =ROUND(R32*$D$30,2) -> 0 | V30: =SUM(F30:U30) -> 0.01
A31: =IF(A30="F",A30,"") -> 
A32: =IF(A31="F",A31,"") ->  | F32: 0.2 | J32: 0.3 | N32: 0.3 | R32: 0.2 | V32: =IFERROR(E30/100,"") -> 0
A33: =IF(D33>0,"F","") ->  | B33: INSTALAÇÕES HIDROSSANITÁRIAS | D33: =Orçamento!X936 -> 0 | E33: =Orçamento!AA936 -> 0 | F33: =ROUND(F35*$D$33,2) -> 0 | J33: =ROUND(J35*$D$33,2)-0.01 -> -0.01 | N33: =ROUND(N35*$D$33,2) -> 0 | R33: =ROUND(R35*$D$33,2) -> 0 | V33: =SUM(F33:U33) -> -0.01
A34: =IF(A33="F",A33,"") -> 
A35: =IF(A34="F",A34,"") ->  | F35: 0.2 | J35: 0.31 | N35: 0.29 | R35: 0.2 | V35: =IFERROR(E33/100,"") -> 0
A36: =IF(D36>0,"F","") ->  | B36: INSTALAÇÕES ESPECIAIS | D36: =Orçamento!X937 -> 0 | E36: =Orçamento!AA937 -> 0 | F36: =ROUND(F38*$D$36,2) -> 0 | J36: =ROUND(J38*$D$36,2) -> 0 | N36: =ROUND(N38*$D$36,2) -> 0 | R36: =ROUND(R38*$D$36,2) -> 0 | V36: =SUM(F36:U36) -> 0
A37: =IF(A36="F",A36,"") -> 
A38: =IF(A37="F",A37,"") ->  | R38: 1 | V38: =IFERROR(E36/100,"") -> 0
A39: =IF(D39>0,"F","") ->  | B39: ALVENARIA E DIVISÓRIAS | D39: =Orçamento!X938 -> 0 | E39: =Orçamento!AA938 -> 0 | F39: =ROUND(F41*$D$39,2) -> 0 | J39: =ROUND(J41*$D$39,2) -> 0 | N39: =ROUND(N41*$D$39,2) -> 0 | R39: =ROUND(R41*$D$39,2) -> 0 | V39: =SUM(F39:U39) -> 0
A40: =IF(A39="F",A39,"") -> 
A41: =IF(A40="F",A40,"") ->  | J41: 0.6 | N41: 0.4 | V41: =IFERROR(E39/100,"") -> 0
A42: =IF(D42>0,"F","") ->  | B42: ALVENARIA AUTO-PORTANTE | D42: =Orçamento!X939 -> 0 | E42: =Orçamento!AA939 -> 0 | F42: =ROUND(F44*$D$42,2) -> 0 | J42: =ROUND(J44*$D$42,2) -> 0 | N42: =ROUND(N44*$D$42,2) -> 0 | R42: =ROUND(R44*$D$42,2) -> 0 | V42: =SUM(F42:U42) -> 0
A43: =IF(A42="F",A42,"") -> 
A44: =IF(A43="F",A43,"") ->  | F44: 1 | J44: =1-B44 -> 1 | N44: =1-B44 -> 1 | R44: =1-F44 -> 0 | V44: =IFERROR(E42/100,"") -> 0
A45: =IF(D45>0,"F","") ->  | B45: IMPERMEABILIZAÇÃO | D45: =Orçamento!X940 -> 0 | E45: =Orçamento!AA940 -> 0 | F45: =ROUND(F47*$D$45,2) -> 0 | J45: =ROUND(J47*$D$45,2) -> 0 | N45: =ROUND(N47*$D$45,2) -> 0 | R45: =ROUND(R47*$D$45,2) -> 0 | V45: =SUM(F45:U45) -> 0
A46: =IF(A45="F",A45,"") -> 
A47: =IF(A46="F",A46,"") ->  | F47: 0.8 | J47: 0.2 | V47: =IFERROR(E45/100,"") -> 0
A48: =IF(D48>0,"F","") ->  | B48: ISOLAMENTO TÉRMICO E ACÚSTICO | D48: =Orçamento!X941 -> 0 | E48: =Orçamento!AA941 -> 0 | F48: =ROUND(F50*$D$48,2) -> 0 | J48: =ROUND(J50*$D$48,2) -> 0 | N48: =ROUND(N50*$D$48,2) -> 0 | R48: =ROUND(R50*$D$48,2) -> 0 | V48: =SUM(F48:U48) -> 0
A49: =IF(A48="F",A48,"") -> 
A50: =IF(A49="F",A49,"") ->  | F50: 0.5 | J50: =1-B50 -> 1 | N50: =1-B50 -> 1 | R50: =1-F50 -> 0.5 | V50: =IFERROR(E48/100,"") -> 0
A51: =IF(D51>0,"F","") ->  | B51: ESTRUTURA DE MADEIRA | D51: =Orçamento!X942 -> 0 | E51: =Orçamento!AA942 -> 0 | F51: =ROUND(F53*$D$51,2) -> 0 | J51: =ROUND(J53*$D$51,2) -> 0 | N51: =ROUND(N53*$D$51,2) -> 0 | R51: =ROUND(R53*$D$51,2) -> 0 | V51: =SUM(F51:U51) -> 0
A52: =IF(A51="F",A51,"") -> 
A53: =IF(A52="F",A52,"") ->  | J53: 1 | V53: =IFERROR(E51/100,"") -> 0
A54: =IF(D54>0,"F","") ->  | B54: ESTRUTURA METÁLICA | D54: =Orçamento!X943 -> 0 | E54: =Orçamento!AA943 -> 0 | F54: =ROUND(F56*$D$54,2) -> 0 | J54: =ROUND(J56*$D$54,2) -> 0 | N54: =ROUND(N56*$D$54,2) -> 0 | R54: =ROUND(R56*$D$54,2) -> 0 | V54: =SUM(F54:U54) -> 0
A55: =IF(A54="F",A54,"") -> 
A56: =IF(A55="F",A55,"") ->  | F56: 0.2 | J56: 0.8 | V56: =IFERROR(E54/100,"") -> 0
A57: =IF(D57>0,"F","") ->  | B57: COBERTURAS | D57: =Orçamento!X944 -> 0 | E57: =Orçamento!AA944 -> 0 | F57: =ROUND(F59*$D$57,2) -> 0 | J57: =ROUND(J59*$D$57,2) -> 0 | N57: =ROUND(N59*$D$57,2) -> 0 | R57: =ROUND(R59*$D$57,2) -> 0 | V57: =SUM(F57:U57) -> 0
A58: =IF(A57="F",A57,"") -> 
A59: =IF(A58="F",A58,"") ->  | F59: 0 | J59: 0.25 | N59: 0.6 | R59: 0.15 | V59: =IFERROR(E57/100,"") -> 0
A60: =IF(D60>0,"F","") ->  | B60: ESQUADRIAS DE MADEIRA | D60: =Orçamento!X945 -> 0 | E60: =Orçamento!AA945 -> 0 | F60: =ROUND(F62*$D$60,2) -> 0 | J60: =ROUND(J62*$D$60,2) -> 0 | N60: =ROUND(N62*$D$60,2) -> 0 | R60: =ROUND(R62*$D$60,2) -> 0 | V60: =SUM(F60:U60) -> 0
A61: =IF(A60="F",A60,"") -> 
A62: =IF(A61="F",A61,"") ->  | F62: 0.54 | J62: =1-B62 -> 1 | N62: =1-B62 -> 1 | R62: =1-F62 -> 0.46 | V62: =IFERROR(E60/100,"") -> 0
A63: =IF(D63>0,"F","") ->  | B63: ESQUADRIAS METÁLICAS | D63: =Orçamento!X946 -> 0 | E63: =Orçamento!AA946 -> 0 | F63: =ROUND(F65*$D$63,2) -> 0 | J63: =ROUND(J65*$D$63,2) -> 0 | N63: =ROUND(N65*$D$63,2) -> 0 | R63: =ROUND(R65*$D$63,2) -> 0 | V63: =SUM(F63:U63) -> 0
A64: =IF(A63="F",A63,"") -> 
A65: =IF(A64="F",A64,"") ->  | R65: =1-F65 -> 1 | V65: =IFERROR(E63/100,"") -> 0
A66: =IF(D66>0,"F","") ->  | B66: VIDROS | D66: =Orçamento!X947 -> 0 | E66: =Orçamento!AA947 -> 0 | F66: =ROUND(F68*$D$66,2) -> 0 | J66: =ROUND(J68*$D$66,2) -> 0 | N66: =ROUND(N68*$D$66,2) -> 0 | R66: =ROUND(R68*$D$66,2) -> 0 | V66: =SUM(F66:U66) -> 0
A67: =IF(A66="F",A66,"") -> 
A68: =IF(A67="F",A67,"") ->  | F68: 0 | R68: =1-F68 -> 1 | V68: =IFERROR(E66/100,"") -> 0
A69: =IF(D69>0,"F","") ->  | B69: REVESTIMENTO DE PAREDE | D69: =Orçamento!X948 -> 0 | E69: =Orçamento!AA948 -> 0 | F69: =ROUND(F71*$D$69,2) -> 0 | J69: =ROUND(J71*$D$69,2) -> 0 | N69: =ROUND(N71*$D$69,2) -> 0 | R69: =ROUND(R71*$D$69,2) -> 0 | V69: =SUM(F69:U69) -> 0
A70: =IF(A69="F",A69,"") -> 
A71: =IF(A70="F",A70,"") ->  | J71: 0.6 | N71: 0.4 | V71: =IFERROR(E69/100,"") -> 0
A72: =IF(D72>0,"F","") ->  | B72: FORROS | D72: =Orçamento!X949 -> 0 | E72: =Orçamento!AA949 -> 0 | F72: =ROUND(F74*$D$72,2) -> 0 | J72: =ROUND(J74*$D$72,2) -> 0 | N72: =ROUND(N74*$D$72,2) -> 0 | R72: =ROUND(R74*$D$72,2) -> 0 | V72: =SUM(F72:U72) -> 0
A73: =IF(A72="F",A72,"") -> 
A74: =IF(A73="F",A73,"") ->  | R74: =1-F74 -> 1 | V74: =IFERROR(E72/100,"") -> 0
A75: =IF(D75>0,"F","") ->  | B75: REVESTIMENTO DE PISO | D75: =Orçamento!X950 -> 0 | E75: =Orçamento!AA950 -> 0 | F75: =ROUND(F77*$D$75,2) -> 0 | J75: =ROUND(J77*$D$75,2) -> 0 | N75: =ROUND(N77*$D$75,2) -> 0 | R75: =ROUND(R77*$D$75,2) -> 0 | V75: =SUM(F75:U75) -> 0
A76: =IF(A75="F",A75,"") -> 
A77: =IF(A76="F",A76,"") ->  | F77: 0.21 | J77: 0.29 | N77: 0.4 | R77: 0.1 | V77: =IFERROR(E75/100,"") -> 0
A78: =IF(D78>0,"F","") ->  | B78: FERRAGENS | D78: =Orçamento!X951 -> 0 | E78: =Orçamento!AA951 -> 0 | F78: =ROUND(F80*$D$78,2) -> 0 | J78: =ROUND(J80*$D$78,2) -> 0 | N78: =ROUND(N80*$D$78,2) -> 0 | R78: =ROUND(R80*$D$78,2) -> 0 | V78: =SUM(F78:U78) -> 0
A79: =IF(A78="F",A78,"") -> 
A80: =IF(A79="F",A79,"") ->  | F80: 0 | R80: =1-F80 -> 1 | V80: =IFERROR(E78/100,"") -> 0
A81: =IF(D81>0,"F","") ->  | B81: MARCENARIA | D81: =Orçamento!X952 -> 0 | E81: =Orçamento!AA952 -> 0 | F81: =ROUND(F83*$D$81,2) -> 0 | J81: =ROUND(J83*$D$81,2) -> 0 | N81: =ROUND(N83*$D$81,2) -> 0 | R81: =ROUND(R83*$D$81,2)-0.01 -> -0.01 | V81: =SUM(F81:U81) -> -0.01
A82: =IF(A81="F",A81,"") -> 
A83: =IF(A82="F",A82,"") ->  | N83: 0.3 | R83: 0.7 | V83: =IFERROR(E81/100,"") -> 0
A84: =IF(D84>0,"F","") ->  | B84: ADMINISTRAÇÃO - MENSALISTAS | D84: =Orçamento!X953 -> 0 | E84: =Orçamento!AA953 -> 0 | F84: =ROUND(F86*$D$84,2) -> 0 | J84: =ROUND(J86*$D$84,2) -> 0 | N84: =ROUND(N86*$D$84,2) -> 0 | R84: =ROUND(R86*$D$84,2) -> 0 | V84: =SUM(F84:U84) -> 0
A85: =IF(A84="F",A84,"") -> 
A86: =IF(A85="F",A85,"") ->  | F86: 0.2133 | J86: 0.3406 | N86: 0.2516 | R86: 0.1945 | V86: =IFERROR(E84/100,"") -> 0
A87: =IF(D87>0,"F","") ->  | B87: PINTURA | D87: =Orçamento!X954 -> 0 | E87: =Orçamento!AA954 -> 0 | F87: =ROUND(F89*$D$87,2) -> 0 | J87: =ROUND(J89*$D$87,2) -> 0 | N87: =ROUND(N89*$D$87,2) -> 0 | R87: =ROUND(R89*$D$87,2) -> 0 | V87: =SUM(F87:U87) -> 0
A88: =IF(A87="F",A87,"") -> 
A89: =IF(A88="F",A88,"") ->  | F89: 0 | N89: 0.7 | R89: 0.3 | V89: =IFERROR(E87/100,"") -> 0
A90: =IF(D90>0,"F","") ->  | B90: DIVERSOS | D90: =Orçamento!X955 -> 0 | E90: =Orçamento!AA955 -> 0 | F90: =ROUND(F92*$D$90,2) -> 0 | J90: =ROUND(J92*$D$90,2) -> 0 | N90: =ROUND(N92*$D$90,2) -> 0 | R90: =ROUND(R92*$D$90,2) -> 0 | V90: =SUM(F90:U90) -> 0
A91: =IF(A90="F",A90,"") -> 
A92: =IF(A91="F",A91,"") ->  | F92: 0.2 | J92: 0.2 | N92: 0.3 | R92: 0.3 | V92: =IFERROR(E90/100,"") -> 0
A93: F | B93: CUSTO DO ORÇAMENTO | D93: =SUM(D15:D92) -> 0 | E93: =SUM(E15:E92) -> 0 | F93: =F15+F18+F21+F24+F27+F30+F33+F36+F39+F42+F45+F48+F51+F54+F57+F60+F63+F66+F69+F72+F75+F78+F81+F84+F87+F90 -> 0 | J93: =J15+J18+J21+J24+J27+J30+J33+J36+J39+J42+J45+J48+J51+J54+J57+J60+J63+J66+J69+J72+J75+J78+J81+J84+J87+J90 -> -0.01 | N93: =N15+N18+N21+N24+N27+N30+N33+N36+N39+N42+N45+N48+N51+N54+N57+N60+N63+N66+N69+N72+N75+N78+N81+N84+N87+N90 -> 0.01 | R93: =R15+R18+R21+R24+R27+R30+R33+R36+R39+R42+R45+R48+R51+R54+R57+R60+R63+R66+R69+R72+R75+R78+R81+R84+R87+R90 -> -0.01 | V93: =V15+V18+V21+V24+V27+V30+V33+V36+V39+V42+V45+V48+V51+V54+V57+V60+V63+V66+V69+V72+V75+V78+V81+V84+V87+V90 -> -0.01
A94: F | B94: PERCENTUAIS: | F94: =IFERROR(F93/D93,"") ->  | J94: =IFERROR(J93/D93,"") ->  | N94: =IFERROR(N93/D93,"") ->  | R94: =IFERROR(R93/D93,"") ->  | V94: =SUM(F94:U94) -> 0
A95: F | B95: TOTAIS ACUMULADOS: | F95: =F93 -> 0 | J95: =F95+J93 -> -0.01 | N95: =J95+N93 -> 0 | R95: =N95+R93 -> -0.01
A96: F | B96: PERCENTUAIS ACUMULADOS: | F96: =F94 ->  | J96: =IFERROR(F96+J94,"") ->  | N96: =IFERROR(J96+N94,"") ->  | R96: =IFERROR(N96+R94,"") -> 
A97: F
A98: F | B98: OBSERVAÇÕES:
A99: F | B99: Os pagamentos somente poderão ser efetuados mediante medição e atesto pelos técnicos da Secretaria da Educação.

Sheet Composição BDI
A3: UNIDADE ESCOLAR
A4: =Orçamento!$O$4 -> CENTRO DE ENSINO EM PERÍODO INTEGRAL PRÉ-UNIVERSITÁRIO
A6: OBRA
A7: =Orçamento!$O$7 -> REFORMA E AMPLIAÇÃO
A9: ENDEREÇO
A10: =Orçamento!$R$10 -> RUA 240 S/N, ST UNIVERSITARIO, CEP:74440-460
A12: CIDADE
A13: =Orçamento!$X$7 -> GOIÂNIA
A15: CRE
A16: =Orçamento!$O$10 -> GOIÂNIA
A18: DETALHAMENTO DA COMPOSIÇÃO DE BDI
A19: COMPOSIÇÃO BDI PARA OBRAS CIVIS | F19: BDI CONSTRUÇÃO E REFORMA
A20: DESCRIÇÃO | B20: COEF. | C20: TAXA % (a.m) | D20: % no preço de venda | F20: Situação | G20: 1º Quartil | H20: Médio | I20: 3º Quartil
A21: 1) COFINS | B21: 1 | C21: 0.03 | D21: =C21 -> 0.03 | F21: =IF(OR(C21<G21,C21>I21),"FORA DO INTERVALO","OK") -> OK | G21: 0.03 | H21: 0.03 | I21: 0.03
A22: 2) PIS | B22: 1 | C22: 0.0065 | D22: =C22 -> 0.0065 | F22: =IF(OR(C22<G22,C22>I22),"FORA DO INTERVALO","OK") -> OK | G22: 0.0065 | H22: 0.0065 | I22: 0.0065
A23: 3) ISSQN | B23: 1 | C23: 0.03 | D23: =C23*B23 -> 0.03 | F23: OK | G23: 0.02 | H23: 0.035 | I23: 0.05
A24: 4) CPRB | B24: 1 | C24: 0 | D24: =C24 -> 0 | F24: FORA DO INTERVALO | G24: 0.045 | H24: 0.045 | I24: 0.045
A25: 5) Administração Central | B25: 1 | C25: 0.0312 | D25: 0.0312 | F25: OK | G25: 0.03 | H25: 0.04 | I25: 0.055
A26: 6) Despesas Financeiras | B26: 1 | C26: 0.0056 | D26: 0.0056 | F26: FORA DO INTERVALO | G26: 0.0059 | H26: 0.0123 | I26: 0.0139
A27: 7) Seguros + Garantias | B27: 1 | C27: 0.0012 | D27: 0.0012 | F27: FORA DO INTERVALO | G27: 0.008 | H27: 0.008 | I27: 0.01
A28: 8) Risco | B28: 1 | C28: 0.0097 | D28: 0.0097 | F28: OK | G28: 0.0097 | H28: 0.0127 | I28: 0.0127
A29: 9) Lucro | B29: 1 | C29: 0.072 | D29: 0.072 | F29: OK | G29: 0.0616 | H29: 0.074 | I29: 0.0896
A30: BDI - FINAL | D30: =(((1+D25+D27+D28)*(1+D26)*(1+D29))/(1-(D21+D22+D23+D24))-1) -> 0.2034141775 | F30: FORA DO INTERVALO | G30: 0.2034 | H30: 0.2212 | I30: 0.25
A32: Notas:
A33: (1) e (2) Alíquota definida por lei.
A34: (3) Alíquota e base de cálculo definidas pela legislação municipal.
A35: (4) Alíquota definida pelas leis 12.546/11, 12844/13 e 13.161/15 (CPRB – contribuição previdenciária sobre a receita bruta).
A36: (5) Valores definidos a partir dos limites no Acórdão nº 2.622/2013 - TCU – Plenário. Valores entre o 1º e 3º quartis.
A37: (6) Valor calculado pela expressão matemática do acórdão 2.369/2011 – TCU – Plenário e disponibilizado pela AGETOP em dezembro de 2018. (Foi utilizado para o cálculo a média da Taxa SELIC no período de 11/2017 a 10/2018)
A39: (7) Valores definidos pela AGETOP a partir dos limites no Acórdão nº 2.622/2013 - TCU – Plenário. Valores médios. Observação da AGETOP: (Seguros contra erros de execução, incêndio e explosão, danos da natureza (vendaval, destelhamento, alagamento, inundação, desmoronamento, geadas etc.), emprego de material defeituoso ou inadequado, roubo e/ou furto qualificado, quebra de equipamentos, desmoronamento de estrutura, nas modalidades de Obras Civis em Construção (OCC); Instalação e Montagem (IM); e Obras Civis em Construção e Instalação e Montagem (OCC/IM). Bem como coberturas adicionais para ampliação dessas coberturas básicas, como: cobertura de responsabilidade civil geral, cobertura de responsabilidade civil cruzada, cobertura de despesas extraordinárias, cobertura de tumultos, cobertura de desentulho do local, cobertura de riscos do fabricante, dentre outras, incluindo o seguro de vida em grupo regido pela convenção coletiva dos trabalhadores na indústria da construção civil). A partir de 24/02/2015 por intermédio da Portaria 449/2015 a Presidência da AGETOP, na pessoa do Senhor Jayme Eduardo Rincon, determinou a exclusão dos valores referentes aos Seguros de Risco de Engenharia e Responsabilidade Civil do Profissional na composição do cálculo do B.D.I..
A40: (8) Valores definidos a partir dos limites no Acórdão nº 2.622/2013 - TCU – Plenário. Valores entre 1º e 3° quartis.
A41: (9) Valores definidos a partir dos limites definidos no Acórdão nº 2.622/2013 - TCU – Plenário. Valores adotados e praticados no mercado ( “ ex ante ” ) ou aqueles entre os 1º e 3º quartis.
A43: (*) A fórmula para estipulação da taxa de BDI estimado adotado é a mesma que foi aplicada para a obtenção das tabelas contidas no Acórdão n. 2.622/2013 – TCUPlenário
A45: Obs.: Para obras com valores superiores a R$ 20.000.000,00 sugere-se recalcular o BDI, dimensionando as taxas de administração central e lucro para patamares inferiores ao estipulado acima.

Sheet Relatório CENTRAL
B3: UNIDADE ESCOLAR | D3: CIDADE
B4: =Orçamento!$O$4 -> CENTRO DE ENSINO EM PERÍODO INTEGRAL PRÉ-UNIVERSITÁRIO | D4: =Orçamento!$X$7 -> GOIÂNIA
B6: OBRA | D6: CRE
B7: =Orçamento!$O$7 -> REFORMA E AMPLIAÇÃO | D7: =Orçamento!$O$10 -> GOIÂNIA
B9: ENDEREÇO | D9: DATA
A10: FILTRO | B10: =Orçamento!$R$10 -> RUA 240 S/N, ST UNIVERSITARIO, CEP:74440-460 | D10: =Orçamento!$S$7 -> 2020-04-23
B12: RELATÓRIO CENTRAL
A13: ↓ | B13: CÓDIGO | C13: ETAPA | D13: PREÇO (R$) C/ BDI | E13: PARTIC ( % )
A14: =IF(D14>0,"F","") ->  | B14: =Orçamento!O930 -> a. | C14: =Orçamento!P930 -> SERVIÇOS PRELIMINARES | D14: =Orçamento!X930 -> 0 | E14: =Orçamento!AA930 -> 0
A15: =IF(D15>0,"F","") ->  | B15: =Orçamento!O931 -> b. | C15: =Orçamento!P931 -> TRANSPORTES | D15: =Orçamento!X931 -> 0 | E15: =Orçamento!AA931 -> 0
B16: =Orçamento!O932 -> c. | C16: =Orçamento!P932 -> SERVIÇO EM TERRA | D16: =Orçamento!X932 -> 0 | E16: =Orçamento!AA932 -> 0
B17: =Orçamento!O933 -> d. | C17: =Orçamento!P933 -> FUNDAÇÕES E SONDAGENS | D17: =Orçamento!X933 -> 0 | E17: =Orçamento!AA933 -> 0
B18: =Orçamento!O934 -> e. | C18: =Orçamento!P934 -> ESTRUTURA | D18: =Orçamento!X934 -> 0 | E18: =Orçamento!AA934 -> 0
B19: =Orçamento!O935 -> f. | C19: =Orçamento!P935 -> INSTALAÇÕES ELÉTRICAS | D19: =Orçamento!X935 -> 0 | E19: =Orçamento!AA935 -> 0
B20: =Orçamento!O936 -> g. | C20: =Orçamento!P936 -> INSTALAÇÕES HIDROSSANITÁRIAS | D20: =Orçamento!X936 -> 0 | E20: =Orçamento!AA936 -> 0
B21: =Orçamento!O937 -> h | C21: =Orçamento!P937 -> INSTALAÇÕES ESPECIAIS | D21: =Orçamento!X937 -> 0 | E21: =Orçamento!AA937 -> 0
B22: =Orçamento!O938 -> i. | C22: =Orçamento!P938 -> ALVENARIAS E DIVISÓRIAS | D22: =Orçamento!X938 -> 0 | E22: =Orçamento!AA938 -> 0
B23: =Orçamento!O939 -> j. | C23: =Orçamento!P939 -> ALVENARIA AUTO-PORTANTE | D23: =Orçamento!X939 -> 0 | E23: =Orçamento!AA939 -> 0
B24: =Orçamento!O940 -> k. | C24: =Orçamento!P940 -> IMPERMEABILIZAÇÃO | D24: =Orçamento!X940 -> 0 | E24: =Orçamento!AA940 -> 0
B25: =Orçamento!O941 -> l. | C25: =Orçamento!P941 -> ISOLAMENTO TÉRMICO E ACÚSTICO | D25: =Orçamento!X941 -> 0 | E25: =Orçamento!AA941 -> 0
B26: =Orçamento!O942 -> m. | C26: =Orçamento!P942 -> ESTRUTURA DE MADEIRA | D26: =Orçamento!X942 -> 0 | E26: =Orçamento!AA942 -> 0
B27: =Orçamento!O943 -> n. | C27: =Orçamento!P943 -> ESTRUTURAS METÁLICAS | D27: =Orçamento!X943 -> 0 | E27: =Orçamento!AA943 -> 0
B28: =Orçamento!O944 -> o. | C28: =Orçamento!P944 -> COBERTURAS | D28: =Orçamento!X944 -> 0 | E28: =Orçamento!AA944 -> 0
B29: =Orçamento!O945 -> p. | C29: =Orçamento!P945 -> ESQUADRIAS DE MADEIRA | D29: =Orçamento!X945 -> 0 | E29: =Orçamento!AA945 -> 0
B30: =Orçamento!O946 -> q. | C30: =Orçamento!P946 -> ESQUADRIAS METÁLICAS | D30: =Orçamento!X946 -> 0 | E30: =Orçamento!AA946 -> 0
B31: =Orçamento!O947 -> r. | C31: =Orçamento!P947 -> VIDROS | D31: =Orçamento!X947 -> 0 | E31: =Orçamento!AA947 -> 0
B32: =Orçamento!O948 -> s. | C32: =Orçamento!P948 -> REVESTIMENTO DE PAREDE | D32: =Orçamento!X948 -> 0 | E32: =Orçamento!AA948 -> 0
B33: =Orçamento!O949 -> t. | C33: =Orçamento!P949 -> FORROS | D33: =Orçamento!X949 -> 0 | E33: =Orçamento!AA949 -> 0
B34: =Orçamento!O950 -> u. | C34: =Orçamento!P950 -> REVESTIMENTO DE PISO | D34: =Orçamento!X950 -> 0 | E34: =Orçamento!AA950 -> 0
B35: =Orçamento!O951 -> v. | C35: =Orçamento!P951 -> FERRAGENS | D35: =Orçamento!X951 -> 0 | E35: =Orçamento!AA951 -> 0
B36: =Orçamento!O952 -> w. | C36: =Orçamento!P952 -> MARCENARIA | D36: =Orçamento!X952 -> 0 | E36: =Orçamento!AA952 -> 0
B37: =Orçamento!O953 -> x. | C37: =Orçamento!P953 -> ADMINISTRAÇÃO | D37: =Orçamento!X953 -> 0 | E37: =Orçamento!AA953 -> 0
B38: =Orçamento!O954 -> y. | C38: =Orçamento!P954 -> PINTURA | D38: =Orçamento!X954 -> 0 | E38: =Orçamento!AA954 -> 0
B39: =Orçamento!O955 -> z. | C39: =Orçamento!P955 -> DIVERSOS | D39: =Orçamento!X955 -> 0 | E39: =Orçamento!AA955 -> 0
A40: F | B40: TOTAL GERAL DO ORÇAMENTO (R$) C/BDI | D40: =SUM(D14:D39) -> 0 | E40: =SUM(E14:E39) -> 0

Sheet Parc Maior Relev
B3: UNIDADE ESCOLAR | E3: CÓDIGO INEP
B4: =Orçamento!$O$4 -> CENTRO DE ENSINO EM PERÍODO INTEGRAL PRÉ-UNIVERSITÁRIO | E4: =Orçamento!$X$4 -> 52033570
B6: OBRA | E6: CIDADE
B7: =Orçamento!$O$7 -> REFORMA E AMPLIAÇÃO | E7: =Orçamento!$X$7 -> GOIÂNIA
B9: CRE | E9: ÁREA TOTAL CONSTRUÍDA (M²)
B10: =Orçamento!$O$10 -> GOIÂNIA | E10: =Orçamento!$S$13 -> 4643.25
A11: FILTRO
B12: PARCELA DE MAIOR RELEVÂNCIA
B13: CÓDIGO | C13: SERVIÇO | D13: DESCRIÇÃO | E13: UNID | F13: QUANT | G13: PARC. MAIOR RELEV (50%)
A14: =IF(F14>0,"F","") -> F | B14: U. | C14: =IFERROR(VLOOKUP(B14,Orçamento!$O$930:$P$955,2,FALSE),"(inserir código ao lado)") -> REVESTIMENTO DE PISO | D14: PISO TÁTIL | E14: M² | F14: =Orçamento!T344 -> 174.53 | G14: =F14*0.5 -> 87.265
A15: =IF(F15>0,"F","") ->  | B15: O. | C15: =IFERROR(VLOOKUP(B15,Orçamento!$O$930:$P$955,2,FALSE),"(inserir código ao lado)") -> COBERTURAS | D15: TELHA CERÂMICA | E15: M² | F15: =Orçamento!V723+Orçamento!V875+Orçamento!V595 -> 0 | G15: =F15*0.5 -> 0
A16: =IF(F16>0,"F","") ->  | C16: =IFERROR(VLOOKUP(B16,Orçamento!$O$930:$P$955,2,FALSE),"(inserir código ao lado)") -> (inserir código ao lado) | E16: =IFERROR(VLOOKUP($D16,Orçamento!$R$20:$Y$911,2,FALSE),"-") -> - | F16: =SUMIF(Orçamento!$R$20:$R$911,'Parc Maior Relev'!D16,Orçamento!$T$20:$T$911) -> 0 | G16: =F16*0.5 -> 0
A17: =IF(F17>0,"F","") ->  | C17: =IFERROR(VLOOKUP(B17,Orçamento!$O$930:$P$955,2,FALSE),"(inserir código ao lado)") -> (inserir código ao lado) | E17: =IFERROR(VLOOKUP($D17,Orçamento!$R$20:$Y$911,2,FALSE),"-") -> - | F17: =SUMIF(Orçamento!$R$20:$R$911,'Parc Maior Relev'!D17,Orçamento!$T$20:$T$911) -> 0 | G17: =F17*0.5 -> 0
A18: =IF(F18>0,"F","") ->  | C18: =IFERROR(VLOOKUP(B18,Orçamento!$O$930:$P$955,2,FALSE),"(inserir código ao lado)") -> (inserir código ao lado) | E18: =IFERROR(VLOOKUP($D18,Orçamento!$R$20:$Y$911,2,FALSE),"-") -> - | F18: =SUMIF(Orçamento!$R$20:$R$911,'Parc Maior Relev'!D18,Orçamento!$T$20:$T$911) -> 0 | G18: =F18*0.5 -> 0
A19: F
A20: F | B20: (*) Para os fins do inciso I dp § 1º do Art. 30 da Lei Federal 8.666/93, são consideradas parcelas de maior relevância técnica as execuções apresentadas
A21: F

Sheet Composições
A4: UNIDADE ESCOLAR | H4: CÓDIGO INEP
A5: =Orçamento!$O$4 -> CENTRO DE ENSINO EM PERÍODO INTEGRAL PRÉ-UNIVERSITÁRIO | H5: =Orçamento!$X$4 -> 52033570
A7: OBRA | H7: CIDADE
A8: =Orçamento!$O$7 -> REFORMA E AMPLIAÇÃO | H8: =Orçamento!$X$7 -> GOIÂNIA
A10: CRE | D10: ENDEREÇO | H10: REFERÊNCIA AGETOP
A11: =Orçamento!$O$10 -> GOIÂNIA | D11: =Orçamento!$R$10 -> RUA 240 S/N, ST UNIVERSITARIO, CEP:74440-460 | H11: =Orçamento!$X$10 -> DEZ/18 | I11: =Orçamento!$Y$10 -> ONERADA
A13: DATA | D13: ÁREA TOTAL CONSTRUÍDA (M²) | H13: REFERÊNCIA SINAPI
A14: =Orçamento!$S$7 -> 2020-04-23 | D14: =Orçamento!$S$13 -> 4643.25 | H14: =Orçamento!$X$13 -> JUL/19 | I14: =Orçamento!$Y$13 -> ONERADA
A16: COMPOSIÇÕES DE CUSTOS UNITÁRIOS - SEE-GO
A17: 199 | B17: FONTE | C17: CÓDIGO | D17: DESCRIÇÃO | E17: UNIDADE | F17: COEFIC. | G17: CUSTO UNITÁRIO | I17: CUSTO TOTAL (A) + (B) + (C) + (D) + (E)
G18: DESONERADO | H18: NÃO DESONER. | I18: DESONERADO | J18: NÃO DESONER.
B19: COMPOSIÇÃO | C19: COMP 199_SEE | D19: ESTACA A TRADO DIAM.40 CM S/FERRO | E19: M | I19: 52.82 | J19: 54.99
B20: AGETOP_I | C20: 5 | D20: SERVENTE | E20: h | F20: 0.6479 | G20: 8.2 | H20: 9.51 | I20: 5.31 | J20: 6.16
B21: AGETOP_I | C21: 4 | D21: PEDREIRO | E21: h | F21: 0.5656 | G21: 13.4 | H21: 15.53 | I21: 7.58 | J21: 8.78
B22: AGETOP_I | C22: 32 | D22: OPERADOR DE BETONEIRA | E22: h | F22: 0.0809 | G22: 9.85 | H22: 11.41 | I22: 0.8 | J22: 0.92
B23: MÃO DE OBRA (B) - TOTAL | I23: 13.69 | J23: 15.86
B24: AGETOP_I | C24: 2804 | D24: AREIA GROSSA | E24: m3 | F24: 0.07259 | G24: 90 | H24: 90 | I24: 6.53 | J24: 6.53
B25: AGETOP_I | C25: 2386 | D25: BRITA No. 01 | E25: m3 | F25: 0.08942 | G25: 85.36 | H25: 85.36 | I25: 7.63 | J25: 7.63
B26: AGETOP_I | C26: 2497 | D26: BRITA No.02 | E26: m3 | F26: 0.08942 | G26: 74.9 | H26: 74.9 | I26: 6.7 | J26: 6.7
B27: AGETOP_I | C27: 1215 | D27: CIMENTO PORTLAND C.P. 32 | E27: Kg | F27: 46.8488 | G27: 0.39 | H27: 0.39 | I27: 18.27 | J27: 18.27
B28: MATERIAL (C) - TOTAL | I28: 39.13 | J28: 39.13
A30: 40 | B30: FONTE | C30: CÓDIGO | D30: DESCRIÇÃO | E30: UNIDADE | F30: COEFIC. | G30: CUSTO UNITÁRIO | I30: CUSTO TOTAL (A) + (B) + (C) + (D) + (E)
G31: DESONERADO | H31: NÃO DESONER. | I31: DESONERADO | J31: NÃO DESONER.
B32: COMPOSIÇÃO | C32: COMP 040_SEE | D32: CONJUNTO MOTOR-BOMBA ELÉTRICA TRIFÁSICO 380/220 V PARA VZ= 24,33 M³/H, HM= 46,24 M POTÊNCIA= 7,5 CV | E32: UN | I32: 3965.47 | J32: 3992.99
B33: AGETOP_I | C33: 8 | D33: AJUDANTE | E33: h | F33: 8 | G33: 8.2 | H33: 9.51 | I33: 65.6 | J33: 76.08
B34: AGETOP_I | C34: 11 | D34: ENCANADOR | E34: h | F34: 8 | G34: 13.4 | H34: 15.53 | I34: 107.2 | J34: 124.24
G35: 0 | H35: 0 | I35: 0 | J35: 0
B36: MÃO DE OBRA (B) - TOTAL | I36: 172.8 | J36: 200.32
B37: COTAÇÃO | C37: COT 008_SEE | D37: CONJUNTO MOTOR-BOMBA ELÉTRICA TRIFÁSICO 380/220 V PARA VZ= 24,33 M³/H, HM= 46,24 M POTÊNCIA= 7,5 CV | E37: UN | F37: 1 | G37: 3792.666667 | H37: 3792.666667 | I37: 3792.67 | J37: 3792.67
G38: 0 | H38: 0 | I38: 0 | J38: 0
G39: 0 | H39: 0 | I39: 0 | J39: 0
B40: MATERIAL (C) - TOTAL | I40: 3792.67 | J40: 3792.67
A42: 558 | B42: FONTE | C42: CÓDIGO | D42: DESCRIÇÃO | E42: UNID | F42: COEFIC. | G42: CUSTO UNITÁRIO | I42: CUSTO TOTAL (A) + (B) + (C) + (D) + (E)
G43: DESONERADO | H43: NÃO DESONER. | I43: DESONERADO | J43: NÃO DESONER.
B44: COMPOSIÇÃO | C44: COMP 558_SEE | D44: BOMBA DE PRESSURIZAÇÃO JOCKEY 3,0 CV | E44: UN | F44: - | G44: - | H44: - | I44: 2687.07 | J44: 2714.59
B45: AGETOP_I | C45: 8 | D45: AJUDANTE | E45: h | F45: 8 | G45: 8.2 | H45: 9.51 | I45: 65.6 | J45: 76.08
B46: AGETOP_I | C46: 12 | D46: ELETRICISTA | E46: h | F46: 8 | G46: 13.4 | H46: 15.53 | I46: 107.2 | J46: 124.24
G47: 0 | H47: 0 | I47: 0 | J47: 0
B48: MÃO DE OBRA (B) - TOTAL | I48: 172.8 | J48: 200.32
B49: COTAÇÃO | C49: COT 303_SEE | D49: BOMBA DE PRESSURIZAÇÃO JOCKEY 3,0 CV | E49: UN | F49: 1 | G49: 2514.266667 | H49: 2514.266667 | I49: 2514.27 | J49: 2514.27
G50: 0 | H50: 0 | I50: 0 | J50: 0
G51: 0 | H51: 0 | I51: 0 | J51: 0
B52: MATERIAL (C) - TOTAL | I52: 2514.27 | J52: 2514.27
A54: 17 | B54: FONTE | C54: CÓDIGO | D54: DESCRIÇÃO | E54: UNIDADE | F54: COEFIC. | G54: CUSTO UNITÁRIO | I54: CUSTO TOTAL (A) + (B) + (C) + (D) + (E)
G55: DESONERADO | H55: NÃO DESONER. | I55: DESONERADO | J55: NÃO DESONER.
B56: COMPOSIÇÃO | C56: COMP 017_SEE | D56: REDUCAO GIRATÓRIA TIPO STORZ LATAO P/ INST. PREDIAL COMBATE A INCENDIO ENGATE RAPIDO 2.1/2" X 1.1/2" | E56: UN | G56: - | H56: - | I56: 99.14 | J56: 99.69
B57: AGETOP_I | C57: 8 | D57: AJUDANTE | E57: h | F57: 0.16 | G57: 8.2 | H57: 9.51 | I57: 1.31 | J57: 1.52
B58: AGETOP_I | C58: 11 | D58: ENCANADOR | E58: h | F58: 0.16 | G58: 13.4 | H58: 15.53 | I58: 2.14 | J58: 2.48
G59: 0 | H59: 0 | I59: 0 | J59: 0
B60: MÃO DE OBRA (B) - TOTAL | I60: 3.45 | J60: 4
B61: SINAPI_I | C61: 20972 | D61: REDUCAO FIXA TIPO STORZ, ENGATE RAPIDO 2.1/2" X 1.1/2", EM LATAO, PARA INSTALACAO PREDIAL COMBATE A INCENDIO PREDIAL | E61: UN | F61: 1 | G61: 95.69 | H61: 95.69 | I61: 95.69 | J61: 95.69
G62: 0 | H62: 0 | I62: 0 | J62: 0
G63: 0 | H63: 0 | I63: 0 | J63: 0
B64: MATERIAL (C) - TOTAL | I64: 95.69 | J64: 95.69
A66: 18 | B66: FONTE | C66: CÓDIGO | D66: DESCRIÇÃO | E66: UNIDADE | F66: COEFIC. | G66: CUSTO UNITÁRIO | I66: CUSTO TOTAL (A) + (B) + (C) + (D) + (E)
G67: DESONERADO | H67: NÃO DESONER. | I67: DESONERADO | J67: NÃO DESONER.
B68: COMPOSIÇÃO | C68: COMP 018_SEE | D68: CHAVE DUPLA P/ CONEXÕES TIPO STORZ EM LATÃO ENGATE RÁPIDO 1 1/2" X 2 1/2" | E68: UN | G68: - | H68: - | I68: 14.76 | J68: 15.08
B69: AGETOP_I | C69: 11 | D69: ENCANADOR | E69: h | F69: 0.15 | G69: 13.4 | H69: 15.53 | I69: 2.01 | J69: 2.33
G70: 0 | H70: 0 | I70: 0 | J70: 0
G71: 0 | H71: 0 | I71: 0 | J71: 0
B72: MÃO DE OBRA (B) - TOTAL | I72: 2.01 | J72: 2.33
B73: SINAPI_I | C73: 20971 | D73: CHAVE DUPLA PARA CONEXOES TIPO STORZ, ENGATE RAPIDO 1 1/2" X 2 1/2", EM LATAO, PARA INSTALACAO PREDIAL COMBATE A INCENDIO | E73: UN | F73: 1 | G73: 12.75 | H73: 12.75 | I73: 12.75 | J73: 12.75
G74: 0 | H74: 0 | I74: 0 | J74: 0
G75: 0 | H75: 0 | I75: 0 | J75: 0
B76: MATERIAL (C) - TOTAL | I76: 12.75 | J76: 12.75
A78: 87 | B78: FONTE | C78: CÓDIGO | D78: DESCRIÇÃO | E78: UNIDADE | F78: COEFIC. | G78: CUSTO UNITÁRIO | I78: CUSTO TOTAL (A) + (B) + (C) + (D) + (E)
G79: DESONERADO | H79: NÃO DESONER. | I79: DESONERADO | J79: NÃO DESONER.
B80: COMPOSIÇÃO | C80: COMP 087_SEE | D80: REGISTRO DE GAVETA COM HASTE ASCENDENTE DE BRONZE 2 1/2" | E80: UN | I80: 257.3 | J80: 261.26
B81: AGETOP_I | C81: 8 | D81: AJUDANTE | E81: h | F81: 1.15 | G81: 8.2 | H81: 9.51 | I81: 9.43 | J81: 10.94
B82: AGETOP_I | C82: 11 | D82: ENCANADOR | E82: h | F82: 1.15 | G82: 13.4 | H82: 15.53 | I82: 15.41 | J82: 17.86
G83: 0 | H83: 0 | I83: 0 | J83: 0
B84: MÃO DE OBRA (B) - TOTAL | I84: 24.84 | J84: 28.8
B85: AGETOP_I | C85: H689 | D85: FITA VEDAROSCA 12 MM | E85: m | F85: 2.82 | G85: 0.28 | H85: 0.28 | I85: 0.79 | J85: 0.79
B86: COTAÇÃO | C86: COT 017_SEE | D86: REGISTRO DE GAVETA COM HASTE ASCENDENTE DE BRONZE 2 1/2" | E86: UN | F86: 1 | G86: 231.6666667 | H86: 231.6666667 | I86: 231.67 | J86: 231.67
G87: 0 | H87: 0 | I87: 0 | J87: 0
B88: MATERIAL (C) - TOTAL | I88: 232.46 | J88: 232.46
A90: 19 | B90: FONTE | C90: CÓDIGO | D90: DESCRIÇÃO | E90: UNIDADE | F90: COEFIC. | G90: CUSTO UNITÁRIO | I90: CUSTO TOTAL (A) + (B) + (C) + (D) + (E)
G91: DESONERADO | H91: NÃO DESONER. | I91: DESONERADO | J91: NÃO DESONER.
B92: COMPOSIÇÃO | C92: COMP 019_SEE | D92: TAMPÃO LATAO C/ CORRENTE P/ INSTALAÇÃO PREDIAL COMBATE A INCÊNDIO ENGATE RÁPIDO 1 1/2" | E92: UN | G92: - | H92: - | I92: 55.55 | J92: 56.07
B93: AGETOP_I | C93: 11 | D93: ENCANADOR | E93: h | F93: 0.15 | G93: 13.4 | H93: 15.53 | I93: 2.01 | J93: 2.33
B94: AGETOP_I | C94: 8 | D94: AJUDANTE | E94: h | F94: 0.15 | G94: 8.2 | H94: 9.51 | I94: 1.23 | J94: 1.43
G95: 0 | H95: 0 | I95: 0 | J95: 0
B96: MÃO DE OBRA (B) - TOTAL | I96: 3.24 | J96: 3.76
B97: SINAPI_I | C97: 20964 | D97: TAMPAO COM CORRENTE, EM LATAO, ENGATE RAPIDO 1 1/2", PARA INSTALACAO PREDIAL DE COMBATE A INCENDIO | E97: UN | F97: 1 | G97: 52.31 | H97: 52.31 | I97: 52.31 | J97: 52.31
G98: 0 | H98: 0 | I98: 0 | J98: 0
G99: 0 | H99: 0 | I99: 0 | J99: 0
B100: MATERIAL (C) - TOTAL | I100: 52.31 | J100: 52.31
A102: 88 | B102: FONTE | C102: CÓDIGO | D102: DESCRIÇÃO | E102: UNIDADE | F102: COEFIC. | G102: CUSTO UNITÁRIO | I102: CUSTO TOTAL (A) + (B) + (C) + (D) + (E)
G103: DESONERADO | H103: NÃO DESONER. | I103: DESONERADO | J103: NÃO DESONER.
B104: COMPOSIÇÃO | C104: COMP 088_SEE | D104: TE DE FERRO GALVANIZADO 90º X 2.1/2" X 1" | E104: UN | I104: 91.65 | J104: 93.79
B105: AGETOP_I | C105: 8 | D105: AJUDANTE | E105: h | F105: 0.624 | G105: 8.2 | H105: 9.51 | I105: 5.12 | J105: 5.93
B106: AGETOP_I | C106: 11 | D106: ENCANADOR | E106: h | F106: 0.624 | G106: 13.4 | H106: 15.53 | I106: 8.36 | J106: 9.69
G107: 0 | H107: 0 | I107: 0 | J107: 0
B108: MÃO DE OBRA (B) - TOTAL | I108: 13.48 | J108: 15.62
B109: AGETOP_I | C109: H689 | D109: FITA VEDAROSCA 12 MM | E109: m | F109: 1.2 | G109: 0.28 | H109: 0.28 | I109: 0.34 | J109: 0.34
B110: SINAPI_I | C110: 6307 | D110: TE DE REDUCAO DE FERRO GALVANIZADO, COM ROSCA BSP, DE 2 1/2" X 1" | E110: UN | F110: 1 | G110: 77.83 | H110: 77.83 | I110: 77.83 | J110: 77.83
G111: 0 | H111: 0 | I111: 0 | J111: 0
B112: MATERIAL (C) - TOTAL | I112: 78.17 | J112: 78.17
A114: 30 | B114: FONTE | C114: CÓDIGO | D114: DESCRIÇÃO | E114: UNIDADE | F114: COEFIC. | G114: CUSTO UNITÁRIO | I114: CUSTO TOTAL (A) + (B) + (C) + (D) + (E)
G115: DESONERADO | H115: NÃO DESONER. | I115: DESONERADO | J115: NÃO DESONER.
B116: COMPOSIÇÃO | C116: COMP 030_SEE | D116: COTOVELO DE FERRO GALV. 90° X 2 1/2" | E116: UN | I116: 72.34 | J116: 75.51
B117: AGETOP_I | C117: 8 | D117: AJUDANTE | E117: h | F117: 0.92 | G117: 8.2 | H117: 9.51 | I117: 7.54 | J117: 8.75
B118: AGETOP_I | C118: 11 | D118: ENCANADOR | E118: h | F118: 0.92 | G118: 13.4 | H118: 15.53 | I118: 12.33 | J118: 14.29
B119: MÃO DE OBRA (B) - TOTAL | I119: 19.87 | J119: 23.04
B120: SINAPI_I | C120: 3470 | D120: COTOVELO 90 GRAUS DE FERRO GALVANIZADO, COM ROSCA BSP, DE 2 1/2" | E120: UN | F120: 1 | G120: 51.91 | H120: 51.91 | I120: 51.91 | J120: 51.91
B121: AGETOP_I | C121: H689 | D121: FITA VEDAROSCA 12 MM | E121: m | F121: 2 | G121: 0.28 | H121: 0.28 | I121: 0.56 | J121: 0.56
B122: MATERIAL (C) - TOTAL | I122: 52.47 | J122: 52.47
A124: 77 | B124: FONTE | C124: CÓDIGO | D124: DESCRIÇÃO | E124: UNIDADE | F124: COEFIC. | G124: CUSTO UNITÁRIO | I124: CUSTO TOTAL (A) + (B) + (C) + (D) + (E)
G125: DESONERADO | H125: NÃO DESONER. | I125: DESONERADO | J125: NÃO DESONER.
B126: COMPOSIÇÃO | C126: COMP 077_SEE | D126: UNIAO FERRO GALV C/ASSENTO CONICO BRONZE 2 1/2" | E126: UN | I126: 157.36 | J126: 158.73
B127: AGETOP_I | C127: 8 | D127: AJUDANTE | E127: h | F127: 0.4 | G127: 8.2 | H127: 9.51 | I127: 3.28 | J127: 3.8
B128: AGETOP_I | C128: 11 | D128: ENCANADOR | E128: h | F128: 0.4 | G128: 13.4 | H128: 15.53 | I128: 5.36 | J128: 6.21
B129: MÃO DE OBRA (B) - TOTAL | I129: 8.64 | J129: 10.01
B130: AGETOP_I | C130: H689 | D130: FITA VEDAROSCA 12 MM | E130: m | F130: 2.4 | G130: 0.28 | H130: 0.28 | I130: 0.67 | J130: 0.67
B131: SINAPI_I | C131: 12427 | D131: UNIAO COM ASSENTO CONICO DE BRONZE, DIAMETRO 2 1/2" | E131: UN | F131: 1 | G131: 148.05 | H131: 148.05 | I131: 148.05 | J131: 148.05
B132: MATERIAL (C) - TOTAL | I132: 148.72 | J132: 148.72
A134: 76 | B134: FONTE | C134: CÓDIGO | D134: DESCRIÇÃO | E134: UNIDADE | F134: COEFIC. | G134: CUSTO UNITÁRIO | I134: CUSTO TOTAL (A) + (B) + (C) + (D) + (E)
G135: DESONERADO | H135: NÃO DESONER. | I135: DESONERADO | J135: NÃO DESONER.
B136: COMPOSIÇÃO | C136: COMP 076_SEE | D136: CURVA FERRO GALVANIZADO 45G ROSCA MACHO/FEMEA REF. 2 1/2" | E136: UN | I136: 122.92 | J136: 126.09
B137: AGETOP_I | C137: 8 | D137: AJUDANTE | E137: h | F137: 0.92 | G137: 8.2 | H137: 9.51 | I137: 7.54 | J137: 8.75
B138: AGETOP_I | C138: 11 | D138: ENCANADOR | E138: h | F138: 0.92 | G138: 13.4 | H138: 15.53 | I138: 12.33 | J138: 14.29
B139: MÃO DE OBRA (B) - TOTAL | I139: 19.87 | J139: 23.04
B140: SINAPI_I | C140: 3148 | D140: FITA VEDA ROSCA EM ROLOS DE 18 MM X 50 M (L X C) | E140: UN | F140: 0.0491 | G140: 12.9 | H140: 12.9 | I140: 0.63 | J140: 0.63
B141: SINAPI_I | C141: 1784 | D141: CURVA 45 GRAUS DE FERRO GALVANIZADO, COM ROSCA BSP MACHO/FEMEA, DE 2 1/2" | E141: UN | F141: 1 | G141: 102.42 | H141: 102.42 | I141: 102.42 | J141: 102.42
B142: MATERIAL (C) - TOTAL | I142: 103.05 | J142: 103.05
A144: 22 | B144: FONTE | C144: CÓDIGO | D144: DESCRIÇÃO | E144: UNIDADE | F144: COEFIC. | G144: CUSTO UNITÁRIO | I144: CUSTO TOTAL (A) + (B) + (C) + (D) + (E)
G145: DESONERADO | H145: NÃO DESONER. | I145: DESONERADO | J145: NÃO DESONER.
B146: COMPOSIÇÃO | C146: COMP 022_SEE | D146: TAMPÃO FOFO 40X50CM C/INSCRIÇÃO | E146: UN | G146: - | H146: - | I146: 199.83 | J146: 200.15
B147: AGETOP_I | C147: 11 | D147: ENCANADOR | E147: h | F147: 0.15 | G147: 13.4 | H147: 15.53 | I147: 2.01 | J147: 2.33
G148: 0 | H148: 0 | I148: 0 | J148: 0
G149: 0 | H149: 0 | I149: 0 | J149: 0
B150: MÃO DE OBRA (B) - TOTAL | I150: 2.01 | J150: 2.33
B151: SINAPI_I | C151: 11293 | D151: TAMPAO FOFO SIMPLES COM BASE, CLASSE A15 CARGA MAX 1,5 T, 400 X 500 MM, COM INSCRICAO INCENDIO | E151: UN | F151: 1 | G151: 197.82 | H151: 197.82 | I151: 197.82 | J151: 197.82
G152: 0 | H152: 0 | I152: 0 | J152: 0
G153: 0 | H153: 0 | I153: 0 | J153: 0
B154: MATERIAL (C) - TOTAL | I154: 197.82 | J154: 197.82
A156: 24 | B156: FONTE | C156: CÓDIGO | D156: DESCRIÇÃO | E156: UNIDADE | F156: COEFIC. | G156: CUSTO UNITÁRIO | I156: CUSTO TOTAL (A) + (B) + (C) + (D) + (E)
G157: DESONERADO | H157: NÃO DESONER. | I157: DESONERADO | J157: NÃO DESONER.
B158: COMPOSIÇÃO | C158: COMP 024_SEE | D158: SINALIZADOR FOTOLUMINESCENTE PARA EXTINTOR | E158: UN | G158: - | H158: - | I158: 24.11 | J158: 24.23
B159: AGETOP_I | C159: 5 | D159: SERVENTE | E159: h | F159: 0.09 | G159: 8.2 | H159: 9.51 | I159: 0.74 | J159: 0.86
G160: 0 | H160: 0 | I160: 0 | J160: 0
G161: 0 | H161: 0 | I161: 0 | J161: 0
B162: MÃO DE OBRA (B) - TOTAL | I162: 0.74 | J162: 0.86
B163: AGETOP_I | C163: 3070 | D163: BUCHA DE NYLON S-6 | E163: un | F163: 2 | G163: 0.04 | H163: 0.04 | I163: 0.08 | J163: 0.08
B164: AGETOP_I | C164: 3393 | D164: PARAFUSO P/BUCHA S-6 | E164: un | F164: 2 | G164: 0.08 | H164: 0.08 | I164: 0.16 | J164: 0.16
B165: SINAPI_I | C165: 37556 | D165: PLACA DE SINALIZACAO DE SEGURANCA CONTRA INCENDIO, FOTOLUMINESCENTE, QUADRADA, *20 X 20* CM, EM PVC *2* MM ANTI-CHAMAS (SIMBOLOS, CORES E PICTOGRAMAS CONFORME NBR 13434) | E165: UN | F165: 1 | G165: 23.13 | H165: 23.13 | I165: 23.13 | J165: 23.13
B166: MATERIAL (C) - TOTAL | I166: 23.37 | J166: 23.37
A168: 186 | B168: FONTE | C168: CÓDIGO | D168: DESCRIÇÃO | E168: UNIDADE | F168: COEFIC. | G168: CUSTO UNITÁRIO | I168: CUSTO TOTAL (A) + (B) + (C) + (D) + (E)
G169: DESONERADO | H169: NÃO DESONER. | I169: DESONERADO | J169: NÃO DESONER.
B170: COMPOSIÇÃO | C170: COMP 186_SEE | D170: BOTOEIRA BOMBA DE INCÊNDIO C/ MARTELO CONVENCIONAL/ ANALÓGICA | E170: UN | I170: 85.1 | J170: 88.54
B171: AGETOP_I | C171: 8 | D171: AJUDANTE | E171: h | F171: 1 | G171: 8.2 | H171: 9.51 | I171: 8.2 | J171: 9.51
B172: AGETOP_I | C172: 12 | D172: ELETRICISTA | E172: h | F172: 1 | G172: 13.4 | H172: 15.53 | I172: 13.4 | J172: 15.53
G173: 0 | H173: 0 | I173: 0 | J173: 0
B174: MÃO DE OBRA (B) - TOTAL | I174: 21.6 | J174: 25.04
B175: COTAÇÃO | C175: COT 088_SEE | D175: BOTOEIRA BOMBA DE INCÊNDIO C/ MARTELO CONVENCIONAL/ ANALÓGICA | E175: UN | F175: 1 | G175: 63.5 | H175: 63.5 | I175: 63.5 | J175: 63.5
G176: 0 | H176: 0 | I176: 0 | J176: 0
G177: 0 | H177: 0 | I177: 0 | J177: 0
B178: MATERIAL (C) - TOTAL | I178: 63.5 | J178: 63.5
A180: 188 | B180: FONTE | C180: CÓDIGO | D180: DESCRIÇÃO | E180: UNIDADE | F180: COEFIC. | G180: CUSTO UNITÁRIO | I180: CUSTO TOTAL (A) + (B) + (C) + (D) + (E)
G181: DESONERADO | H181: NÃO DESONER. | I181: DESONERADO | J181: NÃO DESONER.
B182: COMPOSIÇÃO | C182: COMP 188_SEE | D182: ACIONADOR MANUAL DE ALARME | E182: UN | I182: 100.61 | J182: 103.36
B183: AGETOP_I | C183: 8 | D183: AJUDANTE | E183: h | F183: 0.8 | G183: 8.2 | H183: 9.51 | I183: 6.56 | J183: 7.61
B184: AGETOP_I | C184: 12 | D184: ELETRICISTA | E184: h | F184: 0.8 | G184: 13.4 | H184: 15.53 | I184: 10.72 | J184: 12.42
G185: 0 | H185: 0 | I185: 0 | J185: 0
B186: MÃO DE OBRA (B) - TOTAL | I186: 17.28 | J186: 20.03
B187: COTAÇÃO | C187: COT 090_SEE | D187: ACIONADOR MANUAL DE ALARME | E187: UN | F187: 1 | G187: 83.33333333 | H187: 83.33333333 | I187: 83.33 | J187: 83.33
G188: 0 | H188: 0 | I188: 0 | J188: 0
G189: 0 | H189: 0 | I189: 0 | J189: 0
B190: MATERIAL (C) - TOTAL | I190: 83.33 | J190: 83.33
A192: 190 | B192: FONTE | C192: CÓDIGO | D192: DESCRIÇÃO | E192: UNIDADE | F192: COEFIC. | G192: CUSTO UNITÁRIO | I192: CUSTO TOTAL (A) + (B) + (C) + (D) + (E)
G193: DESONERADO | H193: NÃO DESONER. | I193: DESONERADO | J193: NÃO DESONER.
B194: COMPOSIÇÃO | C194: COMP 190_SEE | D194: CENTRAL DE DETECÇÃO E ALARME DE 40 SETORES COM BATERIA | E194: UN | I194: 1136.13 | J194: 1163.65
B195: AGETOP_I | C195: 8 | D195: AJUDANTE | E195: h | F195: 8 | G195: 8.2 | H195: 9.51 | I195: 65.6 | J195: 76.08
B196: AGETOP_I | C196: 12 | D196: ELETRICISTA | E196: h | F196: 8 | G196: 13.4 | H196: 15.53 | I196: 107.2 | J196: 124.24
G197: 0 | H197: 0 | I197: 0 | J197: 0
B198: MÃO DE OBRA (B) - TOTAL | I198: 172.8 | J198: 200.32
B199: COTAÇÃO | C199: COT 092_SEE | D199: CENTRAL DE DETECÇÃO E ALARME DE 40 SETORES COM BATERIA (PREÇO MÉDIO) | E199: UN | F199: 1 | G199: 963.3333333 | H199: 963.3333333 | I199: 963.33 | J199: 963.33
G200: 0 | H200: 0 | I200: 0 | J200: 0
G201: 0 | H201: 0 | I201: 0 | J201: 0
B202: MATERIAL (C) - TOTAL | I202: 963.33 | J202: 963.33
A204: 25 | B204: FONTE | C204: CÓDIGO | D204: DESCRIÇÃO | E204: UNIDADE | F204: COEFIC. | G204: CUSTO UNITÁRIO | I204: CUSTO TOTAL (A) + (B) + (C) + (D) + (E)
G205: DESONERADO | H205: NÃO DESONER. | I205: DESONERADO | J205: NÃO DESONER.
B206: COMPOSIÇÃO | C206: COMP 025_SEE | D206: SINALIZADOR FOTOLUMINESCENTE DE EMERGÊNCIA | E206: UN | G206: - | H206: - | I206: 24.11 | J206: 24.23
B207: AGETOP_I | C207: 5 | D207: SERVENTE | E207: h | F207: 0.09 | G207: 8.2 | H207: 9.51 | I207: 0.74 | J207: 0.86
B208: MÃO DE OBRA (B) - TOTAL | I208: 0.74 | J208: 0.86
B209: AGETOP_I | C209: 3070 | D209: BUCHA DE NYLON S-6 | E209: un | F209: 2 | G209: 0.04 | H209: 0.04 | I209: 0.08 | J209: 0.08
B210: AGETOP_I | C210: 3393 | D210: PARAFUSO P/BUCHA S-6 | E210: un | F210: 2 | G210: 0.08 | H210: 0.08 | I210: 0.16 | J210: 0.16
B211: SINAPI_I | C211: 37556 | D211: PLACA DE SINALIZACAO DE SEGURANCA CONTRA INCENDIO, FOTOLUMINESCENTE, QUADRADA, *20 X 20* CM, EM PVC *2* MM ANTI-CHAMAS (SIMBOLOS, CORES E PICTOGRAMAS CONFORME NBR 13434) | E211: UN | F211: 1 | G211: 23.13 | H211: 23.13 | I211: 23.13 | J211: 23.13
B212: MATERIAL (C) - TOTAL | I212: 23.37 | J212: 23.37
A214: 277 | B214: FONTE | C214: CÓDIGO | D214: DESCRIÇÃO | E214: UNIDADE | F214: COEFIC. | G214: CUSTO UNITÁRIO | I214: CUSTO TOTAL (A) + (B) + (C) + (D) + (E)
G215: DESONERADO | H215: NÃO DESONER. | I215: DESONERADO | J215: NÃO DESONER.
B216: COMPOSIÇÃO | C216: COMP 277_SEE | D216: MARCAÇÃO NO PISO - 1X1 M PARA EXTINTOR | E216: M2 | I216: 28.63 | J216: 28.7
B217: AGETOP_I | C217: 5 | D217: SERVENTE | E217: h | F217: 0.0333 | G217: 8.2 | H217: 9.51 | I217: 0.27 | J217: 0.32
G218: 0 | H218: 0 | I218: 0 | J218: 0
G219: 0 | H219: 0 | I219: 0 | J219: 0
B220: MÃO DE OBRA (B) - TOTAL | I220: 0.27 | J220: 0.32
B221: SINAPI_I | C221: 5318 | D221: SOLVENTE DILUENTE A BASE DE AGUARRAS | E221: L | F221: 0.13 | G221: 11.98 | H221: 11.98 | I221: 1.56 | J221: 1.56
B222: SINAPI | C222: 5824 | D222: CAMINHÃO TOCO, PBT 16.000 KG, CARGA ÚTIL MÁX. 10.685 KG, DIST. ENTRE EIXOS 4,8 M, POTÊNCIA 189 CV, INCLUSIVE CARROCERIA FIXA ABERTA DE MADEIRA P/ TRANSPORTE GERAL DE CARGA SECA, DIMEN. APROX. 2,5 X 7,00 X 0,50 M - CHP DIURNO. AF_06/2014 | E222: CHP | F222: 0.0033 | G222: 137.26 | H222: 140.47 | I222: 0.45 | J222: 0.46
B223: SINAPI_I | C223: 7343 | D223: TINTA A BASE DE RESINA ACRILICA, PARA SINALIZACAO HORIZONTAL VIARIA (NBR 11862) | E223: L | F223: 0.6 | G223: 11.05 | H223: 11.05 | I223: 6.63 | J223: 6.63
B224: SINAPI_I | C224: 7348 | D224: TINTA ACRILICA PREMIUM PARA PISO | E224: L | F224: 0.03 | G224: 12 | H224: 12 | I224: 0.36 | J224: 0.36
... 247 more rows
